Body Name,Body,Service Label    ,Service Code,Service Division Label,Service Division Code,Organisational Unit,Expenditure Category,Expenditure Code,CIPFA Detailed Expenditure Type,CIPFA Detailed Expenditure Code,Date,Transaction Number, Net Amount ,Supplier Name, Payment_Amount ,Payment Number
Liberty Leisure Limited,http://statistics.data.gov.uk/id/local-authority/37UD,Leisure,LEIS,Leisure Development,LDEV,Liberty Leisure Limited / Chilwell Olympia,Advertising,3412,Advertising,Advert,20/07/2018,V002231,1950,360 Imagery,"2,340",BAC001457
Liberty Leisure Limited,http://statistics.data.gov.uk/id/local-authority/37UD,Leisure,LEIS,Leisure Centres,LCEN,Liberty Leisure Limited / Kimberley Leisure Centre,Vending Provisions  - Purchase,3204,Catering,Cat,25/05/2018,V002056,384.95,A1 Coffee Ltd,677,BAC001292
Liberty Leisure Limited,http://statistics.data.gov.uk/id/local-authority/37UD,Leisure,LEIS,Leisure Centres,LCEN,Liberty Leisure Limited / Kimberley Leisure Centre,Vending Provisions  - Purchase,3204,Catering,Cat,23/11/2018,V002897,761.6,A1 Coffee Ltd,769,BAC001849
Liberty Leisure Limited,http://statistics.data.gov.uk/id/local-authority/37UD,Leisure,LEIS,Leisure Centres,LCEN,Liberty Leisure Limited / Kimberley Leisure Centre,Vending Provisions  - Purchase,3204,Catering,Cat,01/03/2019,V003335,461.94,A1 Coffee Ltd,892.55,BAC002138
Liberty Leisure Limited,http://statistics.data.gov.uk/id/local-authority/37UD,Leisure,LEIS,Leisure Centres,LCEN,Liberty Leisure Limited / Kimberley Leisure Centre,Vending Provisions  - Purchase,3204,Catering,Cat,19/07/2019,V004016,5.98,A1 Coffee Ltd,879.35,BAC002579
Liberty Leisure Limited,http://statistics.data.gov.uk/id/local-authority/37UD,Leisure,LEIS,Leisure Centres,LCEN,Liberty Leisure Limited / Kimberley Leisure Centre,Vending Provisions  - Purchase,3204,Catering,Cat,19/07/2019,V004016,872.17,A1 Coffee Ltd,879.35,BAC002579
Liberty Leisure Limited,http://statistics.data.gov.uk/id/local-authority/37UD,Leisure,LEIS,Leisure Centres,LCEN,Liberty Leisure Limited / Kimberley Leisure Centre,Repairs & Maintenance,1000,Central Pot,Central,18/01/2019,V003158,9909.04,ABACUS LIGHTING LIMITED,11890.85,BAC002024
Liberty Leisure Limited,http://statistics.data.gov.uk/id/local-authority/37UD,Leisure,LEIS,Leisure Centres,LCEN,Liberty Leisure Limited / Kimberley Leisure Centre,Repairs & Maintenance,1000,Central Pot,Central,12/04/2019,V003595,860.89,ABACUS LIGHTING LIMITED,1033.07,BAC002290
Liberty Leisure Limited,http://statistics.data.gov.uk/id/local-authority/37UD,Leisure,LEIS,Leisure Centres,LCEN,Liberty Leisure Limited / Kimberley Leisure Centre,Repairs & Maintenance,1000,Central Pot,Central,24/05/2019,V003763,382.22,ABACUS LIGHTING LIMITED,493.22,BAC002400
Liberty Leisure Limited,http://statistics.data.gov.uk/id/local-authority/37UD,Leisure,LEIS,Leisure Development,LDEV,Liberty Leisure Limited / Kimberley Leisure Centre,Course & Examination Fees,720,Indirect Employee Exp Oncosts,Oncosts,29/03/2019,V003576,250,Access Service Repair Ltd,426,BAC002233
Liberty Leisure Limited,http://statistics.data.gov.uk/id/local-authority/37UD,Leisure,LEIS,Leisure Centres,LCEN,Liberty Leisure Limited / Bramcote Leisure Centre,Repairs & Maintenance,1000,Central Pot,Central,28/09/2018,V002599,1106.91,Ackroyd Electrical Services Limited,"101,866",BAC001689
Liberty Leisure Limited,http://statistics.data.gov.uk/id/local-authority/37UD,Leisure,LEIS,Leisure Management,LMAN,Liberty Leisure Limited / Chilwell Olympia,Annual Projects Contingency,3710,Other Supplies & Services,OtherSS,29/03/2019,V003499,5000,Active Notts,5000,BAC002260
Liberty Leisure Limited,http://statistics.data.gov.uk/id/local-authority/37UD,Culture and Heritage,CULT,Heritage,LHER,Liberty Leisure Limited / DHL Museum,Service Contracts,3056,Other Supplies & Services,OtherSS,08/06/2018,V002060,1299.15,ADT Fire & Security Plc,389,BAC001305
Liberty Leisure Limited,http://statistics.data.gov.uk/id/local-authority/37UD,Culture and Heritage,CULT,Heritage,LHER,Liberty Leisure Limited / DHL Museum,Service Contracts,3056,Other Supplies & Services,OtherSS,08/06/2018,V002049,-975.25,ADT Fire & Security Plc,389,BAC001305
Liberty Leisure Limited,http://statistics.data.gov.uk/id/local-authority/37UD,Leisure,LEIS,Leisure Centres,LCEN,Liberty Leisure Limited / Chilwell Olympia,Service Contracts,3056,Other Supplies & Services,OtherSS,01/02/2019,V003209,1230.24,ADT Fire & Security Plc,1476.29,BAC002034
Liberty Leisure Limited,http://statistics.data.gov.uk/id/local-authority/37UD,Leisure,LEIS,Leisure Centres,LCEN,Liberty Leisure Limited / Chilwell Olympia,Service Contracts,3056,Other Supplies & Services,OtherSS,15/03/2019,V003393,598.85,ADT Fire & Security Plc,718.62,BAC002145
Liberty Leisure Limited,http://statistics.data.gov.uk/id/local-authority/37UD,Leisure,LEIS,Leisure Centres,LCEN,Liberty Leisure Limited / Chilwell Olympia,Service Contracts,3056,Other Supplies & Services,OtherSS,27/09/2019,V004400,293,ADT Fire & Security Plc,351.6,BAC002769
Liberty Leisure Limited,http://statistics.data.gov.uk/id/local-authority/37UD,Leisure,LEIS,Leisure Management,LMAN,Liberty Leisure Limited / Chilwell Olympia,Professional Fees,730,Indirect Employee Exp Oncosts,Oncosts,28/09/2018,V002620,3900,Alliance Leisure Services Limited,"98,874",BAC001683
Liberty Leisure Limited,http://statistics.data.gov.uk/id/local-authority/37UD,Leisure,LEIS,Leisure Centres,LCEN,Liberty Leisure Limited / Kimberley Leisure Centre,Repairs & Maintenance,1000,Central Pot,Central,23/11/2018,V002890,941.25,Alpha Drain Services Ltd,"1,130",BAC001818
Liberty Leisure Limited,http://statistics.data.gov.uk/id/local-authority/37UD,Leisure,LEIS,Leisure Centres,LCEN,Liberty Leisure Limited / Kimberley Leisure Centre,Repairs & Maintenance,1000,Central Pot,Central,13/09/2019,V004332,225,Alpha Drain Services Ltd,270,BAC002728
Liberty Leisure Limited,http://statistics.data.gov.uk/id/local-authority/37UD,Leisure,LEIS,Leisure Centres,LCEN,Liberty Leisure Limited / Kimberley Leisure Centre,Repairs & Maintenance,1000,Central Pot,Central,15/02/2019,V003259,756,Altitude Safety Ltd,1014,BAC002120
Liberty Leisure Limited,http://statistics.data.gov.uk/id/local-authority/37UD,Leisure,LEIS,Leisure Centres,LCEN,Liberty Leisure Limited / Chilwell Olympia,Repairs & Maintenance,1000,Central Pot,Central,07/12/2018,V002907,286.3,Anderson Elecrical Trade Limited,344,BAC001906
Liberty Leisure Limited,http://statistics.data.gov.uk/id/local-authority/37UD,Leisure,LEIS,Leisure Development,LDEV,Liberty Leisure Limited / Chilwell Olympia,Course & Examination Fees,720,Indirect Employee Exp Oncosts,Oncosts,11/01/2019,V003104,500,Apse,600,BAC001973
Liberty Leisure Limited,http://statistics.data.gov.uk/id/local-authority/37UD,Leisure,LEIS,Leisure Centres,LCEN,Liberty Leisure Limited / Bramcote Leisure Centre,Repairs & Maintenance,1000,Central Pot,Central,27/04/2018,V001751,806.67,Aqualine UK,968,BAC001213
Liberty Leisure Limited,http://statistics.data.gov.uk/id/local-authority/37UD,Leisure,LEIS,Leisure Centres,LCEN,Liberty Leisure Limited / Bramcote Leisure Centre,Repairs & Maintenance,1000,Central Pot,Central,31/08/2018,V002438,402.8,Aqualine UK,403,BAC001588
Liberty Leisure Limited,http://statistics.data.gov.uk/id/local-authority/37UD,Leisure,LEIS,Leisure Centres,LCEN,Liberty Leisure Limited / Bramcote Leisure Centre,Repairs & Maintenance,1000,Central Pot,Central,12/10/2018,V002702,295,Aqualine UK,295,BAC001732
Liberty Leisure Limited,http://statistics.data.gov.uk/id/local-authority/37UD,Leisure,LEIS,Leisure Centres,LCEN,Liberty Leisure Limited / Chilwell Olympia,Repairs & Maintenance,1000,Central Pot,Central,23/11/2018,V002838,327,Arrow Ceilings,356,BAC001861
Liberty Leisure Limited,http://statistics.data.gov.uk/id/local-authority/37UD,Leisure,LEIS,Leisure Centres,LCEN,Liberty Leisure Limited / Bramcote Leisure Centre,Ground and Court Maintenance,1202,Other Prem,OthPrem,03/04/2018,V001712,635,Ashlar Facilities Maintenance Ltd,762,BAC001131
Liberty Leisure Limited,http://statistics.data.gov.uk/id/local-authority/37UD,Leisure,LEIS,Leisure Centres,LCEN,Liberty Leisure Limited / Chilwell Olympia,Repairs & Maintenance,1000,Central Pot,Central,14/09/2018,V002563,967.5,Ashlar Facilities Maintenance Ltd,"97,425",BAC001641
Liberty Leisure Limited,http://statistics.data.gov.uk/id/local-authority/37UD,Leisure,LEIS,Leisure Centres,LCEN,Liberty Leisure Limited / Chilwell Olympia,Repairs & Maintenance,1000,Central Pot,Central,14/09/2018,V002563,405,Ashlar Facilities Maintenance Ltd,"97,425",BAC001641
Liberty Leisure Limited,http://statistics.data.gov.uk/id/local-authority/37UD,Leisure,LEIS,Leisure Development,LDEV,Liberty Leisure Limited / Chilwell Olympia,Course & Examination Fees,720,Indirect Employee Exp Oncosts,Oncosts,28/09/2018,V002615,598,Athleticum Morelli Enterprises Ltd,"94,003",BAC001674
Liberty Leisure Limited,http://statistics.data.gov.uk/id/local-authority/37UD,Leisure,LEIS,Leisure Development,LDEV,Liberty Leisure Limited / Chilwell Olympia,Course & Examination Fees,720,Indirect Employee Exp Oncosts,Oncosts,28/09/2018,V002615,302.86,Athleticum Morelli Enterprises Ltd,"94,003",BAC001674
Liberty Leisure Limited,http://statistics.data.gov.uk/id/local-authority/37UD,Leisure,LEIS,Leisure Development,LDEV,Liberty Leisure Limited / Kimberley Leisure Centre,Course & Examination Fees,720,Indirect Employee Exp Oncosts,Oncosts,15/02/2019,V003257,319,Athleticum Morelli Enterprises Ltd,382.8,BAC002109
Liberty Leisure Limited,http://statistics.data.gov.uk/id/local-authority/37UD,Leisure,LEIS,Leisure Development,LDEV,Liberty Leisure Limited / Bramcote Leisure Centre,Course & Examination Fees,720,Indirect Employee Exp Oncosts,Oncosts,24/05/2019,V003783,299,Athleticum Morelli Enterprises Ltd,717.6,BAC002405
Liberty Leisure Limited,http://statistics.data.gov.uk/id/local-authority/37UD,Leisure,LEIS,Leisure Centres,LCEN,Liberty Leisure Limited / Chilwell Olympia,Repairs & Maintenance,1000,Central Pot,Central,29/03/2019,V003495,275,Attenborough Industrial Doors,330,BAC002201
Liberty Leisure Limited,http://statistics.data.gov.uk/id/local-authority/37UD,Culture and Heritage,CULT,Events,LEVE,Liberty Leisure Limited / Events,Promotion of The Arts,3066,Office Supplies,Offsup,31/08/2018,V002480,250,Aurora`s Carnival,250,BAC001577
Liberty Leisure Limited,http://statistics.data.gov.uk/id/local-authority/37UD,Culture and Heritage,CULT,Events,LEVE,Liberty Leisure Limited / Events,Promotion of The Arts,3066,Office Supplies,Offsup,07/12/2018,V002947,250,Aurora`s Carnival,500,BAC001897
Liberty Leisure Limited,http://statistics.data.gov.uk/id/local-authority/37UD,Culture and Heritage,CULT,Events,LEVE,Liberty Leisure Limited / Events,Promotion of The Arts,3066,Office Supplies,Offsup,07/12/2018,V002947,250,Aurora`s Carnival,500,BAC001897
Liberty Leisure Limited,http://statistics.data.gov.uk/id/local-authority/37UD,Culture and Heritage,CULT,Events,LEVE,Liberty Leisure Limited / Events,Promotion of The Arts,3066,Office Supplies,Offsup,16/08/2019,V004161,250,Aurora`s Carnival,250,BAC002659
Liberty Leisure Limited,http://statistics.data.gov.uk/id/local-authority/37UD,Leisure,LEIS,Leisure Centres,LCEN,Liberty Leisure Limited / Kimberley Leisure Centre,Repairs & Maintenance,1000,Central Pot,Central,03/04/2018,V001672,3800,Automatic Access Ltd,"4,560",BAC001122
Liberty Leisure Limited,http://statistics.data.gov.uk/id/local-authority/37UD,Leisure,LEIS,Leisure Centres,LCEN,Liberty Leisure Limited / Kimberley Leisure Centre,Service Contracts,3056,Other Supplies & Services,OtherSS,01/03/2019,V003343,420,Automatic Access Ltd,504,BAC002135
Liberty Leisure Limited,http://statistics.data.gov.uk/id/local-authority/37UD,Leisure,LEIS,Leisure Centres,LCEN,Liberty Leisure Limited / Kimberley Leisure Centre,Repairs & Maintenance,1000,Central Pot,Central,24/05/2019,V003774,1980,Automatic Access Ltd,2376,BAC002399
Liberty Leisure Limited,http://statistics.data.gov.uk/id/local-authority/37UD,Leisure,LEIS,Leisure Centres,LCEN,Liberty Leisure Limited / Kimberley Leisure Centre,Vending Provisions  - Purchase,3204,Catering,Cat,12/04/2019,V003628,644.01,Automatic Retailing northern Ltd,863.79,BAC002297
Liberty Leisure Limited,http://statistics.data.gov.uk/id/local-authority/37UD,Leisure,LEIS,Leisure Centres,LCEN,Liberty Leisure Limited / Bramcote Leisure Centre,Vending Provisions  - Purchase,3204,Catering,Cat,26/04/2019,V003683,843.97,Automatic Retailing northern Ltd,2946.14,BAC002325
Liberty Leisure Limited,http://statistics.data.gov.uk/id/local-authority/37UD,Leisure,LEIS,Leisure Centres,LCEN,Liberty Leisure Limited / Chilwell Olympia,Vending Provisions  - Purchase,3204,Catering,Cat,26/04/2019,V003680,740.41,Automatic Retailing northern Ltd,2946.14,BAC002325
Liberty Leisure Limited,http://statistics.data.gov.uk/id/local-authority/37UD,Leisure,LEIS,Leisure Centres,LCEN,Liberty Leisure Limited / Kimberley Leisure Centre,Vending Provisions  - Purchase,3204,Catering,Cat,26/04/2019,V003658,353,Automatic Retailing northern Ltd,2946.14,BAC002325
Liberty Leisure Limited,http://statistics.data.gov.uk/id/local-authority/37UD,Leisure,LEIS,Leisure Centres,LCEN,Liberty Leisure Limited / Chilwell Olympia,Vending Provisions  - Purchase,3204,Catering,Cat,26/04/2019,V003680,250.05,Automatic Retailing northern Ltd,2946.14,BAC002325
Liberty Leisure Limited,http://statistics.data.gov.uk/id/local-authority/37UD,Leisure,LEIS,Leisure Centres,LCEN,Liberty Leisure Limited / Chilwell Olympia,Vending Provisions  - Purchase,3204,Catering,Cat,10/05/2019,V003746,688.78,Automatic Retailing northern Ltd,1745.36,BAC002367
Liberty Leisure Limited,http://statistics.data.gov.uk/id/local-authority/37UD,Leisure,LEIS,Leisure Centres,LCEN,Liberty Leisure Limited / Chilwell Olympia,Vending Provisions  - Purchase,3204,Catering,Cat,07/06/2019,V003841,560.65,Automatic Retailing northern Ltd,717.56,BAC002452
Liberty Leisure Limited,http://statistics.data.gov.uk/id/local-authority/37UD,Leisure,LEIS,Leisure Centres,LCEN,Liberty Leisure Limited / Kimberley Leisure Centre,Vending Provisions  - Purchase,3204,Catering,Cat,21/06/2019,V003867,910.27,Automatic Retailing northern Ltd,1792.76,BAC002487
Liberty Leisure Limited,http://statistics.data.gov.uk/id/local-authority/37UD,Leisure,LEIS,Leisure Centres,LCEN,Liberty Leisure Limited / Kimberley Leisure Centre,Vending Provisions  - Purchase,3204,Catering,Cat,21/06/2019,V003921,379.5,Automatic Retailing northern Ltd,1792.76,BAC002487
Liberty Leisure Limited,http://statistics.data.gov.uk/id/local-authority/37UD,Leisure,LEIS,Leisure Centres,LCEN,Liberty Leisure Limited / Bramcote Leisure Centre,Vending Provisions  - Purchase,3204,Catering,Cat,19/07/2019,V004026,196.56,Automatic Retailing northern Ltd,3388.26,BAC002576
Liberty Leisure Limited,http://statistics.data.gov.uk/id/local-authority/37UD,Leisure,LEIS,Leisure Centres,LCEN,Liberty Leisure Limited / Bramcote Leisure Centre,Vending Provisions  - Purchase,3204,Catering,Cat,19/07/2019,V004026,905.17,Automatic Retailing northern Ltd,3388.26,BAC002576
Liberty Leisure Limited,http://statistics.data.gov.uk/id/local-authority/37UD,Leisure,LEIS,Leisure Centres,LCEN,Liberty Leisure Limited / Kimberley Leisure Centre,Vending Provisions  - Purchase,3204,Catering,Cat,19/07/2019,V004012,971.53,Automatic Retailing northern Ltd,3388.26,BAC002576
Liberty Leisure Limited,http://statistics.data.gov.uk/id/local-authority/37UD,Leisure,LEIS,Leisure Centres,LCEN,Liberty Leisure Limited / Kimberley Leisure Centre,Vending Provisions  - Purchase,3204,Catering,Cat,19/07/2019,V004013,518.58,Automatic Retailing northern Ltd,3388.26,BAC002576
Liberty Leisure Limited,http://statistics.data.gov.uk/id/local-authority/37UD,Leisure,LEIS,Leisure Centres,LCEN,Liberty Leisure Limited / Kimberley Leisure Centre,Vending Provisions  - Purchase,3204,Catering,Cat,19/07/2019,V004012,146.69,Automatic Retailing northern Ltd,3388.26,BAC002576
Liberty Leisure Limited,http://statistics.data.gov.uk/id/local-authority/37UD,Leisure,LEIS,Leisure Centres,LCEN,Liberty Leisure Limited / Kimberley Leisure Centre,Vending Provisions  - Purchase,3204,Catering,Cat,19/07/2019,V004013,170.67,Automatic Retailing northern Ltd,3388.26,BAC002576
Liberty Leisure Limited,http://statistics.data.gov.uk/id/local-authority/37UD,Leisure,LEIS,Leisure Centres,LCEN,Liberty Leisure Limited / Bramcote Leisure Centre,Vending Provisions  - Purchase,3204,Catering,Cat,30/08/2019,V004178,174.51,Automatic Retailing northern Ltd,8568.73,BAC002711
Liberty Leisure Limited,http://statistics.data.gov.uk/id/local-authority/37UD,Leisure,LEIS,Leisure Centres,LCEN,Liberty Leisure Limited / Bramcote Leisure Centre,Vending Provisions  - Purchase,3204,Catering,Cat,30/08/2019,V004178,1181.77,Automatic Retailing northern Ltd,8568.73,BAC002711
Liberty Leisure Limited,http://statistics.data.gov.uk/id/local-authority/37UD,Leisure,LEIS,Leisure Centres,LCEN,Liberty Leisure Limited / Chilwell Olympia,Vending Provisions  - Purchase,3204,Catering,Cat,30/08/2019,V004267,69.19,Automatic Retailing northern Ltd,8568.73,BAC002711
Liberty Leisure Limited,http://statistics.data.gov.uk/id/local-authority/37UD,Leisure,LEIS,Leisure Centres,LCEN,Liberty Leisure Limited / Chilwell Olympia,Vending Provisions  - Purchase,3204,Catering,Cat,30/08/2019,V004267,855.23,Automatic Retailing northern Ltd,8568.73,BAC002711
Liberty Leisure Limited,http://statistics.data.gov.uk/id/local-authority/37UD,Leisure,LEIS,Leisure Centres,LCEN,Liberty Leisure Limited / Bramcote Leisure Centre,Vending Provisions  - Purchase,3204,Catering,Cat,30/08/2019,V004276,158.25,Automatic Retailing northern Ltd,8568.73,BAC002711
Liberty Leisure Limited,http://statistics.data.gov.uk/id/local-authority/37UD,Leisure,LEIS,Leisure Centres,LCEN,Liberty Leisure Limited / Bramcote Leisure Centre,Vending Provisions  - Purchase,3204,Catering,Cat,30/08/2019,V004276,1698.31,Automatic Retailing northern Ltd,8568.73,BAC002711
Liberty Leisure Limited,http://statistics.data.gov.uk/id/local-authority/37UD,Leisure,LEIS,Leisure Centres,LCEN,Liberty Leisure Limited / Kimberley Leisure Centre,Vending Provisions  - Purchase,3204,Catering,Cat,30/08/2019,V004196,177.39,Automatic Retailing northern Ltd,8568.73,BAC002711
Liberty Leisure Limited,http://statistics.data.gov.uk/id/local-authority/37UD,Leisure,LEIS,Leisure Centres,LCEN,Liberty Leisure Limited / Kimberley Leisure Centre,Vending Provisions  - Purchase,3204,Catering,Cat,30/08/2019,V004196,1036.56,Automatic Retailing northern Ltd,8568.73,BAC002711
Liberty Leisure Limited,http://statistics.data.gov.uk/id/local-authority/37UD,Leisure,LEIS,Leisure Centres,LCEN,Liberty Leisure Limited / Kimberley Leisure Centre,Vending Provisions  - Purchase,3204,Catering,Cat,30/08/2019,V004197,93.77,Automatic Retailing northern Ltd,8568.73,BAC002711
Liberty Leisure Limited,http://statistics.data.gov.uk/id/local-authority/37UD,Leisure,LEIS,Leisure Centres,LCEN,Liberty Leisure Limited / Kimberley Leisure Centre,Vending Provisions  - Purchase,3204,Catering,Cat,30/08/2019,V004197,944.02,Automatic Retailing northern Ltd,8568.73,BAC002711
Liberty Leisure Limited,http://statistics.data.gov.uk/id/local-authority/37UD,Leisure,LEIS,Leisure Centres,LCEN,Liberty Leisure Limited / Kimberley Leisure Centre,Vending Provisions  - Purchase,3204,Catering,Cat,30/08/2019,V004265,102.32,Automatic Retailing northern Ltd,8568.73,BAC002711
Liberty Leisure Limited,http://statistics.data.gov.uk/id/local-authority/37UD,Leisure,LEIS,Leisure Centres,LCEN,Liberty Leisure Limited / Kimberley Leisure Centre,Vending Provisions  - Purchase,3204,Catering,Cat,30/08/2019,V004265,778.53,Automatic Retailing northern Ltd,8568.73,BAC002711
Liberty Leisure Limited,http://statistics.data.gov.uk/id/local-authority/37UD,Leisure,LEIS,Leisure Centres,LCEN,Liberty Leisure Limited / Bramcote Leisure Centre,Vending Provisions  - Purchase,3204,Catering,Cat,27/09/2019,V004304,-4.79,Automatic Retailing northern Ltd,367.86,BAC002801
Liberty Leisure Limited,http://statistics.data.gov.uk/id/local-authority/37UD,Leisure,LEIS,Leisure Centres,LCEN,Liberty Leisure Limited / Chilwell Olympia,Vending Drinks  - Purchase,3205,Catering,Cat,27/09/2019,V004398,228.86,Automatic Retailing northern Ltd,367.86,BAC002801
Liberty Leisure Limited,http://statistics.data.gov.uk/id/local-authority/37UD,Leisure,LEIS,Leisure Centres,LCEN,Liberty Leisure Limited / Chilwell Olympia,Vending Drinks  - Purchase,3205,Catering,Cat,27/09/2019,V004398,98.98,Automatic Retailing northern Ltd,367.86,BAC002801
Liberty Leisure Limited,http://statistics.data.gov.uk/id/local-authority/37UD,Leisure,LEIS,Leisure Centres,LCEN,Liberty Leisure Limited / Chilwell Olympia,Service Contracts,3056,Other Supplies & Services,OtherSS,11/01/2019,V003111,290,Available Play Inspecitons,290,BAC002009
Liberty Leisure Limited,http://statistics.data.gov.uk/id/local-authority/37UD,Culture and Heritage,CULT,Events,LEVE,Liberty Leisure Limited / Events,Promotion of The Arts,3066,Office Supplies,Offsup,16/08/2019,V004158,300,Beatfeet Limited,600,BAC002670
Liberty Leisure Limited,http://statistics.data.gov.uk/id/local-authority/37UD,Culture and Heritage,CULT,Events,LEVE,Liberty Leisure Limited / Events,Promotion of The Arts,3066,Office Supplies,Offsup,16/08/2019,V004158,300,Beatfeet Limited,600,BAC002670
Liberty Leisure Limited,http://statistics.data.gov.uk/id/local-authority/37UD,Culture and Heritage,CULT,Events,LEVE,Liberty Leisure Limited / Events,Promotion of The Arts,3066,Office Supplies,Offsup,30/08/2019,V004247,400,Beeston Big Band,400,BAC002722
Liberty Leisure Limited,http://statistics.data.gov.uk/id/local-authority/37UD,Leisure,LEIS,Leisure Centres,LCEN,Liberty Leisure Limited / Chilwell Olympia,Sports Equipment,3002,Equipment,Equip,08/06/2018,V002088,1299.16,BestGym Equipment,"1,559",BAC001335
Liberty Leisure Limited,http://statistics.data.gov.uk/id/local-authority/37UD,Leisure,LEIS,Leisure Centres,LCEN,Liberty Leisure Limited / Kimberley Leisure Centre,Repairs & Maintenance,1000,Central Pot,Central,14/09/2018,V002538,479.29,BG Energy Solutions,"93,423",BAC001628
Liberty Leisure Limited,http://statistics.data.gov.uk/id/local-authority/37UD,Leisure,LEIS,Leisure Centres,LCEN,Liberty Leisure Limited / Kimberley Leisure Centre,Service Contracts,3056,Other Supplies & Services,OtherSS,09/11/2018,V002814,513.5,BG Energy Solutions,616,BAC001801
Liberty Leisure Limited,http://statistics.data.gov.uk/id/local-authority/37UD,Leisure,LEIS,Leisure Centres,LCEN,Liberty Leisure Limited / Kimberley Leisure Centre,Repairs & Maintenance,1000,Central Pot,Central,21/12/2018,V003013,2355.1,BG Energy Solutions,"2,826",BAC001942
Liberty Leisure Limited,http://statistics.data.gov.uk/id/local-authority/37UD,Leisure,LEIS,Leisure Centres,LCEN,Liberty Leisure Limited / Kimberley Leisure Centre,Service Contracts,3056,Other Supplies & Services,OtherSS,15/03/2019,V003377,513.5,BG Energy Solutions,616.2,BAC002183
Liberty Leisure Limited,http://statistics.data.gov.uk/id/local-authority/37UD,Leisure,LEIS,Leisure Centres,LCEN,Liberty Leisure Limited / Kimberley Leisure Centre,Service Contracts,3056,Other Supplies & Services,OtherSS,16/08/2019,V004129,523,BG Energy Solutions,627.6,BAC002648
Liberty Leisure Limited,http://statistics.data.gov.uk/id/local-authority/37UD,Culture and Heritage,CULT,Events,LEVE,Liberty Leisure Limited / Events,Promotion of The Arts,3066,Office Supplies,Offsup,31/08/2018,V001539,5942.5,Big TV (UK) Ltd,"7,131",BAC001587
Liberty Leisure Limited,http://statistics.data.gov.uk/id/local-authority/37UD,Culture and Heritage,CULT,Events,LEVE,Liberty Leisure Limited / Events,Promotion of The Arts,3066,Office Supplies,Offsup,07/06/2019,V003858,6394,Big TV (UK) Ltd,7672.8,BAC002456
Liberty Leisure Limited,http://statistics.data.gov.uk/id/local-authority/37UD,Culture and Heritage,CULT,Events,LEVE,Liberty Leisure Limited / Events,Promotion of The Arts,3066,Office Supplies,Offsup,30/08/2019,V004240,2123,Big TV (UK) Ltd,2547.6,BAC002715
Liberty Leisure Limited,http://statistics.data.gov.uk/id/local-authority/37UD,Culture and Heritage,CULT,Events,LEVE,Liberty Leisure Limited / Events,Promotion of The Arts,3066,Office Supplies,Offsup,27/09/2019,V004219,6394,Big TV (UK) Ltd,7672.8,BAC002809
Liberty Leisure Limited,http://statistics.data.gov.uk/id/local-authority/37UD,Culture and Heritage,CULT,Events,LEVE,Liberty Leisure Limited / Events,Promotion of The Arts,3066,Office Supplies,Offsup,12/10/2018,V002613,325,Black Diamond Promotions,650,BAC001697
Liberty Leisure Limited,http://statistics.data.gov.uk/id/local-authority/37UD,Culture and Heritage,CULT,Events,LEVE,Liberty Leisure Limited / Events,Promotion of The Arts,3066,Office Supplies,Offsup,12/10/2018,V002613,325,Black Diamond Promotions,650,BAC001697
Liberty Leisure Limited,http://statistics.data.gov.uk/id/local-authority/37UD,Culture and Heritage,CULT,Events,LEVE,Liberty Leisure Limited / Events,Promotion of The Arts,3066,Office Supplies,Offsup,30/08/2019,V004226,325,Black Diamond Promotions,650,BAC002674
Liberty Leisure Limited,http://statistics.data.gov.uk/id/local-authority/37UD,Culture and Heritage,CULT,Events,LEVE,Liberty Leisure Limited / Events,Promotion of The Arts,3066,Office Supplies,Offsup,30/08/2019,V004226,325,Black Diamond Promotions,650,BAC002674
Liberty Leisure Limited,http://statistics.data.gov.uk/id/local-authority/37UD,Leisure,LEIS,Leisure Centres,LCEN,Liberty Leisure Limited / Kimberley Leisure Centre,Sports Equipment,3002,Equipment,Equip,26/10/2018,V002712,320,Bramcote Archery Club,320,BAC001774
Liberty Leisure Limited,http://statistics.data.gov.uk/id/local-authority/37UD,Leisure,LEIS,Leisure Development,LDEV,Liberty Leisure Limited / Chilwell Olympia,Broxtowe Sports Competitions,3377,Other Supplies & Services,OtherSS,17/08/2018,V002382,440,Brandon Hire Plc Mansfield,528,BAC001529
Liberty Leisure Limited,http://statistics.data.gov.uk/id/local-authority/37UD,Culture and Heritage,CULT,Events,LEVE,Liberty Leisure Limited / Events,Promotion of The Arts,3066,Office Supplies,Offsup,12/10/2018,V002644,300,Breeze Magazine,360,BAC001698
Liberty Leisure Limited,http://statistics.data.gov.uk/id/local-authority/37UD,Culture and Heritage,CULT,Events,LEVE,Liberty Leisure Limited / Events,Promotion of The Arts,3066,Office Supplies,Offsup,01/02/2019,V003180,250,Breeze Magazine,300,BAC002035
Liberty Leisure Limited,http://statistics.data.gov.uk/id/local-authority/37UD,Culture and Heritage,CULT,Events,LEVE,Liberty Leisure Limited / Events,Promotion of The Arts,3066,Office Supplies,Offsup,30/08/2019,V004224,250,Breeze Magazine,300,BAC002675
Liberty Leisure Limited,http://statistics.data.gov.uk/id/local-authority/37UD,Leisure,LEIS,Leisure Centres,LCEN,Liberty Leisure Limited / Bramcote Leisure Centre,Chemicals,3152,Other Supplies & Services,OtherSS,06/07/2018,V002210,3000,Brenntag UK Limited,"3,600",BAC001399
Liberty Leisure Limited,http://statistics.data.gov.uk/id/local-authority/37UD,Leisure,LEIS,Leisure Centres,LCEN,Liberty Leisure Limited / Bramcote Leisure Centre,Repairs & Maintenance,1000,Central Pot,Central,03/04/2018,V001704,350,Broadwater Technologies Ltd,420,BAC001123
Liberty Leisure Limited,http://statistics.data.gov.uk/id/local-authority/37UD,Leisure,LEIS,Leisure Centres,LCEN,Liberty Leisure Limited / Bramcote Leisure Centre,Repairs & Maintenance,1000,Central Pot,Central,13/04/2018,V001800,965,Broadwater Technologies Ltd,"1,158",BAC001165
Liberty Leisure Limited,http://statistics.data.gov.uk/id/local-authority/37UD,Leisure,LEIS,Leisure Centres,LCEN,Liberty Leisure Limited / Bramcote Leisure Centre,Repairs & Maintenance,1000,Central Pot,Central,27/04/2018,V001903,380,Broadwater Technologies Ltd,456,BAC001201
Liberty Leisure Limited,http://statistics.data.gov.uk/id/local-authority/37UD,Leisure,LEIS,Leisure Centres,LCEN,Liberty Leisure Limited / Bramcote Leisure Centre,Repairs & Maintenance,1000,Central Pot,Central,26/10/2018,V002730,2501.75,Broadwater Technologies Ltd,"3,002",BAC001760
Liberty Leisure Limited,http://statistics.data.gov.uk/id/local-authority/37UD,Leisure,LEIS,Leisure Centres,LCEN,Liberty Leisure Limited / Bramcote Leisure Centre,Repairs & Maintenance,1000,Central Pot,Central,07/12/2018,V002984,579.57,Broadwater Technologies Ltd,695,BAC001889
Liberty Leisure Limited,http://statistics.data.gov.uk/id/local-authority/37UD,LL Control Accounts,CONTROL,Payroll,LPAY,Liberty Leisure Limited / Chilwell Olympia,Car Loans - Repayment in Advance,9172,Control,Crtl,03/04/2018,V001730,1350,Broxtowe Borough Council,"2,450",BAC001086
Liberty Leisure Limited,http://statistics.data.gov.uk/id/local-authority/37UD,Leisure,LEIS,Leisure Centres,LCEN,Liberty Leisure Limited / Chilwell Olympia,Miscellaneous Expenses,3800,Miscellaneous,Msc,03/04/2018,V001711,500,Broxtowe Borough Council,"2,450",BAC001086
Liberty Leisure Limited,http://statistics.data.gov.uk/id/local-authority/37UD,Leisure,LEIS,Leisure Centres,LCEN,Liberty Leisure Limited / Bramcote Leisure Centre,Service Contracts,3056,Other Supplies & Services,OtherSS,03/04/2018,V001749,250,Broxtowe Borough Council,"2,450",BAC001086
Liberty Leisure Limited,http://statistics.data.gov.uk/id/local-authority/37UD,Leisure,LEIS,Leisure Centres,LCEN,Liberty Leisure Limited / Kimberley Leisure Centre,Service Contracts,3056,Other Supplies & Services,OtherSS,03/04/2018,V001719,250,Broxtowe Borough Council,"2,450",BAC001086
Liberty Leisure Limited,http://statistics.data.gov.uk/id/local-authority/37UD,Leisure,LEIS,Leisure Centres,LCEN,Liberty Leisure Limited / Kimberley Leisure Centre,Trade Refuse Collection,1235,Other Prem,OthPrem,13/04/2018,V001809,2457.78,Broxtowe Borough Council,"2,913",BAC001155
Liberty Leisure Limited,http://statistics.data.gov.uk/id/local-authority/37UD,Leisure,LEIS,Leisure Management,LMAN,Liberty Leisure Limited / Bramcote Leisure Centre,Childcare Vouchers,9181,Control,Crtl,27/04/2018,V001931,5445,Broxtowe Borough Council,"136,053",BAC001175
Liberty Leisure Limited,http://statistics.data.gov.uk/id/local-authority/37UD,Leisure,LEIS,Leisure Centres,LCEN,Liberty Leisure Limited / Bramcote Leisure Centre,Trade Refuse Collection,1235,Other Prem,OthPrem,27/04/2018,V001909,2457.78,Broxtowe Borough Council,"136,053",BAC001175
Liberty Leisure Limited,http://statistics.data.gov.uk/id/local-authority/37UD,Culture and Heritage,CULT,Events,LEVE,Liberty Leisure Limited / Chilwell Olympia,Advertising,3412,Advertising,Advert,27/04/2018,V001919,460,Broxtowe Borough Council,"136,053",BAC001175
Liberty Leisure Limited,http://statistics.data.gov.uk/id/local-authority/37UD,Leisure,LEIS,Leisure Development,LDEV,Liberty Leisure Limited / Chilwell Olympia,Advertising,3412,Advertising,Advert,27/04/2018,V001923,458.15,Broxtowe Borough Council,"136,053",BAC001175
Liberty Leisure Limited,http://statistics.data.gov.uk/id/local-authority/37UD,Leisure,LEIS,Leisure Development,LDEV,Liberty Leisure Limited / Chilwell Olympia,Advertising,3412,Advertising,Advert,27/04/2018,V001920,435,Broxtowe Borough Council,"136,053",BAC001175
Liberty Leisure Limited,http://statistics.data.gov.uk/id/local-authority/37UD,Leisure,LEIS,Leisure Development,LDEV,Liberty Leisure Limited / Chilwell Olympia,Advertising,3412,Advertising,Advert,27/04/2018,V001925,421.5,Broxtowe Borough Council,"136,053",BAC001175
Liberty Leisure Limited,http://statistics.data.gov.uk/id/local-authority/37UD,Culture and Heritage,CULT,Heritage,LHER,Liberty Leisure Limited / Chilwell Olympia,Advertising,3412,Advertising,Advert,27/04/2018,V001913,392.5,Broxtowe Borough Council,"136,053",BAC001175
Liberty Leisure Limited,http://statistics.data.gov.uk/id/local-authority/37UD,Culture and Heritage,CULT,Events,LEVE,Liberty Leisure Limited / Chilwell Olympia,Advertising,3412,Advertising,Advert,27/04/2018,V001884,371.5,Broxtowe Borough Council,"136,053",BAC001175
Liberty Leisure Limited,http://statistics.data.gov.uk/id/local-authority/37UD,Leisure,LEIS,Leisure Development,LDEV,Liberty Leisure Limited / Chilwell Olympia,Advertising,3412,Advertising,Advert,27/04/2018,V001924,299.97,Broxtowe Borough Council,"136,053",BAC001175
Liberty Leisure Limited,http://statistics.data.gov.uk/id/local-authority/37UD,Leisure,LEIS,Leisure Centres,LCEN,Liberty Leisure Limited / Chilwell Olympia,Trade Refuse Collection,1235,Other Prem,OthPrem,11/05/2018,V001943,2457.78,Broxtowe Borough Council,"2,680",BAC001218
Liberty Leisure Limited,http://statistics.data.gov.uk/id/local-authority/37UD,Leisure,LEIS,Leisure Centres,LCEN,Liberty Leisure Limited / Chilwell Olympia,NNDR,1400,Other Prem,OthPrem,06/07/2018,V002186,10316.35,Broxtowe Borough Council,"29,136",BAC001377
Liberty Leisure Limited,http://statistics.data.gov.uk/id/local-authority/37UD,Leisure,LEIS,Leisure Centres,LCEN,Liberty Leisure Limited / Chilwell Olympia,NNDR,1400,Other Prem,OthPrem,06/07/2018,V002185,9317.7,Broxtowe Borough Council,"29,136",BAC001377
Liberty Leisure Limited,http://statistics.data.gov.uk/id/local-authority/37UD,Leisure,LEIS,Leisure Centres,LCEN,Liberty Leisure Limited / Chilwell Olympia,NNDR,1400,Other Prem,OthPrem,06/07/2018,V002184,8172,Broxtowe Borough Council,"29,136",BAC001377
Liberty Leisure Limited,http://statistics.data.gov.uk/id/local-authority/37UD,Culture and Heritage,CULT,Heritage,LHER,Liberty Leisure Limited / Chilwell Olympia,NNDR,1400,Other Prem,OthPrem,06/07/2018,V002183,591.12,Broxtowe Borough Council,"29,136",BAC001377
Liberty Leisure Limited,http://statistics.data.gov.uk/id/local-authority/37UD,Leisure,LEIS,Leisure Development,LDEV,Liberty Leisure Limited / Chilwell Olympia,Advertising,3412,Advertising,Advert,03/08/2018,V002348,515,Broxtowe Borough Council,929,BAC001463
Liberty Leisure Limited,http://statistics.data.gov.uk/id/local-authority/37UD,Leisure,LEIS,Leisure Centres,LCEN,Liberty Leisure Limited / Chilwell Olympia,Water Charges,1410,Utilities,Utility,31/08/2018,V002345,9315.69,Broxtowe Borough Council,"97,152",BAC001547
Liberty Leisure Limited,http://statistics.data.gov.uk/id/local-authority/37UD,Leisure,LEIS,Leisure Centres,LCEN,Liberty Leisure Limited / Chilwell Olympia,Water Charges,1410,Utilities,Utility,31/08/2018,V002345,8700.59,Broxtowe Borough Council,"97,152",BAC001547
Liberty Leisure Limited,http://statistics.data.gov.uk/id/local-authority/37UD,Leisure,LEIS,Leisure Centres,LCEN,Liberty Leisure Limited / Chilwell Olympia,Water Charges,1410,Utilities,Utility,31/08/2018,V002345,6462.56,Broxtowe Borough Council,"97,152",BAC001547
Liberty Leisure Limited,http://statistics.data.gov.uk/id/local-authority/37UD,Leisure,LEIS,Leisure Centres,LCEN,Liberty Leisure Limited / Chilwell Olympia,Gas,1320,Utilities,Utility,31/08/2018,V002345,5656.7,Broxtowe Borough Council,"97,152",BAC001547
Liberty Leisure Limited,http://statistics.data.gov.uk/id/local-authority/37UD,Leisure,LEIS,Leisure Centres,LCEN,Liberty Leisure Limited / Chilwell Olympia,Gas,1320,Utilities,Utility,31/08/2018,V002345,4997.47,Broxtowe Borough Council,"97,152",BAC001547
Liberty Leisure Limited,http://statistics.data.gov.uk/id/local-authority/37UD,Leisure,LEIS,Leisure Centres,LCEN,Liberty Leisure Limited / Chilwell Olympia,Gas,1320,Utilities,Utility,31/08/2018,V002345,4799,Broxtowe Borough Council,"97,152",BAC001547
Liberty Leisure Limited,http://statistics.data.gov.uk/id/local-authority/37UD,Leisure,LEIS,Leisure Centres,LCEN,Liberty Leisure Limited / Chilwell Olympia,Gas,1320,Utilities,Utility,31/08/2018,V002345,4400,Broxtowe Borough Council,"97,152",BAC001547
Liberty Leisure Limited,http://statistics.data.gov.uk/id/local-authority/37UD,Leisure,LEIS,Leisure Centres,LCEN,Liberty Leisure Limited / Chilwell Olympia,Water Charges,1410,Utilities,Utility,31/08/2018,V002345,3873.97,Broxtowe Borough Council,"97,152",BAC001547
Liberty Leisure Limited,http://statistics.data.gov.uk/id/local-authority/37UD,Leisure,LEIS,Leisure Centres,LCEN,Liberty Leisure Limited / Chilwell Olympia,Electricity,1310,Utilities,Utility,31/08/2018,V002345,3760.3,Broxtowe Borough Council,"97,152",BAC001547
Liberty Leisure Limited,http://statistics.data.gov.uk/id/local-authority/37UD,Leisure,LEIS,Leisure Centres,LCEN,Liberty Leisure Limited / Chilwell Olympia,Electricity,1310,Utilities,Utility,31/08/2018,V002345,3452.9,Broxtowe Borough Council,"97,152",BAC001547
Liberty Leisure Limited,http://statistics.data.gov.uk/id/local-authority/37UD,Leisure,LEIS,Leisure Centres,LCEN,Liberty Leisure Limited / Chilwell Olympia,Electricity,1310,Utilities,Utility,31/08/2018,V002345,3446.6,Broxtowe Borough Council,"97,152",BAC001547
Liberty Leisure Limited,http://statistics.data.gov.uk/id/local-authority/37UD,Leisure,LEIS,Leisure Centres,LCEN,Liberty Leisure Limited / Chilwell Olympia,Electricity,1310,Utilities,Utility,31/08/2018,V002345,3380,Broxtowe Borough Council,"97,152",BAC001547
Liberty Leisure Limited,http://statistics.data.gov.uk/id/local-authority/37UD,Leisure,LEIS,Leisure Centres,LCEN,Liberty Leisure Limited / Chilwell Olympia,Electricity,1310,Utilities,Utility,31/08/2018,V002345,2936.05,Broxtowe Borough Council,"97,152",BAC001547
Liberty Leisure Limited,http://statistics.data.gov.uk/id/local-authority/37UD,Leisure,LEIS,Leisure Centres,LCEN,Liberty Leisure Limited / Chilwell Olympia,Water Charges,1410,Utilities,Utility,31/08/2018,V002345,1800,Broxtowe Borough Council,"97,152",BAC001547
Liberty Leisure Limited,http://statistics.data.gov.uk/id/local-authority/37UD,Leisure,LEIS,Leisure Centres,LCEN,Liberty Leisure Limited / Chilwell Olympia,Electricity,1310,Utilities,Utility,31/08/2018,V002345,1550.81,Broxtowe Borough Council,"97,152",BAC001547
Liberty Leisure Limited,http://statistics.data.gov.uk/id/local-authority/37UD,Leisure,LEIS,Leisure Centres,LCEN,Liberty Leisure Limited / Chilwell Olympia,Water Charges,1410,Utilities,Utility,31/08/2018,V002345,1500.97,Broxtowe Borough Council,"97,152",BAC001547
Liberty Leisure Limited,http://statistics.data.gov.uk/id/local-authority/37UD,Leisure,LEIS,Leisure Centres,LCEN,Liberty Leisure Limited / Chilwell Olympia,Electricity,1310,Utilities,Utility,31/08/2018,V002345,1470,Broxtowe Borough Council,"97,152",BAC001547
Liberty Leisure Limited,http://statistics.data.gov.uk/id/local-authority/37UD,Leisure,LEIS,Leisure Centres,LCEN,Liberty Leisure Limited / Chilwell Olympia,Electricity,1310,Utilities,Utility,31/08/2018,V002345,1395,Broxtowe Borough Council,"97,152",BAC001547
Liberty Leisure Limited,http://statistics.data.gov.uk/id/local-authority/37UD,Leisure,LEIS,Leisure Centres,LCEN,Liberty Leisure Limited / Chilwell Olympia,Water Charges,1410,Utilities,Utility,31/08/2018,V002345,1293.11,Broxtowe Borough Council,"97,152",BAC001547
Liberty Leisure Limited,http://statistics.data.gov.uk/id/local-authority/37UD,Leisure,LEIS,Leisure Centres,LCEN,Liberty Leisure Limited / Chilwell Olympia,Water Charges,1410,Utilities,Utility,31/08/2018,V002345,1293.11,Broxtowe Borough Council,"97,152",BAC001547
Liberty Leisure Limited,http://statistics.data.gov.uk/id/local-authority/37UD,Leisure,LEIS,Leisure Centres,LCEN,Liberty Leisure Limited / Chilwell Olympia,Water Charges,1410,Utilities,Utility,31/08/2018,V002345,1281.96,Broxtowe Borough Council,"97,152",BAC001547
Liberty Leisure Limited,http://statistics.data.gov.uk/id/local-authority/37UD,Leisure,LEIS,Leisure Centres,LCEN,Liberty Leisure Limited / Chilwell Olympia,Water Charges,1410,Utilities,Utility,31/08/2018,V002345,1213.93,Broxtowe Borough Council,"97,152",BAC001547
Liberty Leisure Limited,http://statistics.data.gov.uk/id/local-authority/37UD,Culture and Heritage,CULT,Heritage,LHER,Liberty Leisure Limited / Chilwell Olympia,Security - Public Buildings,3626,Security Costs,Secure,31/08/2018,V002345,901.58,Broxtowe Borough Council,"97,152",BAC001547
Liberty Leisure Limited,http://statistics.data.gov.uk/id/local-authority/37UD,Culture and Heritage,CULT,Heritage,LHER,Liberty Leisure Limited / Chilwell Olympia,Electricity,1310,Utilities,Utility,31/08/2018,V002345,638.91,Broxtowe Borough Council,"97,152",BAC001547
Liberty Leisure Limited,http://statistics.data.gov.uk/id/local-authority/37UD,Culture and Heritage,CULT,Heritage,LHER,Liberty Leisure Limited / Chilwell Olympia,Electricity,1310,Utilities,Utility,31/08/2018,V002345,619.64,Broxtowe Borough Council,"97,152",BAC001547
Liberty Leisure Limited,http://statistics.data.gov.uk/id/local-authority/37UD,Culture and Heritage,CULT,Heritage,LHER,Liberty Leisure Limited / Chilwell Olympia,Electricity,1310,Utilities,Utility,31/08/2018,V002345,607.8,Broxtowe Borough Council,"97,152",BAC001547
Liberty Leisure Limited,http://statistics.data.gov.uk/id/local-authority/37UD,Culture and Heritage,CULT,Heritage,LHER,Liberty Leisure Limited / Chilwell Olympia,Electricity,1310,Utilities,Utility,31/08/2018,V002345,603.05,Broxtowe Borough Council,"97,152",BAC001547
Liberty Leisure Limited,http://statistics.data.gov.uk/id/local-authority/37UD,Culture and Heritage,CULT,Heritage,LHER,Liberty Leisure Limited / Chilwell Olympia,Electricity,1310,Utilities,Utility,31/08/2018,V002345,521.69,Broxtowe Borough Council,"97,152",BAC001547
Liberty Leisure Limited,http://statistics.data.gov.uk/id/local-authority/37UD,Culture and Heritage,CULT,Heritage,LHER,Liberty Leisure Limited / Chilwell Olympia,Electricity,1310,Utilities,Utility,31/08/2018,V002345,517.67,Broxtowe Borough Council,"97,152",BAC001547
Liberty Leisure Limited,http://statistics.data.gov.uk/id/local-authority/37UD,Culture and Heritage,CULT,Heritage,LHER,Liberty Leisure Limited / Chilwell Olympia,Electricity,1310,Utilities,Utility,31/08/2018,V002345,491.98,Broxtowe Borough Council,"97,152",BAC001547
Liberty Leisure Limited,http://statistics.data.gov.uk/id/local-authority/37UD,Leisure,LEIS,Leisure Centres,LCEN,Liberty Leisure Limited / Chilwell Olympia,Water Charges,1410,Utilities,Utility,31/08/2018,V002345,484.07,Broxtowe Borough Council,"97,152",BAC001547
Liberty Leisure Limited,http://statistics.data.gov.uk/id/local-authority/37UD,Culture and Heritage,CULT,Heritage,LHER,Liberty Leisure Limited / Chilwell Olympia,Electricity,1310,Utilities,Utility,31/08/2018,V002345,462.29,Broxtowe Borough Council,"97,152",BAC001547
Liberty Leisure Limited,http://statistics.data.gov.uk/id/local-authority/37UD,Culture and Heritage,CULT,Heritage,LHER,Liberty Leisure Limited / Chilwell Olympia,Electricity,1310,Utilities,Utility,31/08/2018,V002345,398.67,Broxtowe Borough Council,"97,152",BAC001547
Liberty Leisure Limited,http://statistics.data.gov.uk/id/local-authority/37UD,Culture and Heritage,CULT,Heritage,LHER,Liberty Leisure Limited / Chilwell Olympia,Electricity,1310,Utilities,Utility,31/08/2018,V002345,330,Broxtowe Borough Council,"97,152",BAC001547
Liberty Leisure Limited,http://statistics.data.gov.uk/id/local-authority/37UD,Culture and Heritage,CULT,Heritage,LHER,Liberty Leisure Limited / Chilwell Olympia,Electricity,1310,Utilities,Utility,31/08/2018,V002345,301.14,Broxtowe Borough Council,"97,152",BAC001547
Liberty Leisure Limited,http://statistics.data.gov.uk/id/local-authority/37UD,Culture and Heritage,CULT,Heritage,LHER,Liberty Leisure Limited / Chilwell Olympia,Electricity,1310,Utilities,Utility,31/08/2018,V002345,251.7,Broxtowe Borough Council,"97,152",BAC001547
Liberty Leisure Limited,http://statistics.data.gov.uk/id/local-authority/37UD,Leisure,LEIS,Leisure Centres,LCEN,Liberty Leisure Limited / Bramcote Leisure Centre,Trade Refuse Collection,1235,Other Prem,OthPrem,12/10/2018,V002652,2457.78,Broxtowe Borough Council,"6,899",BAC001699
Liberty Leisure Limited,http://statistics.data.gov.uk/id/local-authority/37UD,Leisure,LEIS,Leisure Centres,LCEN,Liberty Leisure Limited / Kimberley Leisure Centre,Trade Refuse Collection,1235,Other Prem,OthPrem,12/10/2018,V002692,2457.78,Broxtowe Borough Council,"6,899",BAC001699
Liberty Leisure Limited,http://statistics.data.gov.uk/id/local-authority/37UD,Leisure,LEIS,Leisure Management,LMAN,Liberty Leisure Limited / Chilwell Olympia,Professional Fees,730,Indirect Employee Exp Oncosts,Oncosts,12/10/2018,V002673,600,Broxtowe Borough Council,"6,899",BAC001699
Liberty Leisure Limited,http://statistics.data.gov.uk/id/local-authority/37UD,Culture and Heritage,CULT,Events,LEVE,Liberty Leisure Limited / Events,Promotion of The Arts,3066,Office Supplies,Offsup,12/10/2018,V002653,491.94,Broxtowe Borough Council,"6,899",BAC001699
Liberty Leisure Limited,http://statistics.data.gov.uk/id/local-authority/37UD,Leisure,LEIS,Leisure Development,LDEV,Liberty Leisure Limited / Chilwell Olympia,Advertising,3412,Advertising,Advert,12/10/2018,V002676,300,Broxtowe Borough Council,"6,899",BAC001699
Liberty Leisure Limited,http://statistics.data.gov.uk/id/local-authority/37UD,Leisure,LEIS,Leisure Centres,LCEN,Liberty Leisure Limited / Chilwell Olympia,Trade Refuse Collection,1235,Other Prem,OthPrem,26/10/2018,V002749,2457.78,Broxtowe Borough Council,"3,674",BAC001735
Liberty Leisure Limited,http://statistics.data.gov.uk/id/local-authority/37UD,Culture and Heritage,CULT,Events,LEVE,Liberty Leisure Limited / Events,Promotion of The Arts,3066,Office Supplies,Offsup,23/11/2018,V002872,326.9,Broxtowe Borough Council,932,BAC001820
Liberty Leisure Limited,http://statistics.data.gov.uk/id/local-authority/37UD,Leisure,LEIS,Leisure Management,LMAN,Liberty Leisure Limited / Chilwell Olympia,Third Party Payments,4200,Other Third Party Payments,OtherTP,11/01/2019,V003101,1750,Broxtowe Borough Council,2100,BAC001975
Liberty Leisure Limited,http://statistics.data.gov.uk/id/local-authority/37UD,Leisure,LEIS,Leisure Centres,LCEN,Liberty Leisure Limited / Kimberley Leisure Centre,Advertising,3412,Advertising,Advert,18/01/2019,V003150,250,Broxtowe Borough Council,330,BAC002010
Liberty Leisure Limited,http://statistics.data.gov.uk/id/local-authority/37UD,Culture and Heritage,CULT,Events,LEVE,Liberty Leisure Limited / Events,Promotion of The Arts,3066,Office Supplies,Offsup,01/02/2019,V003179,327.96,Broxtowe Borough Council,1013.26,BAC002036
Liberty Leisure Limited,http://statistics.data.gov.uk/id/local-authority/37UD,Leisure,LEIS,Leisure Management,LMAN,Liberty Leisure Limited / Kimberley Leisure Centre,Third Party Payments,4200,Other Third Party Payments,OtherTP,15/02/2019,V003307,153559,Broxtowe Borough Council,185363.1,BAC002067
Liberty Leisure Limited,http://statistics.data.gov.uk/id/local-authority/37UD,Culture and Heritage,CULT,Heritage,LHER,Liberty Leisure Limited / DHL Museum,Equipment Storage & Conservation,3008,Other Supplies & Services,OtherSS,15/02/2019,V003264,715,Broxtowe Borough Council,185363.1,BAC002067
Liberty Leisure Limited,http://statistics.data.gov.uk/id/local-authority/37UD,Leisure,LEIS,Leisure Centres,LCEN,Liberty Leisure Limited / Bramcote Leisure Centre,Printing & Stationery,3300,Printing,Print,01/03/2019,V003345,330,Broxtowe Borough Council,537.6,BAC002122
Liberty Leisure Limited,http://statistics.data.gov.uk/id/local-authority/37UD,Leisure,LEIS,Leisure Management,LMAN,Liberty Leisure Limited / Chilwell Olympia,Third Party Payments,4200,Other Third Party Payments,OtherTP,29/03/2019,V003511,88427,Broxtowe Borough Council,329613.14,BAC002203
Liberty Leisure Limited,http://statistics.data.gov.uk/id/local-authority/37UD,Leisure,LEIS,Leisure Management,LMAN,Liberty Leisure Limited / Chilwell Olympia,Third Party Payments,4200,Other Third Party Payments,OtherTP,29/03/2019,V003511,28695,Broxtowe Borough Council,329613.14,BAC002203
Liberty Leisure Limited,http://statistics.data.gov.uk/id/local-authority/37UD,Leisure,LEIS,Leisure Centres,LCEN,Liberty Leisure Limited / Bramcote Leisure Centre,Water Charges,1410,Utilities,Utility,29/03/2019,V003468,26667.07,Broxtowe Borough Council,329613.14,BAC002203
Liberty Leisure Limited,http://statistics.data.gov.uk/id/local-authority/37UD,Leisure,LEIS,Leisure Centres,LCEN,Liberty Leisure Limited / Bramcote Leisure Centre,Gas,1320,Utilities,Utility,29/03/2019,V003468,26034.62,Broxtowe Borough Council,329613.14,BAC002203
Liberty Leisure Limited,http://statistics.data.gov.uk/id/local-authority/37UD,Leisure,LEIS,Leisure Management,LMAN,Liberty Leisure Limited / Chilwell Olympia,Third Party Payments,4200,Other Third Party Payments,OtherTP,29/03/2019,V003511,24392,Broxtowe Borough Council,329613.14,BAC002203
Liberty Leisure Limited,http://statistics.data.gov.uk/id/local-authority/37UD,Leisure,LEIS,Leisure Centres,LCEN,Liberty Leisure Limited / Kimberley Leisure Centre,Electricity,1310,Utilities,Utility,29/03/2019,V003476,23025.16,Broxtowe Borough Council,329613.14,BAC002203
Liberty Leisure Limited,http://statistics.data.gov.uk/id/local-authority/37UD,Leisure,LEIS,Leisure Centres,LCEN,Liberty Leisure Limited / Bramcote Leisure Centre,Electricity,1310,Utilities,Utility,29/03/2019,V003468,13672.66,Broxtowe Borough Council,329613.14,BAC002203
Liberty Leisure Limited,http://statistics.data.gov.uk/id/local-authority/37UD,Leisure,LEIS,Leisure Centres,LCEN,Liberty Leisure Limited / Chilwell Olympia,Electricity,1310,Utilities,Utility,29/03/2019,V003510,13558.61,Broxtowe Borough Council,329613.14,BAC002203
Liberty Leisure Limited,http://statistics.data.gov.uk/id/local-authority/37UD,Leisure,LEIS,Leisure Management,LMAN,Liberty Leisure Limited / Chilwell Olympia,Third Party Payments,4200,Other Third Party Payments,OtherTP,29/03/2019,V003511,9025,Broxtowe Borough Council,329613.14,BAC002203
Liberty Leisure Limited,http://statistics.data.gov.uk/id/local-authority/37UD,Leisure,LEIS,Leisure Centres,LCEN,Liberty Leisure Limited / Chilwell Olympia,Electricity,1310,Utilities,Utility,29/03/2019,V003510,7149.65,Broxtowe Borough Council,329613.14,BAC002203
Liberty Leisure Limited,http://statistics.data.gov.uk/id/local-authority/37UD,Leisure,LEIS,Leisure Centres,LCEN,Liberty Leisure Limited / Chilwell Olympia,Gas,1320,Utilities,Utility,29/03/2019,V003510,3098.45,Broxtowe Borough Council,329613.14,BAC002203
Liberty Leisure Limited,http://statistics.data.gov.uk/id/local-authority/37UD,Leisure,LEIS,Leisure Management,LMAN,Liberty Leisure Limited / Chilwell Olympia,Third Party Payments,4200,Other Third Party Payments,OtherTP,29/03/2019,V003511,2205,Broxtowe Borough Council,329613.14,BAC002203
Liberty Leisure Limited,http://statistics.data.gov.uk/id/local-authority/37UD,Culture and Heritage,CULT,Heritage,LHER,Liberty Leisure Limited / DHL Museum,Electricity,1310,Utilities,Utility,29/03/2019,V003485,1311.19,Broxtowe Borough Council,329613.14,BAC002203
Liberty Leisure Limited,http://statistics.data.gov.uk/id/local-authority/37UD,Leisure,LEIS,Leisure Centres,LCEN,Liberty Leisure Limited / Kimberley Leisure Centre,Water Charges,1410,Utilities,Utility,29/03/2019,V003476,1140.71,Broxtowe Borough Council,329613.14,BAC002203
Liberty Leisure Limited,http://statistics.data.gov.uk/id/local-authority/37UD,Culture and Heritage,CULT,Events,LEVE,Liberty Leisure Limited / Chilwell Olympia,Promotion of The Arts,3066,Office Supplies,Offsup,29/03/2019,V003510,1121.74,Broxtowe Borough Council,329613.14,BAC002203
Liberty Leisure Limited,http://statistics.data.gov.uk/id/local-authority/37UD,Culture and Heritage,CULT,Heritage,LHER,Liberty Leisure Limited / Chilwell Olympia,Electricity,1310,Utilities,Utility,29/03/2019,V003510,877.57,Broxtowe Borough Council,329613.14,BAC002203
Liberty Leisure Limited,http://statistics.data.gov.uk/id/local-authority/37UD,Leisure,LEIS,Leisure Development,LDEV,Liberty Leisure Limited / Chilwell Olympia,Postages,3411,Other Supplies & Services,OtherSS,29/03/2019,V003503,863.78,Broxtowe Borough Council,329613.14,BAC002203
Liberty Leisure Limited,http://statistics.data.gov.uk/id/local-authority/37UD,Leisure,LEIS,Leisure Management,LMAN,Liberty Leisure Limited / Chilwell Olympia,Third Party Payments,4200,Other Third Party Payments,OtherTP,29/03/2019,V003511,815,Broxtowe Borough Council,329613.14,BAC002203
Liberty Leisure Limited,http://statistics.data.gov.uk/id/local-authority/37UD,Leisure,LEIS,Leisure Management,LMAN,Liberty Leisure Limited / Chilwell Olympia,Subscriptions,3730,Other Supplies & Services,OtherSS,29/03/2019,V003500,668,Broxtowe Borough Council,329613.14,BAC002203
Liberty Leisure Limited,http://statistics.data.gov.uk/id/local-authority/37UD,Leisure,LEIS,Leisure Management,LMAN,Liberty Leisure Limited / Chilwell Olympia,Professional Fees,730,Indirect Employee Exp Oncosts,Oncosts,29/03/2019,V003510,460.8,Broxtowe Borough Council,329613.14,BAC002203
Liberty Leisure Limited,http://statistics.data.gov.uk/id/local-authority/37UD,Culture and Heritage,CULT,Events,LEVE,Liberty Leisure Limited / Chilwell Olympia,Printing & Stationery,3300,Printing,Print,29/03/2019,V003510,399.44,Broxtowe Borough Council,329613.14,BAC002203
Liberty Leisure Limited,http://statistics.data.gov.uk/id/local-authority/37UD,Leisure,LEIS,Leisure Centres,LCEN,Liberty Leisure Limited / Kimberley Leisure Centre,Leisure DD Income,8998,Fees & Charges,Fees,29/03/2019,V003476,323.4,Broxtowe Borough Council,329613.14,BAC002203
Liberty Leisure Limited,http://statistics.data.gov.uk/id/local-authority/37UD,Leisure,LEIS,Leisure Centres,LCEN,Liberty Leisure Limited / Kimberley Leisure Centre,NNDR,1400,Other Prem,OthPrem,12/04/2019,V003611,10382.4,Broxtowe Borough Council,30925.71,BAC002269
Liberty Leisure Limited,http://statistics.data.gov.uk/id/local-authority/37UD,Leisure,LEIS,Leisure Centres,LCEN,Liberty Leisure Limited / Kimberley Leisure Centre,NNDR,1400,Other Prem,OthPrem,12/04/2019,V003613,9525.6,Broxtowe Borough Council,30925.71,BAC002269
Liberty Leisure Limited,http://statistics.data.gov.uk/id/local-authority/37UD,Leisure,LEIS,Leisure Centres,LCEN,Liberty Leisure Limited / Kimberley Leisure Centre,NNDR,1400,Other Prem,OthPrem,12/04/2019,V003614,9324,Broxtowe Borough Council,30925.71,BAC002269
Liberty Leisure Limited,http://statistics.data.gov.uk/id/local-authority/37UD,Leisure,LEIS,Leisure Centres,LCEN,Liberty Leisure Limited / Kimberley Leisure Centre,NNDR,1400,Other Prem,OthPrem,12/04/2019,V003612,663.03,Broxtowe Borough Council,30925.71,BAC002269
Liberty Leisure Limited,http://statistics.data.gov.uk/id/local-authority/37UD,Leisure,LEIS,Leisure Development,LDEV,Liberty Leisure Limited / Chilwell Olympia,Advertising,3412,Advertising,Advert,12/04/2019,V003542,300,Broxtowe Borough Council,30925.71,BAC002269
Liberty Leisure Limited,http://statistics.data.gov.uk/id/local-authority/37UD,Leisure,LEIS,Leisure Development,LDEV,Liberty Leisure Limited / Chilwell Olympia,Advertising,3412,Advertising,Advert,12/04/2019,V003543,250,Broxtowe Borough Council,30925.71,BAC002269
Liberty Leisure Limited,http://statistics.data.gov.uk/id/local-authority/37UD,Leisure,LEIS,Leisure Centres,LCEN,Liberty Leisure Limited / Chilwell Olympia,Telephones,3400,Telephones,Tele,26/04/2019,V003694,2300,Broxtowe Borough Council,6300,BAC002306
Liberty Leisure Limited,http://statistics.data.gov.uk/id/local-authority/37UD,Leisure,LEIS,Leisure Centres,LCEN,Liberty Leisure Limited / Chilwell Olympia,Telephones,3400,Telephones,Tele,26/04/2019,V003694,1200,Broxtowe Borough Council,6300,BAC002306
Liberty Leisure Limited,http://statistics.data.gov.uk/id/local-authority/37UD,Leisure,LEIS,Leisure Centres,LCEN,Liberty Leisure Limited / Chilwell Olympia,Telephones,3400,Telephones,Tele,26/04/2019,V003694,1000,Broxtowe Borough Council,6300,BAC002306
Liberty Leisure Limited,http://statistics.data.gov.uk/id/local-authority/37UD,Culture and Heritage,CULT,Heritage,LHER,Liberty Leisure Limited / Chilwell Olympia,Telephones,3400,Telephones,Tele,26/04/2019,V003694,750,Broxtowe Borough Council,6300,BAC002306
Liberty Leisure Limited,http://statistics.data.gov.uk/id/local-authority/37UD,Culture and Heritage,CULT,Events,LEVE,Liberty Leisure Limited / Events,Promotion of The Arts,3066,Office Supplies,Offsup,13/09/2019,V004282,811.7,Broxtowe Borough Council,1190.48,BAC002730
Liberty Leisure Limited,http://statistics.data.gov.uk/id/local-authority/37UD,Culture and Heritage,CULT,Events,LEVE,Liberty Leisure Limited / Events,Promotion of The Arts,3066,Office Supplies,Offsup,13/09/2019,V004282,180.37,Broxtowe Borough Council,1190.48,BAC002730
Liberty Leisure Limited,http://statistics.data.gov.uk/id/local-authority/37UD,Leisure,LEIS,Leisure Management,LMAN,Liberty Leisure Limited / Liberty Leisure Development,Professional Fees,0730,Indirect Employee Exp Oncosts,Oncosts,27/09/2019,V004327,1060,Broxtowe Borough Council,2352.62,BAC002772
Liberty Leisure Limited,http://statistics.data.gov.uk/id/local-authority/37UD,Culture and Heritage,CULT,Events,LEVE,Liberty Leisure Limited / Events,Promotion of The Arts,3066,Office Supplies,Offsup,27/09/2019,V004402,70.7,Broxtowe Borough Council,2352.62,BAC002772
Liberty Leisure Limited,http://statistics.data.gov.uk/id/local-authority/37UD,Culture and Heritage,CULT,Events,LEVE,Liberty Leisure Limited / Events,Promotion of The Arts,3066,Office Supplies,Offsup,27/09/2019,V004401,720.72,Broxtowe Borough Council,2352.62,BAC002772
Liberty Leisure Limited,http://statistics.data.gov.uk/id/local-authority/37UD,Leisure,LEIS,Leisure Development,LDEV,Liberty Leisure Limited / Liberty Leisure Development,Advertising,3412,Advertising,Advert,27/09/2019,V004329,175,Broxtowe Borough Council,2352.62,BAC002772
Liberty Leisure Limited,http://statistics.data.gov.uk/id/local-authority/37UD,Leisure,LEIS,Leisure Centres,LCEN,Liberty Leisure Limited / Kimberley Leisure Centre,Repairs & Maintenance,1000,Central Pot,Central,27/09/2019,V004361,66,Broxtowe Borough Council,2352.62,BAC002772
Liberty Leisure Limited,http://statistics.data.gov.uk/id/local-authority/37UD,Leisure,LEIS,Leisure Development,LDEV,Liberty Leisure Limited / Chilwell Olympia,Direct Debit Fee,3600,Other Supplies & Services,OtherSS,23/11/2018,V002844,340,CAP2,408,BAC001858
Liberty Leisure Limited,http://statistics.data.gov.uk/id/local-authority/37UD,Leisure,LEIS,Leisure Development,LDEV,Liberty Leisure Limited / Chilwell Olympia,Advertising,3412,Advertising,Advert,03/08/2018,V002271,885,Cascade 3D,"1,178",BAC001501
Liberty Leisure Limited,http://statistics.data.gov.uk/id/local-authority/37UD,Leisure,LEIS,Leisure Centres,LCEN,Liberty Leisure Limited / Kimberley Leisure Centre,Cleaning Materials,1510,Other Prem,OthPrem,03/04/2018,V001658,324.1,Censol Industrial Products,389,BAC001087
Liberty Leisure Limited,http://statistics.data.gov.uk/id/local-authority/37UD,Leisure,LEIS,Leisure Centres,LCEN,Liberty Leisure Limited / Kimberley Leisure Centre,Cleaning Materials,1510,Other Prem,OthPrem,11/05/2018,V001950,499.3,Censol Industrial Products,599,BAC001220
Liberty Leisure Limited,http://statistics.data.gov.uk/id/local-authority/37UD,Leisure,LEIS,Leisure Centres,LCEN,Liberty Leisure Limited / Kimberley Leisure Centre,Cleaning Materials,1510,Other Prem,OthPrem,08/06/2018,V002071,526.18,Censol Industrial Products,631,BAC001309
Liberty Leisure Limited,http://statistics.data.gov.uk/id/local-authority/37UD,Leisure,LEIS,Leisure Centres,LCEN,Liberty Leisure Limited / Kimberley Leisure Centre,Cleaning Materials,1510,Other Prem,OthPrem,06/07/2018,V002179,355.55,Censol Industrial Products,427,BAC001379
Liberty Leisure Limited,http://statistics.data.gov.uk/id/local-authority/37UD,Leisure,LEIS,Leisure Centres,LCEN,Liberty Leisure Limited / Kimberley Leisure Centre,Cleaning Materials,1510,Other Prem,OthPrem,03/08/2018,V002338,553.06,Censol Industrial Products,732,BAC001464
Liberty Leisure Limited,http://statistics.data.gov.uk/id/local-authority/37UD,Leisure,LEIS,Leisure Centres,LCEN,Liberty Leisure Limited / Kimberley Leisure Centre,Cleaning Materials,1510,Other Prem,OthPrem,14/09/2018,V002540,561.84,Censol Industrial Products,"93,053",BAC001604
Liberty Leisure Limited,http://statistics.data.gov.uk/id/local-authority/37UD,Leisure,LEIS,Leisure Centres,LCEN,Liberty Leisure Limited / Kimberley Leisure Centre,Cleaning Materials,1510,Other Prem,OthPrem,26/10/2018,V002721,499.99,Censol Industrial Products,600,BAC001737
Liberty Leisure Limited,http://statistics.data.gov.uk/id/local-authority/37UD,Leisure,LEIS,Leisure Centres,LCEN,Liberty Leisure Limited / Kimberley Leisure Centre,Cleaning Materials,1510,Other Prem,OthPrem,23/11/2018,V002896,487.8,Censol Industrial Products,585,BAC001822
Liberty Leisure Limited,http://statistics.data.gov.uk/id/local-authority/37UD,Leisure,LEIS,Leisure Centres,LCEN,Liberty Leisure Limited / Kimberley Leisure Centre,Cleaning Materials,1510,Other Prem,OthPrem,21/12/2018,V003072,267.7,Censol Industrial Products,390,BAC001914
Liberty Leisure Limited,http://statistics.data.gov.uk/id/local-authority/37UD,Leisure,LEIS,Leisure Centres,LCEN,Liberty Leisure Limited / Kimberley Leisure Centre,Cleaning Materials,1510,Other Prem,OthPrem,01/02/2019,V003243,396.57,Censol Industrial Products,475.89,BAC002037
Liberty Leisure Limited,http://statistics.data.gov.uk/id/local-authority/37UD,Leisure,LEIS,Leisure Centres,LCEN,Liberty Leisure Limited / Kimberley Leisure Centre,Cleaning Materials,1510,Other Prem,OthPrem,15/03/2019,V003371,500.56,Censol Industrial Products,600.68,BAC002150
Liberty Leisure Limited,http://statistics.data.gov.uk/id/local-authority/37UD,Leisure,LEIS,Leisure Centres,LCEN,Liberty Leisure Limited / Kimberley Leisure Centre,Cleaning Materials,1510,Other Prem,OthPrem,12/04/2019,V003641,411.18,Censol Industrial Products,500.86,BAC002270
Liberty Leisure Limited,http://statistics.data.gov.uk/id/local-authority/37UD,Leisure,LEIS,Leisure Centres,LCEN,Liberty Leisure Limited / Kimberley Leisure Centre,Cleaning Materials,1510,Other Prem,OthPrem,24/05/2019,V003788,405.15,Censol Industrial Products,486.19,BAC002375
Liberty Leisure Limited,http://statistics.data.gov.uk/id/local-authority/37UD,Leisure,LEIS,Leisure Centres,LCEN,Liberty Leisure Limited / Kimberley Leisure Centre,Cleaning Materials,1510,Other Prem,OthPrem,19/07/2019,V003994,412.6,Censol Industrial Products,495.12,BAC002546
Liberty Leisure Limited,http://statistics.data.gov.uk/id/local-authority/37UD,Leisure,LEIS,Leisure Centres,LCEN,Liberty Leisure Limited / Bramcote Leisure Centre,Chemicals,3152,Other Supplies & Services,OtherSS,30/08/2019,V004280,57.2,Censol Industrial Products,501.39,BAC002676
Liberty Leisure Limited,http://statistics.data.gov.uk/id/local-authority/37UD,Leisure,LEIS,Leisure Centres,LCEN,Liberty Leisure Limited / Kimberley Leisure Centre,Cleaning Materials,1510,Other Prem,OthPrem,30/08/2019,V004189,360.62,Censol Industrial Products,501.39,BAC002676
Liberty Leisure Limited,http://statistics.data.gov.uk/id/local-authority/37UD,Leisure,LEIS,Leisure Centres,LCEN,Liberty Leisure Limited / Chilwell Olympia,Repairs & Maintenance,1000,Central Pot,Central,29/03/2019,V003552,2675.77,Central Security Systems Ltd,3210.92,BAC002205
Liberty Leisure Limited,http://statistics.data.gov.uk/id/local-authority/37UD,Leisure,LEIS,Leisure Centres,LCEN,Liberty Leisure Limited / Chilwell Olympia,Water Charges,1410,Utilities,Utility,03/04/2018,V001697,814.91,Chilwell School,815,BAC001108
Liberty Leisure Limited,http://statistics.data.gov.uk/id/local-authority/37UD,Leisure,LEIS,Leisure Centres,LCEN,Liberty Leisure Limited / Chilwell Olympia,Electricity,1310,Utilities,Utility,27/04/2018,V001888,1169.88,Chilwell School,"1,228",BAC001190
Liberty Leisure Limited,http://statistics.data.gov.uk/id/local-authority/37UD,Leisure,LEIS,Leisure Centres,LCEN,Liberty Leisure Limited / Chilwell Olympia,Solid Fuel,1330,Utilities,Utility,11/05/2018,V001940,1558.53,Chilwell School,"2,775",BAC001231
Liberty Leisure Limited,http://statistics.data.gov.uk/id/local-authority/37UD,Leisure,LEIS,Leisure Centres,LCEN,Liberty Leisure Limited / Chilwell Olympia,Water Charges,1410,Utilities,Utility,11/05/2018,V001960,905.14,Chilwell School,"2,775",BAC001231
Liberty Leisure Limited,http://statistics.data.gov.uk/id/local-authority/37UD,Leisure,LEIS,Leisure Centres,LCEN,Liberty Leisure Limited / Chilwell Olympia,Electricity,1310,Utilities,Utility,25/05/2018,V002006,2468.46,Chilwell School,"2,592",BAC001275
Liberty Leisure Limited,http://statistics.data.gov.uk/id/local-authority/37UD,Leisure,LEIS,Leisure Centres,LCEN,Liberty Leisure Limited / Chilwell Olympia,Electricity,1310,Utilities,Utility,22/06/2018,V002108,2493.07,Chilwell School,"2,618",BAC001354
Liberty Leisure Limited,http://statistics.data.gov.uk/id/local-authority/37UD,Leisure,LEIS,Leisure Centres,LCEN,Liberty Leisure Limited / Chilwell Olympia,Water Charges,1410,Utilities,Utility,06/07/2018,V002181,825.04,Chilwell School,825,BAC001391
Liberty Leisure Limited,http://statistics.data.gov.uk/id/local-authority/37UD,Leisure,LEIS,Leisure Centres,LCEN,Liberty Leisure Limited / Chilwell Olympia,Electricity,1310,Utilities,Utility,20/07/2018,V002249,2293.1,Chilwell School,"2,408",BAC001435
Liberty Leisure Limited,http://statistics.data.gov.uk/id/local-authority/37UD,Leisure,LEIS,Leisure Centres,LCEN,Liberty Leisure Limited / Chilwell Olympia,Electricity,1310,Utilities,Utility,31/08/2018,V002502,2063.3,Chilwell School,"2,166",BAC001563
Liberty Leisure Limited,http://statistics.data.gov.uk/id/local-authority/37UD,Leisure,LEIS,Leisure Centres,LCEN,Liberty Leisure Limited / Chilwell Olympia,Electricity,1310,Utilities,Utility,28/09/2018,V002621,1597.8,Chilwell School,"93,241",BAC001662
Liberty Leisure Limited,http://statistics.data.gov.uk/id/local-authority/37UD,Leisure,LEIS,Leisure Centres,LCEN,Liberty Leisure Limited / Chilwell Olympia,Solid Fuel,1330,Utilities,Utility,26/10/2018,V002745,1578.7,Chilwell School,"1,894",BAC001749
Liberty Leisure Limited,http://statistics.data.gov.uk/id/local-authority/37UD,Leisure,LEIS,Leisure Centres,LCEN,Liberty Leisure Limited / Chilwell Olympia,Water Charges,1410,Utilities,Utility,09/11/2018,V002837,809.17,Chilwell School,809,BAC001792
Liberty Leisure Limited,http://statistics.data.gov.uk/id/local-authority/37UD,Leisure,LEIS,Leisure Centres,LCEN,Liberty Leisure Limited / Chilwell Olympia,Electricity,1310,Utilities,Utility,23/11/2018,V002876,2849.12,Chilwell School,"7,611",BAC001833
Liberty Leisure Limited,http://statistics.data.gov.uk/id/local-authority/37UD,Leisure,LEIS,Leisure Centres,LCEN,Liberty Leisure Limited / Chilwell Olympia,Electricity,1310,Utilities,Utility,23/11/2018,V002883,2486.74,Chilwell School,"7,611",BAC001833
Liberty Leisure Limited,http://statistics.data.gov.uk/id/local-authority/37UD,Leisure,LEIS,Leisure Centres,LCEN,Liberty Leisure Limited / Chilwell Olympia,Solid Fuel,1330,Utilities,Utility,23/11/2018,V002875,1664.6,Chilwell School,"7,611",BAC001833
Liberty Leisure Limited,http://statistics.data.gov.uk/id/local-authority/37UD,Leisure,LEIS,Leisure Centres,LCEN,Liberty Leisure Limited / Chilwell Olympia,Water Charges,1410,Utilities,Utility,23/11/2018,V002870,610.12,Chilwell School,"7,611",BAC001833
Liberty Leisure Limited,http://statistics.data.gov.uk/id/local-authority/37UD,Leisure,LEIS,Leisure Centres,LCEN,Liberty Leisure Limited / Chilwell Olympia,Electricity,1310,Utilities,Utility,21/12/2018,V003038,3150.83,Chilwell School,"3,151",BAC001928
Liberty Leisure Limited,http://statistics.data.gov.uk/id/local-authority/37UD,Leisure,LEIS,Leisure Centres,LCEN,Liberty Leisure Limited / Chilwell Olympia,Water Charges,1410,Utilities,Utility,11/01/2019,V003103,610.21,Chilwell School,610.21,BAC001991
Liberty Leisure Limited,http://statistics.data.gov.uk/id/local-authority/37UD,Leisure,LEIS,Leisure Centres,LCEN,Liberty Leisure Limited / Chilwell Olympia,Water Charges,1410,Utilities,Utility,18/01/2019,V003136,652.02,Chilwell School,652.02,BAC002020
Liberty Leisure Limited,http://statistics.data.gov.uk/id/local-authority/37UD,Leisure,LEIS,Leisure Centres,LCEN,Liberty Leisure Limited / Chilwell Olympia,Electricity,1310,Utilities,Utility,01/02/2019,V003195,2843.19,Chilwell School,7818.85,BAC002049
Liberty Leisure Limited,http://statistics.data.gov.uk/id/local-authority/37UD,Leisure,LEIS,Leisure Centres,LCEN,Liberty Leisure Limited / Chilwell Olympia,Solid Fuel,1330,Utilities,Utility,01/02/2019,V003194,1704.54,Chilwell School,7818.85,BAC002049
Liberty Leisure Limited,http://statistics.data.gov.uk/id/local-authority/37UD,Leisure,LEIS,Leisure Centres,LCEN,Liberty Leisure Limited / Chilwell Olympia,Solid Fuel,1330,Utilities,Utility,01/02/2019,V003196,1639.19,Chilwell School,7818.85,BAC002049
Liberty Leisure Limited,http://statistics.data.gov.uk/id/local-authority/37UD,Leisure,LEIS,Leisure Centres,LCEN,Liberty Leisure Limited / Chilwell Olympia,Solid Fuel,1330,Utilities,Utility,01/02/2019,V003194,1631.93,Chilwell School,7818.85,BAC002049
Liberty Leisure Limited,http://statistics.data.gov.uk/id/local-authority/37UD,Leisure,LEIS,Leisure Centres,LCEN,Liberty Leisure Limited / Chilwell Olympia,Electricity,1310,Utilities,Utility,15/02/2019,V003277,3274.44,Chilwell School,4940.86,BAC002088
Liberty Leisure Limited,http://statistics.data.gov.uk/id/local-authority/37UD,Leisure,LEIS,Leisure Centres,LCEN,Liberty Leisure Limited / Chilwell Olympia,Solid Fuel,1330,Utilities,Utility,15/02/2019,V003280,1666.42,Chilwell School,4940.86,BAC002088
Liberty Leisure Limited,http://statistics.data.gov.uk/id/local-authority/37UD,Leisure,LEIS,Leisure Centres,LCEN,Liberty Leisure Limited / Chilwell Olympia,Electricity,1310,Utilities,Utility,15/03/2019,V003406,2734.27,Chilwell School,4407.95,BAC002173
Liberty Leisure Limited,http://statistics.data.gov.uk/id/local-authority/37UD,Leisure,LEIS,Leisure Centres,LCEN,Liberty Leisure Limited / Chilwell Olympia,Solid Fuel,1330,Utilities,Utility,15/03/2019,V003400,1673.68,Chilwell School,4407.95,BAC002173
Liberty Leisure Limited,http://statistics.data.gov.uk/id/local-authority/37UD,Leisure,LEIS,Leisure Centres,LCEN,Liberty Leisure Limited / Chilwell Olympia,Solid Fuel,1330,Utilities,Utility,12/04/2019,V003609,1699.1,Chilwell School,3349.18,BAC002287
Liberty Leisure Limited,http://statistics.data.gov.uk/id/local-authority/37UD,Leisure,LEIS,Leisure Centres,LCEN,Liberty Leisure Limited / Chilwell Olympia,Solid Fuel,1330,Utilities,Utility,12/04/2019,V003610,1650.08,Chilwell School,3349.18,BAC002287
Liberty Leisure Limited,http://statistics.data.gov.uk/id/local-authority/37UD,Leisure,LEIS,Leisure Centres,LCEN,Liberty Leisure Limited / Chilwell Olympia,Electricity,1310,Utilities,Utility,10/05/2019,V003743,1834.36,Chilwell School,1834.36,BAC002349
Liberty Leisure Limited,http://statistics.data.gov.uk/id/local-authority/37UD,Leisure,LEIS,Leisure Centres,LCEN,Liberty Leisure Limited / Chilwell Olympia,Electricity,1310,Utilities,Utility,24/05/2019,V003770,2467.3,Chilwell School,2467.3,BAC002392
Liberty Leisure Limited,http://statistics.data.gov.uk/id/local-authority/37UD,Leisure,LEIS,Leisure Centres,LCEN,Liberty Leisure Limited / Chilwell Olympia,Electricity,1310,Utilities,Utility,05/07/2019,V003937,2869.33,Chilwell School,2869.33,BAC002512
Liberty Leisure Limited,http://statistics.data.gov.uk/id/local-authority/37UD,Leisure,LEIS,Leisure Centres,LCEN,Liberty Leisure Limited / Chilwell Olympia,Water Charges,1410,Utilities,Utility,19/07/2019,V003987,619.19,Chilwell School,619.19,BAC002565
Liberty Leisure Limited,http://statistics.data.gov.uk/id/local-authority/37UD,Leisure,LEIS,Leisure Centres,LCEN,Liberty Leisure Limited / Chilwell Olympia,Electricity,1310,Utilities,Utility,02/08/2019,V004061,2619.52,Chilwell School,2619.52,BAC002601
Liberty Leisure Limited,http://statistics.data.gov.uk/id/local-authority/37UD,Leisure,LEIS,Leisure Centres,LCEN,Liberty Leisure Limited / Chilwell Olympia,Water Charges,1410,Utilities,Utility,16/08/2019,V004112,663.42,Chilwell School,663.42,BAC002642
Liberty Leisure Limited,http://statistics.data.gov.uk/id/local-authority/37UD,Leisure,LEIS,Leisure Centres,LCEN,Liberty Leisure Limited / Chilwell Olympia,Electricity,1310,Utilities,Utility,30/08/2019,V004201,2124.72,Chilwell School,2124.72,BAC002694
Liberty Leisure Limited,http://statistics.data.gov.uk/id/local-authority/37UD,Leisure,LEIS,Leisure Centres,LCEN,Liberty Leisure Limited / Chilwell Olympia,Water Charges,1410,Utilities,Utility,13/09/2019,V004325,710.63,Chilwell School,710.63,BAC002745
Liberty Leisure Limited,http://statistics.data.gov.uk/id/local-authority/37UD,Leisure,LEIS,Leisure Centres,LCEN,Liberty Leisure Limited / Chilwell Olympia,Electricity,1310,Utilities,Utility,27/09/2019,V004370,1796.86,Chilwell School,1796.86,BAC002787
Liberty Leisure Limited,http://statistics.data.gov.uk/id/local-authority/37UD,Culture and Heritage,CULT,Events,LEVE,Liberty Leisure Limited / Events,Promotion of The Arts,3066,Office Supplies,Offsup,31/08/2018,V002468,595,Climb Higher Ltd,"1,190",BAC001591
Liberty Leisure Limited,http://statistics.data.gov.uk/id/local-authority/37UD,Culture and Heritage,CULT,Events,LEVE,Liberty Leisure Limited / Events,Promotion of The Arts,3066,Office Supplies,Offsup,31/08/2018,V002468,595,Climb Higher Ltd,"1,190",BAC001591
Liberty Leisure Limited,http://statistics.data.gov.uk/id/local-authority/37UD,Culture and Heritage,CULT,Events,LEVE,Liberty Leisure Limited / Events,Promotion of The Arts,3066,Office Supplies,Offsup,16/08/2019,V004165,610,Climb Higher Ltd,1220,BAC002663
Liberty Leisure Limited,http://statistics.data.gov.uk/id/local-authority/37UD,Culture and Heritage,CULT,Events,LEVE,Liberty Leisure Limited / Events,Promotion of The Arts,3066,Office Supplies,Offsup,16/08/2019,V004165,610,Climb Higher Ltd,1220,BAC002663
Liberty Leisure Limited,http://statistics.data.gov.uk/id/local-authority/37UD,Leisure,LEIS,Leisure Centres,LCEN,Liberty Leisure Limited / Bramcote Leisure Centre,Service Contracts,3056,Other Supplies & Services,OtherSS,03/04/2018,V001683,13946.49,Combined Power Limited,"16,736",BAC001088
Liberty Leisure Limited,http://statistics.data.gov.uk/id/local-authority/37UD,Leisure,LEIS,Leisure Centres,LCEN,Liberty Leisure Limited / Bramcote Leisure Centre,Repairs & Maintenance,1000,Central Pot,Central,29/03/2019,V003463,14300.21,Combined Power Limited,17160.25,BAC002206
Liberty Leisure Limited,http://statistics.data.gov.uk/id/local-authority/37UD,Leisure,LEIS,Leisure Centres,LCEN,Liberty Leisure Limited / Bramcote Leisure Centre,Repairs & Maintenance,1000,Central Pot,Central,03/04/2018,V001679,6340,Complete Cooling Services Limited,"7,608",BAC001089
Liberty Leisure Limited,http://statistics.data.gov.uk/id/local-authority/37UD,Leisure,LEIS,Leisure Centres,LCEN,Liberty Leisure Limited / Kimberley Leisure Centre,Service Contracts,3056,Other Supplies & Services,OtherSS,27/04/2018,V001833,481,Complete Cooling Services Limited,577,BAC001178
Liberty Leisure Limited,http://statistics.data.gov.uk/id/local-authority/37UD,Leisure,LEIS,Leisure Centres,LCEN,Liberty Leisure Limited / Bramcote Leisure Centre,Repairs & Maintenance,1000,Central Pot,Central,11/05/2018,V001982,687,Complete Cooling Services Limited,"1,320",BAC001221
Liberty Leisure Limited,http://statistics.data.gov.uk/id/local-authority/37UD,Leisure,LEIS,Leisure Centres,LCEN,Liberty Leisure Limited / Kimberley Leisure Centre,Repairs & Maintenance,1000,Central Pot,Central,11/05/2018,V001946,368.3,Complete Cooling Services Limited,"1,320",BAC001221
Liberty Leisure Limited,http://statistics.data.gov.uk/id/local-authority/37UD,Leisure,LEIS,Leisure Centres,LCEN,Liberty Leisure Limited / Bramcote Leisure Centre,Repairs & Maintenance,1000,Central Pot,Central,25/05/2018,V002035,1318.3,Complete Cooling Services Limited,"1,582",BAC001260
Liberty Leisure Limited,http://statistics.data.gov.uk/id/local-authority/37UD,Leisure,LEIS,Leisure Centres,LCEN,Liberty Leisure Limited / Bramcote Leisure Centre,Repairs & Maintenance,1000,Central Pot,Central,03/08/2018,V002375,1036.49,Complete Cooling Services Limited,"1,901",BAC001466
Liberty Leisure Limited,http://statistics.data.gov.uk/id/local-authority/37UD,Leisure,LEIS,Leisure Centres,LCEN,Liberty Leisure Limited / Kimberley Leisure Centre,Repairs & Maintenance,1000,Central Pot,Central,03/08/2018,V002284,547.65,Complete Cooling Services Limited,"1,901",BAC001466
Liberty Leisure Limited,http://statistics.data.gov.uk/id/local-authority/37UD,Leisure,LEIS,Leisure Centres,LCEN,Liberty Leisure Limited / Kimberley Leisure Centre,Repairs & Maintenance,1000,Central Pot,Central,26/10/2018,V002723,481,Complete Cooling Services Limited,577,BAC001738
Liberty Leisure Limited,http://statistics.data.gov.uk/id/local-authority/37UD,Leisure,LEIS,Leisure Centres,LCEN,Liberty Leisure Limited / Bramcote Leisure Centre,Service Contracts,3056,Other Supplies & Services,OtherSS,09/11/2018,V002793,687,Complete Cooling Services Limited,824,BAC001781
Liberty Leisure Limited,http://statistics.data.gov.uk/id/local-authority/37UD,Leisure,LEIS,Leisure Centres,LCEN,Liberty Leisure Limited / Kimberley Leisure Centre,Repairs & Maintenance,1000,Central Pot,Central,07/12/2018,V002960,1970,Complete Cooling Services Limited,"2,364",BAC001869
Liberty Leisure Limited,http://statistics.data.gov.uk/id/local-authority/37UD,Leisure,LEIS,Leisure Centres,LCEN,Liberty Leisure Limited / Kimberley Leisure Centre,Service Contracts,3056,Other Supplies & Services,OtherSS,26/04/2019,V003656,535,Complete Cooling Services Limited,642,BAC002307
Liberty Leisure Limited,http://statistics.data.gov.uk/id/local-authority/37UD,Leisure,LEIS,Leisure Centres,LCEN,Liberty Leisure Limited / Kimberley Leisure Centre,Repairs & Maintenance,1000,Central Pot,Central,05/07/2019,V003930,1440,Complete Cooling Services Limited,1998.72,BAC002497
Liberty Leisure Limited,http://statistics.data.gov.uk/id/local-authority/37UD,Leisure,LEIS,Leisure Centres,LCEN,Liberty Leisure Limited / Kimberley Leisure Centre,Repairs & Maintenance,1000,Central Pot,Central,05/07/2019,V003961,225.6,Complete Cooling Services Limited,1998.72,BAC002497
Liberty Leisure Limited,http://statistics.data.gov.uk/id/local-authority/37UD,Leisure,LEIS,Leisure Centres,LCEN,Liberty Leisure Limited / Kimberley Leisure Centre,Repairs & Maintenance,1000,Central Pot,Central,19/07/2019,V004047,646.5,Complete Cooling Services Limited,775.8,BAC002548
Liberty Leisure Limited,http://statistics.data.gov.uk/id/local-authority/37UD,Leisure,LEIS,Leisure Centres,LCEN,Liberty Leisure Limited / Bramcote Leisure Centre,Vending Drinks  - Purchase,3205,Catering,Cat,05/07/2019,V003981,5.45,Continental Coffee Company,564.95,BAC002529
Liberty Leisure Limited,http://statistics.data.gov.uk/id/local-authority/37UD,Leisure,LEIS,Leisure Centres,LCEN,Liberty Leisure Limited / Bramcote Leisure Centre,Vending Drinks  - Purchase,3205,Catering,Cat,05/07/2019,V003981,2.71,Continental Coffee Company,564.95,BAC002529
Liberty Leisure Limited,http://statistics.data.gov.uk/id/local-authority/37UD,Leisure,LEIS,Leisure Centres,LCEN,Liberty Leisure Limited / Bramcote Leisure Centre,Vending Drinks  - Purchase,3205,Catering,Cat,05/07/2019,V003981,83.85,Continental Coffee Company,564.95,BAC002529
Liberty Leisure Limited,http://statistics.data.gov.uk/id/local-authority/37UD,Leisure,LEIS,Leisure Centres,LCEN,Liberty Leisure Limited / Bramcote Leisure Centre,Vending Drinks  - Purchase,3205,Catering,Cat,05/07/2019,V003981,41.25,Continental Coffee Company,564.95,BAC002529
Liberty Leisure Limited,http://statistics.data.gov.uk/id/local-authority/37UD,Leisure,LEIS,Leisure Centres,LCEN,Liberty Leisure Limited / Bramcote Leisure Centre,Vending Drinks  - Purchase,3205,Catering,Cat,05/07/2019,V003981,54.95,Continental Coffee Company,564.95,BAC002529
Liberty Leisure Limited,http://statistics.data.gov.uk/id/local-authority/37UD,Leisure,LEIS,Leisure Centres,LCEN,Liberty Leisure Limited / Bramcote Leisure Centre,Vending Drinks  - Purchase,3205,Catering,Cat,05/07/2019,V003981,17.5,Continental Coffee Company,564.95,BAC002529
Liberty Leisure Limited,http://statistics.data.gov.uk/id/local-authority/37UD,Leisure,LEIS,Leisure Centres,LCEN,Liberty Leisure Limited / Chilwell Olympia,Vending Drinks  - Purchase,3205,Catering,Cat,05/07/2019,V003951,33.37,Continental Coffee Company,564.95,BAC002529
Liberty Leisure Limited,http://statistics.data.gov.uk/id/local-authority/37UD,Leisure,LEIS,Leisure Centres,LCEN,Liberty Leisure Limited / Chilwell Olympia,Vending Drinks  - Purchase,3205,Catering,Cat,05/07/2019,V003951,100.4,Continental Coffee Company,564.95,BAC002529
Liberty Leisure Limited,http://statistics.data.gov.uk/id/local-authority/37UD,Leisure,LEIS,Leisure Centres,LCEN,Liberty Leisure Limited / Chilwell Olympia,Vending Drinks  - Purchase,3205,Catering,Cat,05/07/2019,V003958,27.95,Continental Coffee Company,564.95,BAC002529
Liberty Leisure Limited,http://statistics.data.gov.uk/id/local-authority/37UD,Leisure,LEIS,Leisure Centres,LCEN,Liberty Leisure Limited / Chilwell Olympia,Vending Drinks  - Purchase,3205,Catering,Cat,05/07/2019,V003958,33,Continental Coffee Company,564.95,BAC002529
Liberty Leisure Limited,http://statistics.data.gov.uk/id/local-authority/37UD,Leisure,LEIS,Leisure Centres,LCEN,Liberty Leisure Limited / Chilwell Olympia,Vending Drinks  - Purchase,3205,Catering,Cat,05/07/2019,V003958,5.45,Continental Coffee Company,564.95,BAC002529
Liberty Leisure Limited,http://statistics.data.gov.uk/id/local-authority/37UD,Leisure,LEIS,Leisure Centres,LCEN,Liberty Leisure Limited / Chilwell Olympia,Vending Drinks  - Purchase,3205,Catering,Cat,05/07/2019,V003958,54.5,Continental Coffee Company,564.95,BAC002529
Liberty Leisure Limited,http://statistics.data.gov.uk/id/local-authority/37UD,Leisure,LEIS,Leisure Centres,LCEN,Liberty Leisure Limited / Chilwell Olympia,Vending Drinks  - Purchase,3205,Catering,Cat,05/07/2019,V003958,42,Continental Coffee Company,564.95,BAC002529
Liberty Leisure Limited,http://statistics.data.gov.uk/id/local-authority/37UD,Leisure,LEIS,Leisure Centres,LCEN,Liberty Leisure Limited / Chilwell Olympia,Vending Drinks  - Purchase,3205,Catering,Cat,05/07/2019,V003958,33,Continental Coffee Company,564.95,BAC002529
Liberty Leisure Limited,http://statistics.data.gov.uk/id/local-authority/37UD,Leisure,LEIS,Leisure Centres,LCEN,Liberty Leisure Limited / Kimberley Leisure Centre,Repairs & Maintenance,1000,Central Pot,Central,07/06/2019,V003828,493.68,Core Health and Fitness Trading LTD,823.3,BAC002454
Liberty Leisure Limited,http://statistics.data.gov.uk/id/local-authority/37UD,Leisure,LEIS,Leisure Management,LMAN,Liberty Leisure Limited / Kimberley Leisure Centre,Annual Projects Contingency,3710,Other Supplies & Services,OtherSS,03/04/2018,V001733,5380.85,Corporate Trends,"16,209",BAC001111
Liberty Leisure Limited,http://statistics.data.gov.uk/id/local-authority/37UD,Leisure,LEIS,Leisure Centres,LCEN,Liberty Leisure Limited / Kimberley Leisure Centre,Uniforms,3221,Other Supplies & Services,OtherSS,03/04/2018,V001732,3274.3,Corporate Trends,"16,209",BAC001111
Liberty Leisure Limited,http://statistics.data.gov.uk/id/local-authority/37UD,Leisure,LEIS,Leisure Centres,LCEN,Liberty Leisure Limited / Kimberley Leisure Centre,Uniforms,3221,Other Supplies & Services,OtherSS,03/04/2018,V001734,1480,Corporate Trends,"16,209",BAC001111
Liberty Leisure Limited,http://statistics.data.gov.uk/id/local-authority/37UD,Leisure,LEIS,Leisure Development,LDEV,Liberty Leisure Limited / Kimberley Leisure Centre,Uniforms,3221,Other Supplies & Services,OtherSS,03/04/2018,V001733,1200,Corporate Trends,"16,209",BAC001111
Liberty Leisure Limited,http://statistics.data.gov.uk/id/local-authority/37UD,Leisure,LEIS,Leisure Centres,LCEN,Liberty Leisure Limited / Kimberley Leisure Centre,Uniforms,3221,Other Supplies & Services,OtherSS,03/04/2018,V001734,507.75,Corporate Trends,"16,209",BAC001111
Liberty Leisure Limited,http://statistics.data.gov.uk/id/local-authority/37UD,Culture and Heritage,CULT,Events,LEVE,Liberty Leisure Limited / Kimberley Leisure Centre,Uniforms,3221,Other Supplies & Services,OtherSS,03/04/2018,V001733,480,Corporate Trends,"16,209",BAC001111
Liberty Leisure Limited,http://statistics.data.gov.uk/id/local-authority/37UD,Leisure,LEIS,Leisure Centres,LCEN,Liberty Leisure Limited / Kimberley Leisure Centre,Uniforms,3221,Other Supplies & Services,OtherSS,03/04/2018,V001734,422,Corporate Trends,"16,209",BAC001111
Liberty Leisure Limited,http://statistics.data.gov.uk/id/local-authority/37UD,Leisure,LEIS,Leisure Centres,LCEN,Liberty Leisure Limited / Bramcote Leisure Centre,Uniforms,3221,Other Supplies & Services,OtherSS,03/04/2018,V001678,408.35,Corporate Trends,"16,209",BAC001111
Liberty Leisure Limited,http://statistics.data.gov.uk/id/local-authority/37UD,Leisure,LEIS,Leisure Centres,LCEN,Liberty Leisure Limited / Chilwell Olympia,Uniforms,3221,Other Supplies & Services,OtherSS,27/04/2018,V001917,286.6,Corporate Trends,686,BAC001192
Liberty Leisure Limited,http://statistics.data.gov.uk/id/local-authority/37UD,Leisure,LEIS,Leisure Centres,LCEN,Liberty Leisure Limited / Chilwell Olympia,Uniforms,3221,Other Supplies & Services,OtherSS,27/04/2018,V001916,285.05,Corporate Trends,686,BAC001192
Liberty Leisure Limited,http://statistics.data.gov.uk/id/local-authority/37UD,Leisure,LEIS,Leisure Centres,LCEN,Liberty Leisure Limited / Kimberley Leisure Centre,Uniforms,3221,Other Supplies & Services,OtherSS,22/06/2018,V002123,708.75,Corporate Trends,"3,085",BAC001355
Liberty Leisure Limited,http://statistics.data.gov.uk/id/local-authority/37UD,Leisure,LEIS,Leisure Centres,LCEN,Liberty Leisure Limited / Kimberley Leisure Centre,Uniforms,3221,Other Supplies & Services,OtherSS,22/06/2018,V002123,627.75,Corporate Trends,"3,085",BAC001355
Liberty Leisure Limited,http://statistics.data.gov.uk/id/local-authority/37UD,Leisure,LEIS,Leisure Centres,LCEN,Liberty Leisure Limited / Kimberley Leisure Centre,Uniforms,3221,Other Supplies & Services,OtherSS,22/06/2018,V002123,587.25,Corporate Trends,"3,085",BAC001355
Liberty Leisure Limited,http://statistics.data.gov.uk/id/local-authority/37UD,Leisure,LEIS,Leisure Centres,LCEN,Liberty Leisure Limited / Bramcote Leisure Centre,Uniforms,3221,Other Supplies & Services,OtherSS,17/08/2018,V002398,372.1,Corporate Trends,447,BAC001527
Liberty Leisure Limited,http://statistics.data.gov.uk/id/local-authority/37UD,Leisure,LEIS,Leisure Centres,LCEN,Liberty Leisure Limited / Kimberley Leisure Centre,Uniforms,3221,Other Supplies & Services,OtherSS,14/09/2018,V002539,297,Corporate Trends,"93,262",BAC001621
Liberty Leisure Limited,http://statistics.data.gov.uk/id/local-authority/37UD,Leisure,LEIS,Leisure Centres,LCEN,Liberty Leisure Limited / Kimberley Leisure Centre,Uniforms,3221,Other Supplies & Services,OtherSS,09/11/2018,V002819,339.15,Corporate Trends,560,BAC001793
Liberty Leisure Limited,http://statistics.data.gov.uk/id/local-authority/37UD,Leisure,LEIS,Leisure Centres,LCEN,Liberty Leisure Limited / Kimberley Leisure Centre,Uniforms,3221,Other Supplies & Services,OtherSS,09/11/2018,V002819,271.32,Corporate Trends,560,BAC001793
Liberty Leisure Limited,http://statistics.data.gov.uk/id/local-authority/37UD,Leisure,LEIS,Leisure Centres,LCEN,Liberty Leisure Limited / Kimberley Leisure Centre,Uniforms,3221,Other Supplies & Services,OtherSS,07/12/2018,V002952,1207.05,Corporate Trends,"4,080",BAC001885
Liberty Leisure Limited,http://statistics.data.gov.uk/id/local-authority/37UD,Leisure,LEIS,Leisure Centres,LCEN,Liberty Leisure Limited / Kimberley Leisure Centre,Uniforms,3221,Other Supplies & Services,OtherSS,07/12/2018,V002953,1011.5,Corporate Trends,"4,080",BAC001885
Liberty Leisure Limited,http://statistics.data.gov.uk/id/local-authority/37UD,Leisure,LEIS,Leisure Centres,LCEN,Liberty Leisure Limited / Kimberley Leisure Centre,Uniforms,3221,Other Supplies & Services,OtherSS,07/12/2018,V002955,906.5,Corporate Trends,"4,080",BAC001885
Liberty Leisure Limited,http://statistics.data.gov.uk/id/local-authority/37UD,Leisure,LEIS,Leisure Centres,LCEN,Liberty Leisure Limited / Bramcote Leisure Centre,Uniforms,3221,Other Supplies & Services,OtherSS,21/12/2018,V002987,649.6,Corporate Trends,"1,898",BAC001932
Liberty Leisure Limited,http://statistics.data.gov.uk/id/local-authority/37UD,Leisure,LEIS,Leisure Centres,LCEN,Liberty Leisure Limited / Kimberley Leisure Centre,Uniforms,3221,Other Supplies & Services,OtherSS,01/02/2019,V003237,289.5,Corporate Trends,347.4,BAC002050
Liberty Leisure Limited,http://statistics.data.gov.uk/id/local-authority/37UD,Leisure,LEIS,Leisure Centres,LCEN,Liberty Leisure Limited / Chilwell Olympia,Uniforms,3221,Other Supplies & Services,OtherSS,15/02/2019,V003275,663.05,Corporate Trends,613.56,BAC002091
Liberty Leisure Limited,http://statistics.data.gov.uk/id/local-authority/37UD,Leisure,LEIS,Leisure Centres,LCEN,Liberty Leisure Limited / Chilwell Olympia,Uniforms,3221,Other Supplies & Services,OtherSS,15/02/2019,V003276,-663.05,Corporate Trends,613.56,BAC002091
Liberty Leisure Limited,http://statistics.data.gov.uk/id/local-authority/37UD,Leisure,LEIS,Leisure Centres,LCEN,Liberty Leisure Limited / Bramcote Leisure Centre,Uniforms,3221,Other Supplies & Services,OtherSS,15/03/2019,V003414,647.5,Corporate Trends,991.62,BAC002176
Liberty Leisure Limited,http://statistics.data.gov.uk/id/local-authority/37UD,Leisure,LEIS,Leisure Centres,LCEN,Liberty Leisure Limited / Kimberley Leisure Centre,Uniforms,3221,Other Supplies & Services,OtherSS,21/06/2019,V003922,2213.9,Corporate Trends,2915.82,BAC002475
Liberty Leisure Limited,http://statistics.data.gov.uk/id/local-authority/37UD,Leisure,LEIS,Leisure Centres,LCEN,Liberty Leisure Limited / Chilwell Olympia,Uniforms,3221,Other Supplies & Services,OtherSS,02/08/2019,V004086,517.25,Corporate Trends,620.7,BAC002603
Liberty Leisure Limited,http://statistics.data.gov.uk/id/local-authority/37UD,Leisure,LEIS,Leisure Centres,LCEN,Liberty Leisure Limited / Chilwell Olympia,Repairs & Maintenance,1000,Central Pot,Central,21/12/2018,V003018,5010,Courtmasters,"17,112",BAC001949
Liberty Leisure Limited,http://statistics.data.gov.uk/id/local-authority/37UD,Leisure,LEIS,Leisure Centres,LCEN,Liberty Leisure Limited / Chilwell Olympia,Repairs & Maintenance,1000,Central Pot,Central,21/12/2018,V003018,4625,Courtmasters,"17,112",BAC001949
Liberty Leisure Limited,http://statistics.data.gov.uk/id/local-authority/37UD,Leisure,LEIS,Leisure Centres,LCEN,Liberty Leisure Limited / Chilwell Olympia,Repairs & Maintenance,1000,Central Pot,Central,21/12/2018,V003018,4625,Courtmasters,"17,112",BAC001949
Liberty Leisure Limited,http://statistics.data.gov.uk/id/local-authority/37UD,Leisure,LEIS,Leisure Centres,LCEN,Liberty Leisure Limited / Kimberley Leisure Centre,Service Contracts,3056,Other Supplies & Services,OtherSS,03/04/2018,V001716,279.62,Cryoservice Limited,344,BAC001090
Liberty Leisure Limited,http://statistics.data.gov.uk/id/local-authority/37UD,Leisure,LEIS,Leisure Centres,LCEN,Liberty Leisure Limited / Kimberley Leisure Centre,Chemicals,3152,Other Supplies & Services,OtherSS,22/06/2018,V002130,279.62,Cryoservice Limited,345,BAC001339
Liberty Leisure Limited,http://statistics.data.gov.uk/id/local-authority/37UD,Leisure,LEIS,Leisure Centres,LCEN,Liberty Leisure Limited / Kimberley Leisure Centre,Chemicals,3152,Other Supplies & Services,OtherSS,14/09/2018,V002529,279.62,Cryoservice Limited,"93,063",BAC001607
Liberty Leisure Limited,http://statistics.data.gov.uk/id/local-authority/37UD,Leisure,LEIS,Leisure Centres,LCEN,Liberty Leisure Limited / Kimberley Leisure Centre,Chemicals,3152,Other Supplies & Services,OtherSS,12/10/2018,V002684,444.99,Cryoservice Limited,534,BAC001702
Liberty Leisure Limited,http://statistics.data.gov.uk/id/local-authority/37UD,Leisure,LEIS,Leisure Centres,LCEN,Liberty Leisure Limited / Kimberley Leisure Centre,Chemicals,3152,Other Supplies & Services,OtherSS,07/12/2018,V002982,279.62,Cryoservice Limited,571,BAC001870
Liberty Leisure Limited,http://statistics.data.gov.uk/id/local-authority/37UD,Leisure,LEIS,Leisure Centres,LCEN,Liberty Leisure Limited / Kimberley Leisure Centre,Chemicals,3152,Other Supplies & Services,OtherSS,15/03/2019,V003379,293.6,Cryoservice Limited,600.79,BAC002152
Liberty Leisure Limited,http://statistics.data.gov.uk/id/local-authority/37UD,Leisure,LEIS,Leisure Centres,LCEN,Liberty Leisure Limited / Kimberley Leisure Centre,Chemicals,3152,Other Supplies & Services,OtherSS,12/04/2019,V003592,283,Cryoservice Limited,339.6,BAC002271
Liberty Leisure Limited,http://statistics.data.gov.uk/id/local-authority/37UD,Leisure,LEIS,Leisure Centres,LCEN,Liberty Leisure Limited / Kimberley Leisure Centre,Chemicals,3152,Other Supplies & Services,OtherSS,07/06/2019,V003855,293.6,Cryoservice Limited,602.83,BAC002426
Liberty Leisure Limited,http://statistics.data.gov.uk/id/local-authority/37UD,Leisure,LEIS,Leisure Centres,LCEN,Liberty Leisure Limited / Kimberley Leisure Centre,Chemicals,3152,Other Supplies & Services,OtherSS,16/08/2019,V004133,245.03,Cryoservice Limited,294.04,BAC002628
Liberty Leisure Limited,http://statistics.data.gov.uk/id/local-authority/37UD,Leisure,LEIS,Leisure Centres,LCEN,Liberty Leisure Limited / Kimberley Leisure Centre,Chemicals,3152,Other Supplies & Services,OtherSS,13/09/2019,V004338,293.6,Cryoservice Limited,352.32,BAC002732
Liberty Leisure Limited,http://statistics.data.gov.uk/id/local-authority/37UD,Culture and Heritage,CULT,Events,LEVE,Liberty Leisure Limited / Events,D.H. Lawrence Festival,3083,Other Supplies & Services,OtherSS,28/09/2018,V002585,350,D.H. Lawrence Society,"98,088",BAC001680
Liberty Leisure Limited,http://statistics.data.gov.uk/id/local-authority/37UD,Leisure,LEIS,Leisure Centres,LCEN,Liberty Leisure Limited / Bramcote Leisure Centre,Repairs & Maintenance,1000,Central Pot,Central,27/09/2019,V004350,3640,DC Gas Services,4368,BAC002810
Liberty Leisure Limited,http://statistics.data.gov.uk/id/local-authority/37UD,Leisure,LEIS,Leisure Centres,LCEN,Liberty Leisure Limited / Bramcote Leisure Centre,Repairs & Maintenance,1000,Central Pot,Central,15/02/2019,V003219,394.47,Deltron Lifts Limited,473.36,BAC002093
Liberty Leisure Limited,http://statistics.data.gov.uk/id/local-authority/37UD,Leisure,LEIS,Leisure Centres,LCEN,Liberty Leisure Limited / Bramcote Leisure Centre,Repairs & Maintenance,1000,Central Pot,Central,19/07/2019,V004002,450,Deltron Lifts Limited,937.2,BAC002567
Liberty Leisure Limited,http://statistics.data.gov.uk/id/local-authority/37UD,Leisure,LEIS,Leisure Centres,LCEN,Liberty Leisure Limited / Bramcote Leisure Centre,Repairs & Maintenance,1000,Central Pot,Central,19/07/2019,V004051,171,Deltron Lifts Limited,937.2,BAC002567
Liberty Leisure Limited,http://statistics.data.gov.uk/id/local-authority/37UD,Leisure,LEIS,Leisure Centres,LCEN,Liberty Leisure Limited / Bramcote Leisure Centre,Service Contracts,3056,Other Supplies & Services,OtherSS,19/07/2019,V004040,45,Deltron Lifts Limited,937.2,BAC002567
Liberty Leisure Limited,http://statistics.data.gov.uk/id/local-authority/37UD,Leisure,LEIS,Leisure Centres,LCEN,Liberty Leisure Limited / Bramcote Leisure Centre,Service Contracts,3056,Other Supplies & Services,OtherSS,19/07/2019,V004040,17.5,Deltron Lifts Limited,937.2,BAC002567
Liberty Leisure Limited,http://statistics.data.gov.uk/id/local-authority/37UD,Leisure,LEIS,Leisure Centres,LCEN,Liberty Leisure Limited / Bramcote Leisure Centre,Service Contracts,3056,Other Supplies & Services,OtherSS,19/07/2019,V004040,45,Deltron Lifts Limited,937.2,BAC002567
Liberty Leisure Limited,http://statistics.data.gov.uk/id/local-authority/37UD,Leisure,LEIS,Leisure Centres,LCEN,Liberty Leisure Limited / Bramcote Leisure Centre,Service Contracts,3056,Other Supplies & Services,OtherSS,19/07/2019,V004040,17.5,Deltron Lifts Limited,937.2,BAC002567
Liberty Leisure Limited,http://statistics.data.gov.uk/id/local-authority/37UD,Leisure,LEIS,Leisure Centres,LCEN,Liberty Leisure Limited / Bramcote Leisure Centre,Service Contracts,3056,Other Supplies & Services,OtherSS,19/07/2019,V004040,17.5,Deltron Lifts Limited,937.2,BAC002567
Liberty Leisure Limited,http://statistics.data.gov.uk/id/local-authority/37UD,Leisure,LEIS,Leisure Centres,LCEN,Liberty Leisure Limited / Bramcote Leisure Centre,Service Contracts,3056,Other Supplies & Services,OtherSS,19/07/2019,V004040,17.5,Deltron Lifts Limited,937.2,BAC002567
Liberty Leisure Limited,http://statistics.data.gov.uk/id/local-authority/37UD,Leisure,LEIS,Leisure Centres,LCEN,Liberty Leisure Limited / Bramcote Leisure Centre,Repairs & Maintenance,1000,Central Pot,Central,02/08/2019,V004090,151.7,Deltron Lifts Limited,5142.06,BAC002604
Liberty Leisure Limited,http://statistics.data.gov.uk/id/local-authority/37UD,Leisure,LEIS,Leisure Centres,LCEN,Liberty Leisure Limited / Bramcote Leisure Centre,Repairs & Maintenance,1000,Central Pot,Central,02/08/2019,V004091,188.35,Deltron Lifts Limited,5142.06,BAC002604
Liberty Leisure Limited,http://statistics.data.gov.uk/id/local-authority/37UD,Leisure,LEIS,Leisure Centres,LCEN,Liberty Leisure Limited / Bramcote Leisure Centre,Repairs & Maintenance,1000,Central Pot,Central,02/08/2019,V004092,2950,Deltron Lifts Limited,5142.06,BAC002604
Liberty Leisure Limited,http://statistics.data.gov.uk/id/local-authority/37UD,Leisure,LEIS,Leisure Centres,LCEN,Liberty Leisure Limited / Bramcote Leisure Centre,Repairs & Maintenance,1000,Central Pot,Central,02/08/2019,V004093,995,Deltron Lifts Limited,5142.06,BAC002604
Liberty Leisure Limited,http://statistics.data.gov.uk/id/local-authority/37UD,Leisure,LEIS,Leisure Centres,LCEN,Liberty Leisure Limited / Kimberley Leisure Centre,Cleaning Equipment Purchase,3013,Other Supplies & Services,OtherSS,03/04/2018,V001742,1200,Duplex Cleaning Machines UK Ltd,"3,252",BAC001106
Liberty Leisure Limited,http://statistics.data.gov.uk/id/local-authority/37UD,Leisure,LEIS,Leisure Centres,LCEN,Liberty Leisure Limited / Kimberley Leisure Centre,Repairs & Maintenance,1000,Central Pot,Central,03/04/2018,V001742,910,Duplex Cleaning Machines UK Ltd,"3,252",BAC001106
Liberty Leisure Limited,http://statistics.data.gov.uk/id/local-authority/37UD,Leisure,LEIS,Leisure Centres,LCEN,Liberty Leisure Limited / Kimberley Leisure Centre,Cleaning Materials,1510,Other Prem,OthPrem,03/04/2018,V001742,600,Duplex Cleaning Machines UK Ltd,"3,252",BAC001106
Liberty Leisure Limited,http://statistics.data.gov.uk/id/local-authority/37UD,Leisure,LEIS,Leisure Centres,LCEN,Liberty Leisure Limited / Kimberley Leisure Centre,Professional Fees,730,Indirect Employee Exp Oncosts,Oncosts,29/03/2019,V003474,375,Dyslexia Association,375,BAC002257
Liberty Leisure Limited,http://statistics.data.gov.uk/id/local-authority/37UD,Culture and Heritage,CULT,Events,LEVE,Liberty Leisure Limited / Events,Promotion of The Arts,3066,Office Supplies,Offsup,03/08/2018,V002339,582.68,East Midlands Ambulance Services NHS Trust,699,BAC001490
Liberty Leisure Limited,http://statistics.data.gov.uk/id/local-authority/37UD,Culture and Heritage,CULT,Events,LEVE,Liberty Leisure Limited / Events,Promotion of The Arts,3066,Office Supplies,Offsup,15/02/2019,V003255,481.19,East Midlands Ambulance Services NHS Trust,1075.07,BAC002098
Liberty Leisure Limited,http://statistics.data.gov.uk/id/local-authority/37UD,Culture and Heritage,CULT,Events,LEVE,Liberty Leisure Limited / Events,Promotion of The Arts,3066,Office Supplies,Offsup,15/02/2019,V003255,414.7,East Midlands Ambulance Services NHS Trust,1075.07,BAC002098
Liberty Leisure Limited,http://statistics.data.gov.uk/id/local-authority/37UD,Culture and Heritage,CULT,Heritage,LHER,Liberty Leisure Limited / DHL Museum,Major Events,3076,Other Supplies & Services,OtherSS,16/08/2019,V004120,70,Eats n Treats,350,BAC002669
Liberty Leisure Limited,http://statistics.data.gov.uk/id/local-authority/37UD,Culture and Heritage,CULT,Heritage,LHER,Liberty Leisure Limited / DHL Museum,Major Events,3076,Other Supplies & Services,OtherSS,16/08/2019,V004120,70,Eats n Treats,350,BAC002669
Liberty Leisure Limited,http://statistics.data.gov.uk/id/local-authority/37UD,Culture and Heritage,CULT,Heritage,LHER,Liberty Leisure Limited / DHL Museum,Major Events,3076,Other Supplies & Services,OtherSS,16/08/2019,V004120,70,Eats n Treats,350,BAC002669
Liberty Leisure Limited,http://statistics.data.gov.uk/id/local-authority/37UD,Culture and Heritage,CULT,Heritage,LHER,Liberty Leisure Limited / DHL Museum,Major Events,3076,Other Supplies & Services,OtherSS,16/08/2019,V004120,70,Eats n Treats,350,BAC002669
Liberty Leisure Limited,http://statistics.data.gov.uk/id/local-authority/37UD,Culture and Heritage,CULT,Heritage,LHER,Liberty Leisure Limited / DHL Museum,Major Events,3076,Other Supplies & Services,OtherSS,16/08/2019,V004120,70,Eats n Treats,350,BAC002669
Liberty Leisure Limited,http://statistics.data.gov.uk/id/local-authority/37UD,Leisure,LEIS,Leisure Centres,LCEN,Liberty Leisure Limited / Kimberley Leisure Centre,Repairs & Maintenance,1000,Central Pot,Central,01/03/2019,V003354,250,Erewash Borough Council,300,BAC002124
Liberty Leisure Limited,http://statistics.data.gov.uk/id/local-authority/37UD,Leisure,LEIS,Leisure Centres,LCEN,Liberty Leisure Limited / Kimberley Leisure Centre,Service Contracts,3056,Other Supplies & Services,OtherSS,03/04/2018,V001741,636,ESG Pool Ventilation Ltd,763,BAC001116
Liberty Leisure Limited,http://statistics.data.gov.uk/id/local-authority/37UD,Leisure,LEIS,Leisure Centres,LCEN,Liberty Leisure Limited / Kimberley Leisure Centre,Service Contracts,3056,Other Supplies & Services,OtherSS,05/07/2019,V003974,636,ESG Pool Ventilation Ltd,763.2,BAC002518
Liberty Leisure Limited,http://statistics.data.gov.uk/id/local-authority/37UD,Leisure,LEIS,Leisure Centres,LCEN,Liberty Leisure Limited / Bramcote Leisure Centre,Service Contracts,3056,Other Supplies & Services,OtherSS,27/04/2018,V001854,584,ESM Power Limited,701,BAC001205
Liberty Leisure Limited,http://statistics.data.gov.uk/id/local-authority/37UD,Leisure,LEIS,Leisure Centres,LCEN,Liberty Leisure Limited / Bramcote Leisure Centre,Repairs & Maintenance,1000,Central Pot,Central,23/11/2018,V002927,925,Executive Home Improvements,"1,110",BAC001857
Liberty Leisure Limited,http://statistics.data.gov.uk/id/local-authority/37UD,Leisure,LEIS,Leisure Centres,LCEN,Liberty Leisure Limited / Bramcote Leisure Centre,Repairs & Maintenance,1000,Central Pot,Central,11/01/2019,V003122,1275,Executive Home Improvements,1530,BAC002006
Liberty Leisure Limited,http://statistics.data.gov.uk/id/local-authority/37UD,Culture and Heritage,CULT,Heritage,LHER,Liberty Leisure Limited / DHL Museum,Membership,3870,Other Supplies & Services,OtherSS,11/05/2018,V001938,440,Experience Nottingham,528,BAC001241
Liberty Leisure Limited,http://statistics.data.gov.uk/id/local-authority/37UD,Leisure,LEIS,Leisure Centres,LCEN,Liberty Leisure Limited / Kimberley Leisure Centre,Repairs & Maintenance,1000,Central Pot,Central,03/04/2018,V001744,498,Eyre & Elliston Ltd,598,BAC001112
Liberty Leisure Limited,http://statistics.data.gov.uk/id/local-authority/37UD,Leisure,LEIS,Leisure Centres,LCEN,Liberty Leisure Limited / Kimberley Leisure Centre,Repairs & Maintenance,1000,Central Pot,Central,06/07/2018,V002174,684,Eyre & Elliston Ltd,918,BAC001394
Liberty Leisure Limited,http://statistics.data.gov.uk/id/local-authority/37UD,Leisure,LEIS,Leisure Centres,LCEN,Liberty Leisure Limited / Kimberley Leisure Centre,Repairs & Maintenance,1000,Central Pot,Central,15/02/2019,V003293,275,Eyre & Elliston Ltd,504.96,BAC002092
Liberty Leisure Limited,http://statistics.data.gov.uk/id/local-authority/37UD,Leisure,LEIS,Leisure Centres,LCEN,Liberty Leisure Limited / Kimberley Leisure Centre,Repairs & Maintenance,1000,Central Pot,Central,26/04/2019,V003670,690,Eyre & Elliston Ltd,1121.62,BAC002319
Liberty Leisure Limited,http://statistics.data.gov.uk/id/local-authority/37UD,Culture and Heritage,CULT,Events,LEVE,Liberty Leisure Limited / Chilwell Olympia,Promotion of The Arts,3066,Office Supplies,Offsup,22/06/2018,V002116,569,Family Grapevine Nottinghamshire,"1,138",BAC001362
Liberty Leisure Limited,http://statistics.data.gov.uk/id/local-authority/37UD,Leisure,LEIS,Leisure Development,LDEV,Liberty Leisure Limited / Chilwell Olympia,Advertising,3412,Advertising,Advert,22/06/2018,V002116,569,Family Grapevine Nottinghamshire,"1,138",BAC001362
Liberty Leisure Limited,http://statistics.data.gov.uk/id/local-authority/37UD,Culture and Heritage,CULT,Events,LEVE,Liberty Leisure Limited / Events,Promotion of The Arts,3066,Office Supplies,Offsup,05/07/2019,V003971,1134,Family Grapevine Nottinghamshire,1134,BAC002521
Liberty Leisure Limited,http://statistics.data.gov.uk/id/local-authority/37UD,Leisure,LEIS,Leisure Centres,LCEN,Liberty Leisure Limited / Bramcote Leisure Centre,Printing & Stationery,3300,Printing,Print,03/04/2018,V001748,670,Fastgraphics,"1,343",BAC001107
Liberty Leisure Limited,http://statistics.data.gov.uk/id/local-authority/37UD,Leisure,LEIS,Leisure Centres,LCEN,Liberty Leisure Limited / Bramcote Leisure Centre,Printing & Stationery,3300,Printing,Print,03/04/2018,V001748,316,Fastgraphics,"1,343",BAC001107
Liberty Leisure Limited,http://statistics.data.gov.uk/id/local-authority/37UD,Leisure,LEIS,Leisure Centres,LCEN,Liberty Leisure Limited / Kimberley Leisure Centre,Advertising,3412,Advertising,Advert,13/04/2018,V001784,660,Fastgraphics,792,BAC001163
Liberty Leisure Limited,http://statistics.data.gov.uk/id/local-authority/37UD,Leisure,LEIS,Leisure Centres,LCEN,Liberty Leisure Limited / Chilwell Olympia,Printing & Stationery,3300,Printing,Print,27/04/2018,V001898,590,Fastgraphics,"1,621",BAC001189
Liberty Leisure Limited,http://statistics.data.gov.uk/id/local-authority/37UD,Leisure,LEIS,Leisure Centres,LCEN,Liberty Leisure Limited / Chilwell Olympia,Printing & Stationery,3300,Printing,Print,27/04/2018,V001896,529,Fastgraphics,"1,621",BAC001189
Liberty Leisure Limited,http://statistics.data.gov.uk/id/local-authority/37UD,Leisure,LEIS,Leisure Centres,LCEN,Liberty Leisure Limited / Chilwell Olympia,Printing & Stationery,3300,Printing,Print,11/05/2018,V001957,776,Fastgraphics,931,BAC001230
Liberty Leisure Limited,http://statistics.data.gov.uk/id/local-authority/37UD,Leisure,LEIS,Leisure Centres,LCEN,Liberty Leisure Limited / Bramcote Leisure Centre,Advertising,3412,Advertising,Advert,29/03/2019,V003514,363,Fastgraphics,465.6,BAC002228
Liberty Leisure Limited,http://statistics.data.gov.uk/id/local-authority/37UD,Leisure,LEIS,Leisure Centres,LCEN,Liberty Leisure Limited / Chilwell Olympia,Advertising,3412,Advertising,Advert,12/04/2019,V003608,1680,Fastgraphics,2016,BAC002286
Liberty Leisure Limited,http://statistics.data.gov.uk/id/local-authority/37UD,Leisure,LEIS,Leisure Centres,LCEN,Liberty Leisure Limited / Chilwell Olympia,Advertising,3412,Advertising,Advert,07/06/2019,V003837,636,Fastgraphics,763.2,BAC002436
Liberty Leisure Limited,http://statistics.data.gov.uk/id/local-authority/37UD,Leisure,LEIS,Leisure Centres,LCEN,Liberty Leisure Limited / Bramcote Leisure Centre,Advertising,3412,Advertising,Advert,05/07/2019,V003942,240,Fastgraphics,3231.6,BAC002511
Liberty Leisure Limited,http://statistics.data.gov.uk/id/local-authority/37UD,Leisure,LEIS,Leisure Centres,LCEN,Liberty Leisure Limited / Bramcote Leisure Centre,Advertising,3412,Advertising,Advert,05/07/2019,V003942,490,Fastgraphics,3231.6,BAC002511
Liberty Leisure Limited,http://statistics.data.gov.uk/id/local-authority/37UD,Leisure,LEIS,Leisure Centres,LCEN,Liberty Leisure Limited / Bramcote Leisure Centre,Advertising,3412,Advertising,Advert,05/07/2019,V003942,652,Fastgraphics,3231.6,BAC002511
Liberty Leisure Limited,http://statistics.data.gov.uk/id/local-authority/37UD,Leisure,LEIS,Leisure Centres,LCEN,Liberty Leisure Limited / Bramcote Leisure Centre,Advertising,3412,Advertising,Advert,05/07/2019,V003942,46,Fastgraphics,3231.6,BAC002511
Liberty Leisure Limited,http://statistics.data.gov.uk/id/local-authority/37UD,Leisure,LEIS,Leisure Centres,LCEN,Liberty Leisure Limited / Kimberley Leisure Centre,Advertising,3412,Advertising,Advert,05/07/2019,V003944,1265,Fastgraphics,3231.6,BAC002511
Liberty Leisure Limited,http://statistics.data.gov.uk/id/local-authority/37UD,Leisure,LEIS,Leisure Centres,LCEN,Liberty Leisure Limited / Chilwell Olympia,Advertising,3412,Advertising,Advert,19/07/2019,V004024,35,Fastgraphics,1783.2,BAC002563
Liberty Leisure Limited,http://statistics.data.gov.uk/id/local-authority/37UD,Leisure,LEIS,Leisure Centres,LCEN,Liberty Leisure Limited / Chilwell Olympia,Advertising,3412,Advertising,Advert,19/07/2019,V004018,1451,Fastgraphics,1783.2,BAC002563
Liberty Leisure Limited,http://statistics.data.gov.uk/id/local-authority/37UD,Leisure,LEIS,Leisure Centres,LCEN,Liberty Leisure Limited / Chilwell Olympia,Advertising,3412,Advertising,Advert,30/08/2019,V004270,348,Fastgraphics,417.6,BAC002693
Liberty Leisure Limited,http://statistics.data.gov.uk/id/local-authority/37UD,Culture and Heritage,CULT,Events,LEVE,Liberty Leisure Limited / Events,Promotion of The Arts,3066,Office Supplies,Offsup,28/09/2018,V002584,350,Fat Digester,"101,471",BAC001685
Liberty Leisure Limited,http://statistics.data.gov.uk/id/local-authority/37UD,Culture and Heritage,CULT,Events,LEVE,Liberty Leisure Limited / Events,Promotion of The Arts,3066,Office Supplies,Offsup,28/09/2018,V002582,1101.83,Filmbankmedia,"101,653",BAC001687
Liberty Leisure Limited,http://statistics.data.gov.uk/id/local-authority/37UD,Culture and Heritage,CULT,Events,LEVE,Liberty Leisure Limited / Events,Promotion of The Arts,3066,Office Supplies,Offsup,28/09/2018,V002581,465,Filmbankmedia,"101,653",BAC001687
Liberty Leisure Limited,http://statistics.data.gov.uk/id/local-authority/37UD,Culture and Heritage,CULT,Events,LEVE,Liberty Leisure Limited / Events,Promotion of The Arts,3066,Office Supplies,Offsup,13/09/2019,V004319,408.5,Filmbankmedia,3311.2,BAC002768
s,http://statistics.data.gov.uk/id/local-authority/37UD,Culture and Heritage,CULT,Events,LEVE,Liberty Leisure Limited / Events,Promotion of The Arts,3066,Office Supplies,Offsup,13/09/2019,V004311,139,Filmbankmedia,3311.2,BAC002768
Liberty Leisure Limited,http://statistics.data.gov.uk/id/local-authority/37UD,Culture and Heritage,CULT,Events,LEVE,Liberty Leisure Limited / Events,Promotion of The Arts,3066,Office Supplies,Offsup,13/09/2019,V004309,139,Filmbankmedia,3311.2,BAC002768
Liberty Leisure Limited,http://statistics.data.gov.uk/id/local-authority/37UD,Culture and Heritage,CULT,Events,LEVE,Liberty Leisure Limited / Events,Promotion of The Arts,3066,Office Supplies,Offsup,13/09/2019,V004310,139,Filmbankmedia,3311.2,BAC002768
Liberty Leisure Limited,http://statistics.data.gov.uk/id/local-authority/37UD,Culture and Heritage,CULT,Events,LEVE,Liberty Leisure Limited / Events,Promotion of The Arts,3066,Office Supplies,Offsup,13/09/2019,V004312,139,Filmbankmedia,3311.2,BAC002768
Liberty Leisure Limited,http://statistics.data.gov.uk/id/local-authority/37UD,Culture and Heritage,CULT,Events,LEVE,Liberty Leisure Limited / Events,Promotion of The Arts,3066,Office Supplies,Offsup,13/09/2019,V004313,139,Filmbankmedia,3311.2,BAC002768
Liberty Leisure Limited,http://statistics.data.gov.uk/id/local-authority/37UD,Culture and Heritage,CULT,Events,LEVE,Liberty Leisure Limited / Events,Promotion of The Arts,3066,Office Supplies,Offsup,13/09/2019,V004314,139,Filmbankmedia,3311.2,BAC002768
Liberty Leisure Limited,http://statistics.data.gov.uk/id/local-authority/37UD,Culture and Heritage,CULT,Events,LEVE,Liberty Leisure Limited / Events,Promotion of The Arts,3066,Office Supplies,Offsup,13/09/2019,V004316,166.33,Filmbankmedia,3311.2,BAC002768
Liberty Leisure Limited,http://statistics.data.gov.uk/id/local-authority/37UD,Culture and Heritage,CULT,Events,LEVE,Liberty Leisure Limited / Events,Promotion of The Arts,3066,Office Supplies,Offsup,13/09/2019,V004317,139,Filmbankmedia,3311.2,BAC002768
Liberty Leisure Limited,http://statistics.data.gov.uk/id/local-authority/37UD,Culture and Heritage,CULT,Events,LEVE,Liberty Leisure Limited / Events,Promotion of The Arts,3066,Office Supplies,Offsup,13/09/2019,V004322,398,Filmbankmedia,3311.2,BAC002768
Liberty Leisure Limited,http://statistics.data.gov.uk/id/local-authority/37UD,Culture and Heritage,CULT,Events,LEVE,Liberty Leisure Limited / Events,Promotion of The Arts,3066,Office Supplies,Offsup,13/09/2019,V004321,364.5,Filmbankmedia,3311.2,BAC002768
Liberty Leisure Limited,http://statistics.data.gov.uk/id/local-authority/37UD,Culture and Heritage,CULT,Events,LEVE,Liberty Leisure Limited / Events,Promotion of The Arts,3066,Office Supplies,Offsup,13/09/2019,V004315,164,Filmbankmedia,3311.2,BAC002768
Liberty Leisure Limited,http://statistics.data.gov.uk/id/local-authority/37UD,Culture and Heritage,CULT,Events,LEVE,Liberty Leisure Limited / Events,Promotion of The Arts,3066,Office Supplies,Offsup,13/09/2019,V004320,285,Filmbankmedia,3311.2,BAC002768
Liberty Leisure Limited,http://statistics.data.gov.uk/id/local-authority/37UD,Leisure,LEIS,Leisure Centres,LCEN,Liberty Leisure Limited / Kimberley Leisure Centre,Service Contracts,3056,Other Supplies & Services,OtherSS,08/06/2018,V002093,695.71,FitServe Ltd,835,BAC001319
Liberty Leisure Limited,http://statistics.data.gov.uk/id/local-authority/37UD,Leisure,LEIS,Leisure Centres,LCEN,Liberty Leisure Limited / Chilwell Olympia,Repairs & Maintenance,1000,Central Pot,Central,15/03/2019,V003403,569.29,FitServe Ltd,683.15,BAC002180
Liberty Leisure Limited,http://statistics.data.gov.uk/id/local-authority/37UD,Leisure,LEIS,Leisure Centres,LCEN,Liberty Leisure Limited / Kimberley Leisure Centre,Service Contracts,3056,Other Supplies & Services,OtherSS,10/05/2019,V003718,500,FitServe Ltd,600,BAC002355
Liberty Leisure Limited,http://statistics.data.gov.uk/id/local-authority/37UD,Leisure,LEIS,Leisure Centres,LCEN,Liberty Leisure Limited / Bramcote Leisure Centre,Service Contracts,3056,Other Supplies & Services,OtherSS,02/08/2019,V004082,180,FitServe Ltd,300,BAC002606
Liberty Leisure Limited,http://statistics.data.gov.uk/id/local-authority/37UD,Leisure,LEIS,Leisure Centres,LCEN,Liberty Leisure Limited / Bramcote Leisure Centre,Service Contracts,3056,Other Supplies & Services,OtherSS,02/08/2019,V004082,50,FitServe Ltd,300,BAC002606
Liberty Leisure Limited,http://statistics.data.gov.uk/id/local-authority/37UD,Leisure,LEIS,Leisure Centres,LCEN,Liberty Leisure Limited / Bramcote Leisure Centre,Service Contracts,3056,Other Supplies & Services,OtherSS,02/08/2019,V004082,20,FitServe Ltd,300,BAC002606
Liberty Leisure Limited,http://statistics.data.gov.uk/id/local-authority/37UD,Culture and Heritage,CULT,Events,LEVE,Liberty Leisure Limited / Chilwell Olympia,Promotion of The Arts,3066,Office Supplies,Offsup,21/12/2018,V003026,900,Fools Paradise,"2,850",BAC001916
Liberty Leisure Limited,http://statistics.data.gov.uk/id/local-authority/37UD,Culture and Heritage,CULT,Events,LEVE,Liberty Leisure Limited / Chilwell Olympia,Promotion of The Arts,3066,Office Supplies,Offsup,21/12/2018,V003026,800,Fools Paradise,"2,850",BAC001916
Liberty Leisure Limited,http://statistics.data.gov.uk/id/local-authority/37UD,Culture and Heritage,CULT,Events,LEVE,Liberty Leisure Limited / Chilwell Olympia,Promotion of The Arts,3066,Office Supplies,Offsup,21/12/2018,V003026,675,Fools Paradise,"2,850",BAC001916
Liberty Leisure Limited,http://statistics.data.gov.uk/id/local-authority/37UD,Culture and Heritage,CULT,Events,LEVE,Liberty Leisure Limited / Events,Promotion of The Arts,3066,Office Supplies,Offsup,30/08/2019,V004244,755,Fools Paradise,906,BAC002678
Liberty Leisure Limited,http://statistics.data.gov.uk/id/local-authority/37UD,Leisure,LEIS,Leisure Centres,LCEN,Liberty Leisure Limited / Bramcote Leisure Centre,Service Contracts,3056,Other Supplies & Services,OtherSS,03/04/2018,V001705,1822.92,FREDK LAMB,"2,188",BAC001134
Liberty Leisure Limited,http://statistics.data.gov.uk/id/local-authority/37UD,Leisure,LEIS,Leisure Centres,LCEN,Liberty Leisure Limited / Kimberley Leisure Centre,Electrical Testing,1043,Central Pot,Central,29/03/2019,V003535,2512.02,FREDK LAMB,3014.42,BAC002251
Liberty Leisure Limited,http://statistics.data.gov.uk/id/local-authority/37UD,Culture and Heritage,CULT,Heritage,LHER,Liberty Leisure Limited / DHL Museum,Repairs & Maintenance,1000,Central Pot,Central,27/09/2019,V004408,254.24,FREDK LAMB,305.09,BAC002808
Liberty Leisure Limited,http://statistics.data.gov.uk/id/local-authority/37UD,Leisure,LEIS,Leisure Centres,LCEN,Liberty Leisure Limited / Kimberley Leisure Centre,Service Contracts,3056,Other Supplies & Services,OtherSS,03/08/2018,V002333,312,Fresh Opportunities Limited,771,BAC001468
Liberty Leisure Limited,http://statistics.data.gov.uk/id/local-authority/37UD,Leisure,LEIS,Leisure Centres,LCEN,Liberty Leisure Limited / Chilwell Olympia,Service Contracts,3056,Other Supplies & Services,OtherSS,21/12/2018,V003012,522,Fresh Opportunities Limited,657,BAC001917
Liberty Leisure Limited,http://statistics.data.gov.uk/id/local-authority/37UD,Culture and Heritage,CULT,Events,LEVE,Liberty Leisure Limited / Events,Promotion of The Arts,3066,Office Supplies,Offsup,22/06/2018,V002147,600,Frontline Living History,600,BAC001369
Liberty Leisure Limited,http://statistics.data.gov.uk/id/local-authority/37UD,Culture and Heritage,CULT,Heritage,LHER,Liberty Leisure Limited / DHL Museum,Security - Public Buildings,3626,Security Costs,Secure,15/02/2019,V003253,380.24,FSE Fire Safety Systems Ltd,1056.74,BAC002115
Liberty Leisure Limited,http://statistics.data.gov.uk/id/local-authority/37UD,Culture and Heritage,CULT,Heritage,LHER,Liberty Leisure Limited / DHL Museum,Security - Public Buildings,3626,Security Costs,Secure,15/02/2019,V003252,260,FSE Fire Safety Systems Ltd,1056.74,BAC002115
Liberty Leisure Limited,http://statistics.data.gov.uk/id/local-authority/37UD,Culture and Heritage,CULT,Heritage,LHER,Liberty Leisure Limited / DHL Museum,Security - Public Buildings,3626,Security Costs,Secure,21/06/2019,V003893,261.84,FSE Fire Safety Systems Ltd,261.84,BAC002490
Liberty Leisure Limited,http://statistics.data.gov.uk/id/local-authority/37UD,Culture and Heritage,CULT,Events,LEVE,Liberty Leisure Limited / Events,Promotion of The Arts,3066,Office Supplies,Offsup,30/08/2019,V004236,153,G H Platts Services,1285.2,BAC002682
Liberty Leisure Limited,http://statistics.data.gov.uk/id/local-authority/37UD,Culture and Heritage,CULT,Events,LEVE,Liberty Leisure Limited / Events,Promotion of The Arts,3066,Office Supplies,Offsup,30/08/2019,V004237,153,G H Platts Services,1285.2,BAC002682
Liberty Leisure Limited,http://statistics.data.gov.uk/id/local-authority/37UD,Culture and Heritage,CULT,Events,LEVE,Liberty Leisure Limited / Events,Promotion of The Arts,3066,Office Supplies,Offsup,30/08/2019,V004237,153,G H Platts Services,1285.2,BAC002682
Liberty Leisure Limited,http://statistics.data.gov.uk/id/local-authority/37UD,Culture and Heritage,CULT,Events,LEVE,Liberty Leisure Limited / Events,Promotion of The Arts,3066,Office Supplies,Offsup,30/08/2019,V004237,153,G H Platts Services,1285.2,BAC002682
Liberty Leisure Limited,http://statistics.data.gov.uk/id/local-authority/37UD,Culture and Heritage,CULT,Events,LEVE,Liberty Leisure Limited / Events,Promotion of The Arts,3066,Office Supplies,Offsup,30/08/2019,V004235,153,G H Platts Services,1285.2,BAC002682
Liberty Leisure Limited,http://statistics.data.gov.uk/id/local-authority/37UD,Culture and Heritage,CULT,Events,LEVE,Liberty Leisure Limited / Events,Promotion of The Arts,3066,Office Supplies,Offsup,30/08/2019,V004237,153,G H Platts Services,1285.2,BAC002682
Liberty Leisure Limited,http://statistics.data.gov.uk/id/local-authority/37UD,Culture and Heritage,CULT,Events,LEVE,Liberty Leisure Limited / Events,Promotion of The Arts,3066,Office Supplies,Offsup,30/08/2019,V004238,153,G H Platts Services,1285.2,BAC002682
Liberty Leisure Limited,http://statistics.data.gov.uk/id/local-authority/37UD,Leisure,LEIS,Leisure Centres,LCEN,Liberty Leisure Limited / Bramcote Leisure Centre,Chemicals,3152,Other Supplies & Services,OtherSS,20/07/2018,V002294,611.36,Gaffey Technical Services,"1,467",BAC001425
Liberty Leisure Limited,http://statistics.data.gov.uk/id/local-authority/37UD,Leisure,LEIS,Leisure Centres,LCEN,Liberty Leisure Limited / Bramcote Leisure Centre,Chemicals,3152,Other Supplies & Services,OtherSS,20/07/2018,V002295,611.36,Gaffey Technical Services,"1,467",BAC001425
Liberty Leisure Limited,http://statistics.data.gov.uk/id/local-authority/37UD,Leisure,LEIS,Leisure Centres,LCEN,Liberty Leisure Limited / Bramcote Leisure Centre,Service Contracts,3056,Other Supplies & Services,OtherSS,17/08/2018,V002386,611.36,Gaffey Technical Services,734,BAC001514
Liberty Leisure Limited,http://statistics.data.gov.uk/id/local-authority/37UD,Leisure,LEIS,Leisure Centres,LCEN,Liberty Leisure Limited / Bramcote Leisure Centre,Service Contracts,3056,Other Supplies & Services,OtherSS,14/09/2018,V002531,611.36,Gaffey Technical Services,"93,075",BAC001608
Liberty Leisure Limited,http://statistics.data.gov.uk/id/local-authority/37UD,Leisure,LEIS,Leisure Centres,LCEN,Liberty Leisure Limited / Bramcote Leisure Centre,Service Contracts,3056,Other Supplies & Services,OtherSS,12/10/2018,V002682,611.36,Gaffey Technical Services,734,BAC001703
Liberty Leisure Limited,http://statistics.data.gov.uk/id/local-authority/37UD,Leisure,LEIS,Leisure Centres,LCEN,Liberty Leisure Limited / Bramcote Leisure Centre,Service Contracts,3056,Other Supplies & Services,OtherSS,07/12/2018,V002990,611.36,Gaffey Technical Services,734,BAC001871
Liberty Leisure Limited,http://statistics.data.gov.uk/id/local-authority/37UD,Leisure,LEIS,Leisure Centres,LCEN,Liberty Leisure Limited / Bramcote Leisure Centre,Service Contracts,3056,Other Supplies & Services,OtherSS,11/01/2019,V003124,611.35,Gaffey Technical Services,733.62,BAC001978
Liberty Leisure Limited,http://statistics.data.gov.uk/id/local-authority/37UD,Leisure,LEIS,Leisure Centres,LCEN,Liberty Leisure Limited / Bramcote Leisure Centre,Chemicals,3152,Other Supplies & Services,OtherSS,15/02/2019,V003300,624.81,Gaffey Technical Services,749.77,BAC002072
Liberty Leisure Limited,http://statistics.data.gov.uk/id/local-authority/37UD,Leisure,LEIS,Leisure Centres,LCEN,Liberty Leisure Limited / Bramcote Leisure Centre,Chemicals,3152,Other Supplies & Services,OtherSS,15/03/2019,V003426,624.81,Gaffey Technical Services,749.77,BAC002154
Liberty Leisure Limited,http://statistics.data.gov.uk/id/local-authority/37UD,Leisure,LEIS,Leisure Centres,LCEN,Liberty Leisure Limited / Bramcote Leisure Centre,Chemicals,3152,Other Supplies & Services,OtherSS,29/03/2019,V003466,611.36,Gaffey Technical Services,733.63,BAC002210
Liberty Leisure Limited,http://statistics.data.gov.uk/id/local-authority/37UD,Leisure,LEIS,Leisure Centres,LCEN,Liberty Leisure Limited / Bramcote Leisure Centre,Chemicals,3152,Other Supplies & Services,OtherSS,12/04/2019,V003620,624.81,Gaffey Technical Services,749.77,BAC002273
Liberty Leisure Limited,http://statistics.data.gov.uk/id/local-authority/37UD,Leisure,LEIS,Leisure Centres,LCEN,Liberty Leisure Limited / Bramcote Leisure Centre,Chemicals,3152,Other Supplies & Services,OtherSS,10/05/2019,V003753,624.81,Gaffey Technical Services,749.77,BAC002338
Liberty Leisure Limited,http://statistics.data.gov.uk/id/local-authority/37UD,Leisure,LEIS,Leisure Centres,LCEN,Liberty Leisure Limited / Bramcote Leisure Centre,Chemicals,3152,Other Supplies & Services,OtherSS,07/06/2019,V003852,624.81,Gaffey Technical Services,749.77,BAC002427
Liberty Leisure Limited,http://statistics.data.gov.uk/id/local-authority/37UD,Leisure,LEIS,Leisure Centres,LCEN,Liberty Leisure Limited / Bramcote Leisure Centre,Chemicals,3152,Other Supplies & Services,OtherSS,19/07/2019,V003997,624.81,Gaffey Technical Services,749.77,BAC002551
Liberty Leisure Limited,http://statistics.data.gov.uk/id/local-authority/37UD,Leisure,LEIS,Leisure Centres,LCEN,Liberty Leisure Limited / Bramcote Leisure Centre,Chemicals,3152,Other Supplies & Services,OtherSS,16/08/2019,V004140,624.81,Gaffey Technical Services,749.77,BAC002629
Liberty Leisure Limited,http://statistics.data.gov.uk/id/local-authority/37UD,Leisure,LEIS,Leisure Centres,LCEN,Liberty Leisure Limited / Bramcote Leisure Centre,Chemicals,3152,Other Supplies & Services,OtherSS,13/09/2019,V004297,624.81,Gaffey Technical Services,749.77,BAC002733
Liberty Leisure Limited,http://statistics.data.gov.uk/id/local-authority/37UD,Culture and Heritage,CULT,Heritage,LHER,Liberty Leisure Limited / DHL Museum,Purchase of Miscellaneous Items for Sale,3160,Other Supplies & Services,OtherSS,13/09/2019,V004182,35,Gardners Books Ltd,306.42,BAC002755
Liberty Leisure Limited,http://statistics.data.gov.uk/id/local-authority/37UD,Culture and Heritage,CULT,Heritage,LHER,Liberty Leisure Limited / DHL Museum,Purchase of Miscellaneous Items for Sale,3160,Other Supplies & Services,OtherSS,13/09/2019,V004182,264.42,Gardners Books Ltd,306.42,BAC002755
Liberty Leisure Limited,http://statistics.data.gov.uk/id/local-authority/37UD,Culture and Heritage,CULT,Events,LEVE,Liberty Leisure Limited / Chilwell Olympia,Promotion of The Arts,3066,Office Supplies,Offsup,29/03/2019,V003550,400,Generation Creative,400,BAC002261
Liberty Leisure Limited,http://statistics.data.gov.uk/id/local-authority/37UD,Leisure,LEIS,Leisure Centres,LCEN,Liberty Leisure Limited / Chilwell Olympia,Sports Equipment,3002,Equipment,Equip,08/06/2018,V002091,272.95,Geoff Ball & Co,632,BAC001307
Liberty Leisure Limited,http://statistics.data.gov.uk/id/local-authority/37UD,Leisure,LEIS,Leisure Centres,LCEN,Liberty Leisure Limited / Kimberley Leisure Centre,Repairs & Maintenance,1000,Central Pot,Central,27/04/2018,V001861,280,Geoff Green Joinery,430,BAC001185
Liberty Leisure Limited,http://statistics.data.gov.uk/id/local-authority/37UD,Leisure,LEIS,Leisure Centres,LCEN,Liberty Leisure Limited / Bramcote Leisure Centre,Repairs & Maintenance,1000,Central Pot,Central,25/05/2018,V002037,905,Geoff Green Joinery,905,BAC001270
Liberty Leisure Limited,http://statistics.data.gov.uk/id/local-authority/37UD,Leisure,LEIS,Leisure Centres,LCEN,Liberty Leisure Limited / Kimberley Leisure Centre,Repairs & Maintenance,1000,Central Pot,Central,03/08/2018,V002315,2250,Geoff Green Joinery,"4,650",BAC001479
Liberty Leisure Limited,http://statistics.data.gov.uk/id/local-authority/37UD,Leisure,LEIS,Leisure Centres,LCEN,Liberty Leisure Limited / Chilwell Olympia,Repairs & Maintenance,1000,Central Pot,Central,03/08/2018,V002361,1340,Geoff Green Joinery,"4,650",BAC001479
Liberty Leisure Limited,http://statistics.data.gov.uk/id/local-authority/37UD,Leisure,LEIS,Leisure Centres,LCEN,Liberty Leisure Limited / Kimberley Leisure Centre,Repairs & Maintenance,1000,Central Pot,Central,03/08/2018,V002315,330,Geoff Green Joinery,"4,650",BAC001479
Liberty Leisure Limited,http://statistics.data.gov.uk/id/local-authority/37UD,Leisure,LEIS,Leisure Centres,LCEN,Liberty Leisure Limited / Kimberley Leisure Centre,Repairs & Maintenance,1000,Central Pot,Central,03/08/2018,V002315,320,Geoff Green Joinery,"4,650",BAC001479
Liberty Leisure Limited,http://statistics.data.gov.uk/id/local-authority/37UD,Leisure,LEIS,Leisure Centres,LCEN,Liberty Leisure Limited / Chilwell Olympia,Repairs & Maintenance,1000,Central Pot,Central,14/09/2018,V002554,550,Geoff Green Joinery,"93,166",BAC001615
Liberty Leisure Limited,http://statistics.data.gov.uk/id/local-authority/37UD,Leisure,LEIS,Leisure Centres,LCEN,Liberty Leisure Limited / Chilwell Olympia,Repairs & Maintenance,1000,Central Pot,Central,14/09/2018,V002554,250,Geoff Green Joinery,"93,166",BAC001615
Liberty Leisure Limited,http://statistics.data.gov.uk/id/local-authority/37UD,Leisure,LEIS,Leisure Centres,LCEN,Liberty Leisure Limited / Chilwell Olympia,Repairs & Maintenance,1000,Central Pot,Central,07/12/2018,V002940,850,Geoff Green Joinery,850,BAC001880
Liberty Leisure Limited,http://statistics.data.gov.uk/id/local-authority/37UD,Leisure,LEIS,Leisure Centres,LCEN,Liberty Leisure Limited / Bramcote Leisure Centre,Repairs & Maintenance,1000,Central Pot,Central,21/12/2018,V003057,740,Geoff Green Joinery,740,BAC001925
Liberty Leisure Limited,http://statistics.data.gov.uk/id/local-authority/37UD,Leisure,LEIS,Leisure Centres,LCEN,Liberty Leisure Limited / Kimberley Leisure Centre,Repairs & Maintenance,1000,Central Pot,Central,11/01/2019,V003097,685,Geoff Green Joinery,685,BAC001988
Liberty Leisure Limited,http://statistics.data.gov.uk/id/local-authority/37UD,Leisure,LEIS,Leisure Centres,LCEN,Liberty Leisure Limited / Chilwell Olympia,Repairs & Maintenance,1000,Central Pot,Central,15/02/2019,V003310,320,Geoff Green Joinery,320,BAC002083
Liberty Leisure Limited,http://statistics.data.gov.uk/id/local-authority/37UD,Leisure,LEIS,Leisure Centres,LCEN,Liberty Leisure Limited / Bramcote Leisure Centre,Repairs & Maintenance,1000,Central Pot,Central,15/03/2019,V003420,410,Geoff Green Joinery,410,BAC002168
Liberty Leisure Limited,http://statistics.data.gov.uk/id/local-authority/37UD,Leisure,LEIS,Leisure Centres,LCEN,Liberty Leisure Limited / Bramcote Leisure Centre,Repairs & Maintenance,1000,Central Pot,Central,29/03/2019,V003575,5375,Geoff Green Joinery,5375,BAC002227
Liberty Leisure Limited,http://statistics.data.gov.uk/id/local-authority/37UD,Leisure,LEIS,Leisure Centres,LCEN,Liberty Leisure Limited / Kimberley Leisure Centre,Repairs & Maintenance,1000,Central Pot,Central,26/04/2019,V003664,2500,Geoff Green Joinery,3270,BAC002313
Liberty Leisure Limited,http://statistics.data.gov.uk/id/local-authority/37UD,Leisure,LEIS,Leisure Centres,LCEN,Liberty Leisure Limited / Chilwell Olympia,Repairs & Maintenance,1000,Central Pot,Central,26/04/2019,V003679,550,Geoff Green Joinery,3270,BAC002313
Liberty Leisure Limited,http://statistics.data.gov.uk/id/local-authority/37UD,Leisure,LEIS,Leisure Centres,LCEN,Liberty Leisure Limited / Kimberley Leisure Centre,Repairs & Maintenance,1000,Central Pot,Central,24/05/2019,V003777,1260,Geoff Green Joinery,1512,BAC002388
Liberty Leisure Limited,http://statistics.data.gov.uk/id/local-authority/37UD,Leisure,LEIS,Leisure Centres,LCEN,Liberty Leisure Limited / Chilwell Olympia,Repairs & Maintenance,1000,Central Pot,Central,07/06/2019,V003830,825,Geoff Green Joinery,990,BAC002435
Liberty Leisure Limited,http://statistics.data.gov.uk/id/local-authority/37UD,Leisure,LEIS,Leisure Centres,LCEN,Liberty Leisure Limited / Chilwell Olympia,Repairs & Maintenance,1000,Central Pot,Central,16/08/2019,V004113,50,Geoff Green Joinery,396,BAC002637
Liberty Leisure Limited,http://statistics.data.gov.uk/id/local-authority/37UD,Leisure,LEIS,Leisure Centres,LCEN,Liberty Leisure Limited / Chilwell Olympia,Repairs & Maintenance,1000,Central Pot,Central,16/08/2019,V004113,50,Geoff Green Joinery,396,BAC002637
Liberty Leisure Limited,http://statistics.data.gov.uk/id/local-authority/37UD,Leisure,LEIS,Leisure Centres,LCEN,Liberty Leisure Limited / Chilwell Olympia,Repairs & Maintenance,1000,Central Pot,Central,16/08/2019,V004113,50,Geoff Green Joinery,396,BAC002637
Liberty Leisure Limited,http://statistics.data.gov.uk/id/local-authority/37UD,Leisure,LEIS,Leisure Centres,LCEN,Liberty Leisure Limited / Chilwell Olympia,Repairs & Maintenance,1000,Central Pot,Central,16/08/2019,V004113,50,Geoff Green Joinery,396,BAC002637
Liberty Leisure Limited,http://statistics.data.gov.uk/id/local-authority/37UD,Leisure,LEIS,Leisure Centres,LCEN,Liberty Leisure Limited / Chilwell Olympia,Repairs & Maintenance,1000,Central Pot,Central,16/08/2019,V004113,50,Geoff Green Joinery,396,BAC002637
Liberty Leisure Limited,http://statistics.data.gov.uk/id/local-authority/37UD,Leisure,LEIS,Leisure Centres,LCEN,Liberty Leisure Limited / Chilwell Olympia,Repairs & Maintenance,1000,Central Pot,Central,16/08/2019,V004113,50,Geoff Green Joinery,396,BAC002637
Liberty Leisure Limited,http://statistics.data.gov.uk/id/local-authority/37UD,Leisure,LEIS,Leisure Centres,LCEN,Liberty Leisure Limited / Chilwell Olympia,Repairs & Maintenance,1000,Central Pot,Central,16/08/2019,V004113,30,Geoff Green Joinery,396,BAC002637
Liberty Leisure Limited,http://statistics.data.gov.uk/id/local-authority/37UD,Leisure,LEIS,Leisure Centres,LCEN,Liberty Leisure Limited / Kimberley Leisure Centre,Repairs & Maintenance,1000,Central Pot,Central,13/09/2019,V004339,2135,Geoff Green Joinery,2562,BAC002743
Liberty Leisure Limited,http://statistics.data.gov.uk/id/local-authority/37UD,Leisure,LEIS,Leisure Centres,LCEN,Liberty Leisure Limited / Bramcote Leisure Centre,Cleaning Materials,1510,Other Prem,OthPrem,13/09/2019,V004295,210,Grange Europe Ltd,504,BAC002749
Liberty Leisure Limited,http://statistics.data.gov.uk/id/local-authority/37UD,Leisure,LEIS,Leisure Centres,LCEN,Liberty Leisure Limited / Bramcote Leisure Centre,Cleaning Materials,1510,Other Prem,OthPrem,13/09/2019,V004296,210,Grange Europe Ltd,504,BAC002749
Liberty Leisure Limited,http://statistics.data.gov.uk/id/local-authority/37UD,Leisure,LEIS,Leisure Centres,LCEN,Liberty Leisure Limited / Kimberley Leisure Centre,Repairs & Maintenance,1000,Central Pot,Central,11/01/2019,V003096,779.57,Granwax Products Limited,1018.28,BAC001980
Liberty Leisure Limited,http://statistics.data.gov.uk/id/local-authority/37UD,Leisure,LEIS,Leisure Centres,LCEN,Liberty Leisure Limited / Chilwell Olympia,Repairs & Maintenance,1000,Central Pot,Central,16/08/2019,V004154,83.8,Gym Repair Services,372.24,BAC002668
Liberty Leisure Limited,http://statistics.data.gov.uk/id/local-authority/37UD,Leisure,LEIS,Leisure Centres,LCEN,Liberty Leisure Limited / Chilwell Olympia,Repairs & Maintenance,1000,Central Pot,Central,16/08/2019,V004154,96.4,Gym Repair Services,372.24,BAC002668
Liberty Leisure Limited,http://statistics.data.gov.uk/id/local-authority/37UD,Leisure,LEIS,Leisure Centres,LCEN,Liberty Leisure Limited / Chilwell Olympia,Repairs & Maintenance,1000,Central Pot,Central,16/08/2019,V004153,130,Gym Repair Services,372.24,BAC002668
Liberty Leisure Limited,http://statistics.data.gov.uk/id/local-authority/37UD,Leisure,LEIS,Leisure Centres,LCEN,Liberty Leisure Limited / Bramcote Leisure Centre,Repairs & Maintenance,1000,Central Pot,Central,03/08/2018,V002370,362.71,Halls Master Locksmiths Limited,435,BAC001469
Liberty Leisure Limited,http://statistics.data.gov.uk/id/local-authority/37UD,Leisure,LEIS,Leisure Centres,LCEN,Liberty Leisure Limited / Kimberley Leisure Centre,Repairs & Maintenance,1000,Central Pot,Central,12/04/2019,V003598,675.13,Halls Master Locksmiths Limited,810.16,BAC002274
Liberty Leisure Limited,http://statistics.data.gov.uk/id/local-authority/37UD,Leisure,LEIS,Leisure Development,LDEV,Liberty Leisure Limited / Kimberley Leisure Centre,Course & Examination Fees,0720,Indirect Employee Exp Oncosts,Oncosts,13/09/2019,V004336,340,Hannah Davies,340,BAC002764
Liberty Leisure Limited,http://statistics.data.gov.uk/id/local-authority/37UD,Culture and Heritage,CULT,Events,LEVE,Liberty Leisure Limited / Events,Promotion of The Arts,3066,Office Supplies,Offsup,19/07/2019,V004050,762.5,Historical Promotions and Event Management,915,BAC002588
Liberty Leisure Limited,http://statistics.data.gov.uk/id/local-authority/37UD,Culture and Heritage,CULT,Events,LEVE,Liberty Leisure Limited / Events,Promotion of The Arts,3066,Office Supplies,Offsup,30/08/2019,V004232,2495,Historical Promotions and Event Management,5796,BAC002721
Liberty Leisure Limited,http://statistics.data.gov.uk/id/local-authority/37UD,Culture and Heritage,CULT,Events,LEVE,Liberty Leisure Limited / Events,Promotion of The Arts,3066,Office Supplies,Offsup,30/08/2019,V004232,22.5,Historical Promotions and Event Management,5796,BAC002721
Liberty Leisure Limited,http://statistics.data.gov.uk/id/local-authority/37UD,Culture and Heritage,CULT,Events,LEVE,Liberty Leisure Limited / Events,Promotion of The Arts,3066,Office Supplies,Offsup,30/08/2019,V004232,795,Historical Promotions and Event Management,5796,BAC002721
Liberty Leisure Limited,http://statistics.data.gov.uk/id/local-authority/37UD,Culture and Heritage,CULT,Events,LEVE,Liberty Leisure Limited / Events,Promotion of The Arts,3066,Office Supplies,Offsup,30/08/2019,V004232,755,Historical Promotions and Event Management,5796,BAC002721
Liberty Leisure Limited,http://statistics.data.gov.uk/id/local-authority/37UD,Culture and Heritage,CULT,Events,LEVE,Liberty Leisure Limited / Events,Promotion of The Arts,3066,Office Supplies,Offsup,30/08/2019,V004233,762.5,Historical Promotions and Event Management,5796,BAC002721
Liberty Leisure Limited,http://statistics.data.gov.uk/id/local-authority/37UD,Leisure,LEIS,Leisure Centres,LCEN,Liberty Leisure Limited / Bramcote Leisure Centre,Repairs & Maintenance,1000,Central Pot,Central,30/08/2019,V004250,228.8,Huthwaite Plumbing and Heating Supplies Ltd,274.56,BAC002718
Liberty Leisure Limited,http://statistics.data.gov.uk/id/local-authority/37UD,Leisure,LEIS,Leisure Development,LDEV,Liberty Leisure Limited / Chilwell Olympia,Business Development,3088,Other Supplies & Services,OtherSS,03/04/2018,V001722,1012.5,Ice Blue,"2,415",BAC001137
Liberty Leisure Limited,http://statistics.data.gov.uk/id/local-authority/37UD,Leisure,LEIS,Leisure Development,LDEV,Liberty Leisure Limited / Chilwell Olympia,Business Development,3088,Other Supplies & Services,OtherSS,03/04/2018,V001721,1000,Ice Blue,"2,415",BAC001137
Liberty Leisure Limited,http://statistics.data.gov.uk/id/local-authority/37UD,Leisure,LEIS,Leisure Management,LMAN,Liberty Leisure Limited / Liberty Leisure Development,Subscriptions,3730,Other Supplies & Services,OtherSS,16/08/2019,V003866,2900,ICO,2900,BAC002664
Liberty Leisure Limited,http://statistics.data.gov.uk/id/local-authority/37UD,Leisure,LEIS,Leisure Centres,LCEN,Liberty Leisure Limited / Kimberley Leisure Centre,Repairs & Maintenance,1000,Central Pot,Central,25/05/2018,V001945,256.54,Ilkeston Glazing,308,BAC001286
Liberty Leisure Limited,http://statistics.data.gov.uk/id/local-authority/37UD,Leisure,LEIS,Leisure Centres,LCEN,Liberty Leisure Limited / Bramcote Leisure Centre,Training,3740,Other Supplies & Services,OtherSS,03/04/2018,V001677,395,Institute of Swimming,790,BAC001126
Liberty Leisure Limited,http://statistics.data.gov.uk/id/local-authority/37UD,Leisure,LEIS,Leisure Centres,LCEN,Liberty Leisure Limited / Bramcote Leisure Centre,Training,3740,Other Supplies & Services,OtherSS,03/04/2018,V001676,395,Institute of Swimming,790,BAC001126
Liberty Leisure Limited,http://statistics.data.gov.uk/id/local-authority/37UD,Leisure,LEIS,Leisure Centres,LCEN,Liberty Leisure Limited / Bramcote Leisure Centre,Training,3740,Other Supplies & Services,OtherSS,20/07/2018,V002150,375,Institute of Swimming,375,BAC001443
Liberty Leisure Limited,http://statistics.data.gov.uk/id/local-authority/37UD,Leisure,LEIS,Leisure Centres,LCEN,Liberty Leisure Limited / Bramcote Leisure Centre,Training,3740,Other Supplies & Services,OtherSS,28/09/2018,V002626,680,Institute of Swimming,"93,547",BAC001671
Liberty Leisure Limited,http://statistics.data.gov.uk/id/local-authority/37UD,Leisure,LEIS,Leisure Centres,LCEN,Liberty Leisure Limited / Bramcote Leisure Centre,Training,3740,Other Supplies & Services,OtherSS,28/09/2018,V002625,395,Institute of Swimming,"93,547",BAC001671
Liberty Leisure Limited,http://statistics.data.gov.uk/id/local-authority/37UD,Leisure,LEIS,Leisure Centres,LCEN,Liberty Leisure Limited / Bramcote Leisure Centre,Training,3740,Other Supplies & Services,OtherSS,28/09/2018,V002623,395,Institute of Swimming,"93,547",BAC001671
Liberty Leisure Limited,http://statistics.data.gov.uk/id/local-authority/37UD,Leisure,LEIS,Leisure Centres,LCEN,Liberty Leisure Limited / Bramcote Leisure Centre,Training,3740,Other Supplies & Services,OtherSS,28/09/2018,V002624,395,Institute of Swimming,"93,547",BAC001671
Liberty Leisure Limited,http://statistics.data.gov.uk/id/local-authority/37UD,Leisure,LEIS,Leisure Centres,LCEN,Liberty Leisure Limited / Bramcote Leisure Centre,Training,3740,Other Supplies & Services,OtherSS,26/10/2018,V002777,375,Institute of Swimming,375,BAC001761
Liberty Leisure Limited,http://statistics.data.gov.uk/id/local-authority/37UD,Leisure,LEIS,Leisure Centres,LCEN,Liberty Leisure Limited / Bramcote Leisure Centre,Training,3740,Other Supplies & Services,OtherSS,23/11/2018,V002917,395,Institute of Swimming,395,BAC001844
Liberty Leisure Limited,http://statistics.data.gov.uk/id/local-authority/37UD,Leisure,LEIS,Leisure Centres,LCEN,Liberty Leisure Limited / Bramcote Leisure Centre,Training,3740,Other Supplies & Services,OtherSS,21/12/2018,V003083,680,Institute of Swimming,"1,360",BAC001947
Liberty Leisure Limited,http://statistics.data.gov.uk/id/local-authority/37UD,Leisure,LEIS,Leisure Centres,LCEN,Liberty Leisure Limited / Bramcote Leisure Centre,Training,3740,Other Supplies & Services,OtherSS,21/12/2018,V003083,680,Institute of Swimming,"1,360",BAC001947
Liberty Leisure Limited,http://statistics.data.gov.uk/id/local-authority/37UD,Leisure,LEIS,Leisure Development,LDEV,Liberty Leisure Limited / Bramcote Leisure Centre,Course & Examination Fees,0720,Indirect Employee Exp Oncosts,Oncosts,02/08/2019,V004069,299,Institute of Swimming,598,BAC002607
Liberty Leisure Limited,http://statistics.data.gov.uk/id/local-authority/37UD,Leisure,LEIS,Leisure Development,LDEV,Liberty Leisure Limited / Bramcote Leisure Centre,Course & Examination Fees,0720,Indirect Employee Exp Oncosts,Oncosts,02/08/2019,V004069,299,Institute of Swimming,598,BAC002607
Liberty Leisure Limited,http://statistics.data.gov.uk/id/local-authority/37UD,Culture and Heritage,CULT,Events,LEVE,Liberty Leisure Limited / Events,Promotion of The Arts,3066,Office Supplies,Offsup,14/09/2018,V002543,400,Interactive Science Ltd,"93,816",BAC001634
Liberty Leisure Limited,http://statistics.data.gov.uk/id/local-authority/37UD,Culture and Heritage,CULT,Events,LEVE,Liberty Leisure Limited / Events,Promotion of The Arts,3066,Office Supplies,Offsup,14/09/2018,V002543,400,Interactive Science Ltd,"93,816",BAC001634
Liberty Leisure Limited,http://statistics.data.gov.uk/id/local-authority/37UD,Leisure,LEIS,Leisure Centres,LCEN,Liberty Leisure Limited / Chilwell Olympia,Repairs & Maintenance,1000,Central Pot,Central,06/04/2018,V001769,345,J P Carty Limited,714,BAC001144
Liberty Leisure Limited,http://statistics.data.gov.uk/id/local-authority/37UD,Leisure,LEIS,Leisure Centres,LCEN,Liberty Leisure Limited / Chilwell Olympia,Repairs & Maintenance,1000,Central Pot,Central,11/05/2018,V001932,270.15,J P Carty Limited,324,BAC001219
Liberty Leisure Limited,http://statistics.data.gov.uk/id/local-authority/37UD,Leisure,LEIS,Leisure Centres,LCEN,Liberty Leisure Limited / Chilwell Olympia,Repairs & Maintenance,1000,Central Pot,Central,06/07/2018,V002229,468.69,J P Carty Limited,638,BAC001378
Liberty Leisure Limited,http://statistics.data.gov.uk/id/local-authority/37UD,Leisure,LEIS,Leisure Centres,LCEN,Liberty Leisure Limited / Bramcote Leisure Centre,Service Contracts,3056,Other Supplies & Services,OtherSS,31/08/2018,V002513,695,J P Carty Limited,834,BAC001548
Liberty Leisure Limited,http://statistics.data.gov.uk/id/local-authority/37UD,Leisure,LEIS,Leisure Centres,LCEN,Liberty Leisure Limited / Chilwell Olympia,Repairs & Maintenance,1000,Central Pot,Central,26/10/2018,V002742,647,J P Carty Limited,"1,102",BAC001736
Liberty Leisure Limited,http://statistics.data.gov.uk/id/local-authority/37UD,Leisure,LEIS,Leisure Centres,LCEN,Liberty Leisure Limited / Chilwell Olympia,Repairs & Maintenance,1000,Central Pot,Central,21/12/2018,V003015,544.38,J P Carty Limited,"1,122",BAC001913
Liberty Leisure Limited,http://statistics.data.gov.uk/id/local-authority/37UD,Leisure,LEIS,Leisure Centres,LCEN,Liberty Leisure Limited / Chilwell Olympia,Repairs & Maintenance,1000,Central Pot,Central,21/12/2018,V003016,305,J P Carty Limited,"1,122",BAC001913
Liberty Leisure Limited,http://statistics.data.gov.uk/id/local-authority/37UD,Leisure,LEIS,Leisure Centres,LCEN,Liberty Leisure Limited / Chilwell Olympia,Repairs & Maintenance,1000,Central Pot,Central,18/01/2019,V003134,494,J P Carty Limited,592.8,BAC002011
Liberty Leisure Limited,http://statistics.data.gov.uk/id/local-authority/37UD,Leisure,LEIS,Leisure Centres,LCEN,Liberty Leisure Limited / Bramcote Leisure Centre,Repairs & Maintenance,1000,Central Pot,Central,15/03/2019,V003383,550.54,J P Carty Limited,887.05,BAC002149
Liberty Leisure Limited,http://statistics.data.gov.uk/id/local-authority/37UD,Leisure,LEIS,Leisure Centres,LCEN,Liberty Leisure Limited / Chilwell Olympia,Repairs & Maintenance,1000,Central Pot,Central,07/06/2019,V003838,1040.92,J P Carty Limited,1769.31,BAC002423
Liberty Leisure Limited,http://statistics.data.gov.uk/id/local-authority/37UD,Leisure,LEIS,Leisure Centres,LCEN,Liberty Leisure Limited / Chilwell Olympia,Repairs & Maintenance,1000,Central Pot,Central,05/07/2019,V003959,248,J P Carty Limited,3557.75,BAC002495
Liberty Leisure Limited,http://statistics.data.gov.uk/id/local-authority/37UD,Leisure,LEIS,Leisure Centres,LCEN,Liberty Leisure Limited / Chilwell Olympia,Repairs & Maintenance,1000,Central Pot,Central,05/07/2019,V003960,56.79,J P Carty Limited,3557.75,BAC002495
Liberty Leisure Limited,http://statistics.data.gov.uk/id/local-authority/37UD,Leisure,LEIS,Leisure Centres,LCEN,Liberty Leisure Limited / Chilwell Olympia,Repairs & Maintenance,1000,Central Pot,Central,05/07/2019,V003956,2660,J P Carty Limited,3557.75,BAC002495
Liberty Leisure Limited,http://statistics.data.gov.uk/id/local-authority/37UD,Leisure,LEIS,Leisure Centres,LCEN,Liberty Leisure Limited / Chilwell Olympia,Repairs & Maintenance,1000,Central Pot,Central,16/08/2019,V004114,64.64,J P Carty Limited,1702.95,BAC002627
Liberty Leisure Limited,http://statistics.data.gov.uk/id/local-authority/37UD,Leisure,LEIS,Leisure Centres,LCEN,Liberty Leisure Limited / Chilwell Olympia,Repairs & Maintenance,1000,Central Pot,Central,16/08/2019,V004138,1226.48,J P Carty Limited,1702.95,BAC002627
Liberty Leisure Limited,http://statistics.data.gov.uk/id/local-authority/37UD,Leisure,LEIS,Leisure Centres,LCEN,Liberty Leisure Limited / Chilwell Olympia,Electrical Testing,1043,Central Pot,Central,16/08/2019,V004115,128,J P Carty Limited,1702.95,BAC002627
Liberty Leisure Limited,http://statistics.data.gov.uk/id/local-authority/37UD,Leisure,LEIS,Leisure Centres,LCEN,Liberty Leisure Limited / Chilwell Olympia,Repairs & Maintenance,1000,Central Pot,Central,13/09/2019,V004326,389.24,J P Carty Limited,934.18,BAC002731
Liberty Leisure Limited,http://statistics.data.gov.uk/id/local-authority/37UD,Leisure,LEIS,Leisure Centres,LCEN,Liberty Leisure Limited / Chilwell Olympia,Repairs & Maintenance,1000,Central Pot,Central,13/09/2019,V004326,389.24,J P Carty Limited,934.18,BAC002731
Liberty Leisure Limited,http://statistics.data.gov.uk/id/local-authority/37UD,Leisure,LEIS,Leisure Centres,LCEN,Liberty Leisure Limited / Bramcote Leisure Centre,Sports Equipment,3002,Equipment,Equip,03/04/2018,V001703,317.9,J P Lennard Limited,381,BAC001093
Liberty Leisure Limited,http://statistics.data.gov.uk/id/local-authority/37UD,Leisure,LEIS,Leisure Centres,LCEN,Liberty Leisure Limited / Bramcote Leisure Centre,Sports Equipment,3002,Equipment,Equip,15/03/2019,V003434,593.07,J P Lennard Limited,1456.02,BAC002158
Liberty Leisure Limited,http://statistics.data.gov.uk/id/local-authority/37UD,Leisure,LEIS,Leisure Centres,LCEN,Liberty Leisure Limited / Bramcote Leisure Centre,Sports Equipment,3002,Equipment,Equip,15/03/2019,V003436,300,J P Lennard Limited,1456.02,BAC002158
Liberty Leisure Limited,http://statistics.data.gov.uk/id/local-authority/37UD,Leisure,LEIS,Leisure Centres,LCEN,Liberty Leisure Limited / Bramcote Leisure Centre,Sports Equipment,3002,Equipment,Equip,24/05/2019,V003756,900,J P Lennard Limited,1368,BAC002379
Liberty Leisure Limited,http://statistics.data.gov.uk/id/local-authority/37UD,Leisure,LEIS,Leisure Centres,LCEN,Liberty Leisure Limited / Kimberley Leisure Centre,Cleaning Materials,1510,Other Prem,OthPrem,05/07/2019,V003975,26.6,J P Lennard Limited,630.15,BAC002500
Liberty Leisure Limited,http://statistics.data.gov.uk/id/local-authority/37UD,Leisure,LEIS,Leisure Centres,LCEN,Liberty Leisure Limited / Kimberley Leisure Centre,Cleaning Materials,1510,Other Prem,OthPrem,05/07/2019,V003975,42.04,J P Lennard Limited,630.15,BAC002500
Liberty Leisure Limited,http://statistics.data.gov.uk/id/local-authority/37UD,Leisure,LEIS,Leisure Centres,LCEN,Liberty Leisure Limited / Kimberley Leisure Centre,Cleaning Materials,1510,Other Prem,OthPrem,05/07/2019,V003975,163.6,J P Lennard Limited,630.15,BAC002500
Liberty Leisure Limited,http://statistics.data.gov.uk/id/local-authority/37UD,Leisure,LEIS,Leisure Centres,LCEN,Liberty Leisure Limited / Kimberley Leisure Centre,Cleaning Materials,1510,Other Prem,OthPrem,05/07/2019,V003975,64.15,J P Lennard Limited,630.15,BAC002500
Liberty Leisure Limited,http://statistics.data.gov.uk/id/local-authority/37UD,Leisure,LEIS,Leisure Centres,LCEN,Liberty Leisure Limited / Kimberley Leisure Centre,Pool Equipment Purchase,3020,Other Supplies & Services,OtherSS,05/07/2019,V003976,115.08,J P Lennard Limited,630.15,BAC002500
Liberty Leisure Limited,http://statistics.data.gov.uk/id/local-authority/37UD,Leisure,LEIS,Leisure Centres,LCEN,Liberty Leisure Limited / Kimberley Leisure Centre,Pool Equipment Purchase,3020,Other Supplies & Services,OtherSS,05/07/2019,V003976,13.65,J P Lennard Limited,630.15,BAC002500
Liberty Leisure Limited,http://statistics.data.gov.uk/id/local-authority/37UD,Leisure,LEIS,Leisure Centres,LCEN,Liberty Leisure Limited / Kimberley Leisure Centre,Pool Equipment Purchase,3020,Other Supplies & Services,OtherSS,05/07/2019,V003976,100,J P Lennard Limited,630.15,BAC002500
Liberty Leisure Limited,http://statistics.data.gov.uk/id/local-authority/37UD,Leisure,LEIS,Leisure Centres,LCEN,Liberty Leisure Limited / Bramcote Leisure Centre,Sports Equipment,3002,Equipment,Equip,02/08/2019,V004081,13.65,J P Lennard Limited,354.98,BAC002591
Liberty Leisure Limited,http://statistics.data.gov.uk/id/local-authority/37UD,Leisure,LEIS,Leisure Centres,LCEN,Liberty Leisure Limited / Bramcote Leisure Centre,Sports Equipment,3002,Equipment,Equip,02/08/2019,V004089,13.65,J P Lennard Limited,354.98,BAC002591
Liberty Leisure Limited,http://statistics.data.gov.uk/id/local-authority/37UD,Leisure,LEIS,Leisure Centres,LCEN,Liberty Leisure Limited / Bramcote Leisure Centre,Sports Equipment,3002,Equipment,Equip,02/08/2019,V004089,160,J P Lennard Limited,354.98,BAC002591
Liberty Leisure Limited,http://statistics.data.gov.uk/id/local-authority/37UD,Leisure,LEIS,Leisure Centres,LCEN,Liberty Leisure Limited / Bramcote Leisure Centre,Sports Equipment,3002,Equipment,Equip,02/08/2019,V004081,108.52,J P Lennard Limited,354.98,BAC002591
Liberty Leisure Limited,http://statistics.data.gov.uk/id/local-authority/37UD,Leisure,LEIS,Leisure Centres,LCEN,Liberty Leisure Limited / Bramcote Leisure Centre,Sports Equipment,3002,Equipment,Equip,13/09/2019,V004303,276.7,J P Lennard Limited,332.04,BAC002735
Liberty Leisure Limited,http://statistics.data.gov.uk/id/local-authority/37UD,Leisure,LEIS,Leisure Centres,LCEN,Liberty Leisure Limited / Kimberley Leisure Centre,Repairs & Maintenance,1000,Central Pot,Central,27/09/2019,V004379,16.94,J P Lennard Limited,393.43,BAC002776
Liberty Leisure Limited,http://statistics.data.gov.uk/id/local-authority/37UD,Leisure,LEIS,Leisure Centres,LCEN,Liberty Leisure Limited / Kimberley Leisure Centre,Repairs & Maintenance,1000,Central Pot,Central,27/09/2019,V004379,16.98,J P Lennard Limited,393.43,BAC002776
Liberty Leisure Limited,http://statistics.data.gov.uk/id/local-authority/37UD,Leisure,LEIS,Leisure Centres,LCEN,Liberty Leisure Limited / Kimberley Leisure Centre,Repairs & Maintenance,1000,Central Pot,Central,27/09/2019,V004379,9.76,J P Lennard Limited,393.43,BAC002776
Liberty Leisure Limited,http://statistics.data.gov.uk/id/local-authority/37UD,Leisure,LEIS,Leisure Centres,LCEN,Liberty Leisure Limited / Kimberley Leisure Centre,Cleaning Materials,1510,Other Prem,OthPrem,27/09/2019,V004379,98.16,J P Lennard Limited,393.43,BAC002776
Liberty Leisure Limited,http://statistics.data.gov.uk/id/local-authority/37UD,Leisure,LEIS,Leisure Centres,LCEN,Liberty Leisure Limited / Kimberley Leisure Centre,Pool Equipment Purchase,3020,Other Supplies & Services,OtherSS,27/09/2019,V004378,30.9,J P Lennard Limited,393.43,BAC002776
Liberty Leisure Limited,http://statistics.data.gov.uk/id/local-authority/37UD,Leisure,LEIS,Leisure Centres,LCEN,Liberty Leisure Limited / Kimberley Leisure Centre,Pool Equipment Purchase,3020,Other Supplies & Services,OtherSS,27/09/2019,V004378,155.12,J P Lennard Limited,393.43,BAC002776
Liberty Leisure Limited,http://statistics.data.gov.uk/id/local-authority/37UD,Leisure,LEIS,Leisure Centres,LCEN,Liberty Leisure Limited / Bramcote Leisure Centre,Electrical Testing,1043,Central Pot,Central,03/04/2018,V001682,1610,JIH Electrical Ltd,"1,932",BAC001129
Liberty Leisure Limited,http://statistics.data.gov.uk/id/local-authority/37UD,Leisure,LEIS,Leisure Centres,LCEN,Liberty Leisure Limited / Bramcote Leisure Centre,Repairs & Maintenance,1000,Central Pot,Central,11/05/2018,V001987,1250,JIH Electrical Ltd,"1,680",BAC001246
Liberty Leisure Limited,http://statistics.data.gov.uk/id/local-authority/37UD,Leisure,LEIS,Leisure Centres,LCEN,Liberty Leisure Limited / Bramcote Leisure Centre,Repairs & Maintenance,1000,Central Pot,Central,22/06/2018,V002139,250,JIH Electrical Ltd,489,BAC001364
Liberty Leisure Limited,http://statistics.data.gov.uk/id/local-authority/37UD,Leisure,LEIS,Leisure Centres,LCEN,Liberty Leisure Limited / Bramcote Leisure Centre,Repairs & Maintenance,1000,Central Pot,Central,20/07/2018,V002300,910.37,JIH Electrical Ltd,"1,092",BAC001447
Liberty Leisure Limited,http://statistics.data.gov.uk/id/local-authority/37UD,Leisure,LEIS,Leisure Centres,LCEN,Liberty Leisure Limited / Bramcote Leisure Centre,Repairs & Maintenance,1000,Central Pot,Central,28/09/2018,V002628,480.28,JIH Electrical Ltd,"93,752",BAC001672
Liberty Leisure Limited,http://statistics.data.gov.uk/id/local-authority/37UD,Leisure,LEIS,Leisure Centres,LCEN,Liberty Leisure Limited / Bramcote Leisure Centre,Repairs & Maintenance,1000,Central Pot,Central,15/02/2019,V003217,1395.1,JIH Electrical Ltd,2240.1,BAC002106
Liberty Leisure Limited,http://statistics.data.gov.uk/id/local-authority/37UD,Leisure,LEIS,Leisure Centres,LCEN,Liberty Leisure Limited / Bramcote Leisure Centre,Repairs & Maintenance,1000,Central Pot,Central,15/02/2019,V003282,500,JIH Electrical Ltd,2240.1,BAC002106
Liberty Leisure Limited,http://statistics.data.gov.uk/id/local-authority/37UD,Leisure,LEIS,Leisure Centres,LCEN,Liberty Leisure Limited / Bramcote Leisure Centre,Repairs & Maintenance,1000,Central Pot,Central,15/02/2019,V003284,345,JIH Electrical Ltd,2240.1,BAC002106
Liberty Leisure Limited,http://statistics.data.gov.uk/id/local-authority/37UD,Leisure,LEIS,Leisure Centres,LCEN,Liberty Leisure Limited / Bramcote Leisure Centre,Electrical Testing,1043,Central Pot,Central,29/03/2019,V003560,1070,JIH Electrical Ltd,2070.98,BAC002243
Liberty Leisure Limited,http://statistics.data.gov.uk/id/local-authority/37UD,Leisure,LEIS,Leisure Centres,LCEN,Liberty Leisure Limited / Bramcote Leisure Centre,Repairs & Maintenance,1000,Central Pot,Central,29/03/2019,V003437,750,JIH Electrical Ltd,2070.98,BAC002243
Liberty Leisure Limited,http://statistics.data.gov.uk/id/local-authority/37UD,Leisure,LEIS,Leisure Centres,LCEN,Liberty Leisure Limited / Bramcote Leisure Centre,Electrical Testing,1043,Central Pot,Central,29/03/2019,V003558,683.08,JIH Electrical Ltd,2070.98,BAC002243
Liberty Leisure Limited,http://statistics.data.gov.uk/id/local-authority/37UD,Leisure,LEIS,Leisure Centres,LCEN,Liberty Leisure Limited / Bramcote Leisure Centre,Repairs & Maintenance,1000,Central Pot,Central,29/03/2019,V003519,450,JIH Electrical Ltd,2070.98,BAC002243
Liberty Leisure Limited,http://statistics.data.gov.uk/id/local-authority/37UD,Leisure,LEIS,Leisure Centres,LCEN,Liberty Leisure Limited / Bramcote Leisure Centre,Repairs & Maintenance,1000,Central Pot,Central,29/03/2019,V003521,278,JIH Electrical Ltd,2070.98,BAC002243
Liberty Leisure Limited,http://statistics.data.gov.uk/id/local-authority/37UD,Leisure,LEIS,Leisure Centres,LCEN,Liberty Leisure Limited / Bramcote Leisure Centre,Repairs & Maintenance,1000,Central Pot,Central,29/03/2019,V003439,-1395.1,JIH Electrical Ltd,2070.98,BAC002243
Liberty Leisure Limited,http://statistics.data.gov.uk/id/local-authority/37UD,Leisure,LEIS,Leisure Centres,LCEN,Liberty Leisure Limited / Bramcote Leisure Centre,Repairs & Maintenance,1000,Central Pot,Central,07/06/2019,V003850,2099.73,JIH Electrical Ltd,2099.73,BAC002449
Liberty Leisure Limited,http://statistics.data.gov.uk/id/local-authority/37UD,Leisure,LEIS,Leisure Centres,LCEN,Liberty Leisure Limited / Bramcote Leisure Centre,Repairs & Maintenance,1000,Central Pot,Central,05/07/2019,V003982,262.45,JIH Electrical Ltd,292.45,BAC002524
Liberty Leisure Limited,http://statistics.data.gov.uk/id/local-authority/37UD,Leisure,LEIS,Leisure Centres,LCEN,Liberty Leisure Limited / Bramcote Leisure Centre,Repairs & Maintenance,1000,Central Pot,Central,05/07/2019,V003982,30,JIH Electrical Ltd,292.45,BAC002524
Liberty Leisure Limited,http://statistics.data.gov.uk/id/local-authority/37UD,Leisure,LEIS,Leisure Centres,LCEN,Liberty Leisure Limited / Bramcote Leisure Centre,Repairs & Maintenance,1000,Central Pot,Central,02/08/2019,V004095,484.45,JIH Electrical Ltd,484.45,BAC002610
Liberty Leisure Limited,http://statistics.data.gov.uk/id/local-authority/37UD,Leisure,LEIS,Leisure Centres,LCEN,Liberty Leisure Limited / Bramcote Leisure Centre,Repairs & Maintenance,1000,Central Pot,Central,16/08/2019,V004143,165,JIH Electrical Ltd,615,BAC002657
Liberty Leisure Limited,http://statistics.data.gov.uk/id/local-authority/37UD,Leisure,LEIS,Leisure Centres,LCEN,Liberty Leisure Limited / Bramcote Leisure Centre,Electrical Testing,1043,Central Pot,Central,16/08/2019,V004170,450,JIH Electrical Ltd,615,BAC002657
Liberty Leisure Limited,http://statistics.data.gov.uk/id/local-authority/37UD,Leisure,LEIS,Leisure Centres,LCEN,Liberty Leisure Limited / Bramcote Leisure Centre,Repairs & Maintenance,1000,Central Pot,Central,30/08/2019,V004279,1115.81,JIH Electrical Ltd,1802.09,BAC002707
Liberty Leisure Limited,http://statistics.data.gov.uk/id/local-authority/37UD,Leisure,LEIS,Leisure Centres,LCEN,Liberty Leisure Limited / Bramcote Leisure Centre,Repairs & Maintenance,1000,Central Pot,Central,30/08/2019,V004278,686.28,JIH Electrical Ltd,1802.09,BAC002707
Liberty Leisure Limited,http://statistics.data.gov.uk/id/local-authority/37UD,Leisure,LEIS,Leisure Development,LDEV,Liberty Leisure Limited / Chilwell Olympia,Advertising,3412,Advertising,Advert,03/04/2018,V001709,307,JL Group Limited,368,BAC001128
Liberty Leisure Limited,http://statistics.data.gov.uk/id/local-authority/37UD,Leisure,LEIS,Leisure Centres,LCEN,Liberty Leisure Limited / Bramcote Leisure Centre,Printing & Stationery,3300,Printing,Print,08/06/2018,V002084,360,JL Group Limited,523,BAC001322
Liberty Leisure Limited,http://statistics.data.gov.uk/id/local-authority/37UD,Leisure,LEIS,Leisure Development,LDEV,Liberty Leisure Limited / Bramcote Leisure Centre,Advertising,3412,Advertising,Advert,06/07/2018,V002235,735,JL Group Limited,946,BAC001403
Liberty Leisure Limited,http://statistics.data.gov.uk/id/local-authority/37UD,Leisure,LEIS,Leisure Development,LDEV,Liberty Leisure Limited / Liberty Leisure Development,Advertising,3412,Advertising,Advert,23/11/2018,V002911,770,JL Group Limited,924,BAC001847
Liberty Leisure Limited,http://statistics.data.gov.uk/id/local-authority/37UD,Leisure,LEIS,Leisure Development,LDEV,Liberty Leisure Limited / Liberty Leisure Development,Advertising,3412,Advertising,Advert,16/08/2019,V004152,497,JL Group Limited,596.4,BAC002656
Liberty Leisure Limited,http://statistics.data.gov.uk/id/local-authority/37UD,Culture and Heritage,CULT,Events,LEVE,Liberty Leisure Limited / Events,Promotion of The Arts,3066,Office Supplies,Offsup,21/12/2018,V003046,1835,JTH Concerts and Live Events Limited,"2,202",BAC001954
Liberty Leisure Limited,http://statistics.data.gov.uk/id/local-authority/37UD,Leisure,LEIS,Leisure Centres,LCEN,Liberty Leisure Limited / Chilwell Olympia,Cleaning Materials,1510,Other Prem,OthPrem,03/04/2018,V001724,670.8,Karcher (U.K.)Ltd,805,BAC001110
Liberty Leisure Limited,http://statistics.data.gov.uk/id/local-authority/37UD,Leisure,LEIS,Leisure Centres,LCEN,Liberty Leisure Limited / Kimberley Leisure Centre,Service Contracts,3056,Other Supplies & Services,OtherSS,07/12/2018,V002976,365,Karcher (U.K.)Ltd,438,BAC001884
Liberty Leisure Limited,http://statistics.data.gov.uk/id/local-authority/37UD,Culture and Heritage,CULT,Heritage,LHER,Liberty Leisure Limited / DHL Museum,Advertising,3412,Advertising,Advert,29/03/2019,V003445,275,Kingfisher Media Limited,330,BAC002258
Liberty Leisure Limited,http://statistics.data.gov.uk/id/local-authority/37UD,Culture and Heritage,CULT,Heritage,LHER,Liberty Leisure Limited / Chilwell Olympia,Security - Cash Collection,3609,Security Costs,Secure,19/07/2019,V004019,60.2,Kings Armoured Security Services Limited,635.16,BAC002578
Liberty Leisure Limited,http://statistics.data.gov.uk/id/local-authority/37UD,Leisure,LEIS,Leisure Centres,LCEN,Liberty Leisure Limited / Chilwell Olympia,Security - Cash Collection,3609,Security Costs,Secure,19/07/2019,V004019,173.1,Kings Armoured Security Services Limited,635.16,BAC002578
Liberty Leisure Limited,http://statistics.data.gov.uk/id/local-authority/37UD,Leisure,LEIS,Leisure Centres,LCEN,Liberty Leisure Limited / Chilwell Olympia,Security - Cash Collection,3609,Security Costs,Secure,19/07/2019,V004019,175.6,Kings Armoured Security Services Limited,635.16,BAC002578
Liberty Leisure Limited,http://statistics.data.gov.uk/id/local-authority/37UD,Leisure,LEIS,Leisure Centres,LCEN,Liberty Leisure Limited / Chilwell Olympia,Security - Cash Collection,3609,Security Costs,Secure,19/07/2019,V004019,120.4,Kings Armoured Security Services Limited,635.16,BAC002578
Liberty Leisure Limited,http://statistics.data.gov.uk/id/local-authority/37UD,Culture and Heritage,CULT,Heritage,LHER,Liberty Leisure Limited / Chilwell Olympia,Security - Cash Collection,3609,Security Costs,Secure,16/08/2019,V004150,2.5,Kings Armoured Security Services Limited,772.92,BAC002661
Liberty Leisure Limited,http://statistics.data.gov.uk/id/local-authority/37UD,Culture and Heritage,CULT,Heritage,LHER,Liberty Leisure Limited / Chilwell Olympia,Security - Cash Collection,3609,Security Costs,Secure,16/08/2019,V004150,69,Kings Armoured Security Services Limited,772.92,BAC002661
Liberty Leisure Limited,http://statistics.data.gov.uk/id/local-authority/37UD,Leisure,LEIS,Leisure Centres,LCEN,Liberty Leisure Limited / Chilwell Olympia,Security - Cash Collection,3609,Security Costs,Secure,16/08/2019,V004150,193.2,Kings Armoured Security Services Limited,772.92,BAC002661
Liberty Leisure Limited,http://statistics.data.gov.uk/id/local-authority/37UD,Leisure,LEIS,Leisure Centres,LCEN,Liberty Leisure Limited / Chilwell Olympia,Security - Cash Collection,3609,Security Costs,Secure,16/08/2019,V004150,7.5,Kings Armoured Security Services Limited,772.92,BAC002661
Liberty Leisure Limited,http://statistics.data.gov.uk/id/local-authority/37UD,Leisure,LEIS,Leisure Centres,LCEN,Liberty Leisure Limited / Chilwell Olympia,Security - Cash Collection,3609,Security Costs,Secure,16/08/2019,V004150,193.2,Kings Armoured Security Services Limited,772.92,BAC002661
Liberty Leisure Limited,http://statistics.data.gov.uk/id/local-authority/37UD,Leisure,LEIS,Leisure Centres,LCEN,Liberty Leisure Limited / Chilwell Olympia,Security - Cash Collection,3609,Security Costs,Secure,16/08/2019,V004150,15,Kings Armoured Security Services Limited,772.92,BAC002661
Liberty Leisure Limited,http://statistics.data.gov.uk/id/local-authority/37UD,Leisure,LEIS,Leisure Centres,LCEN,Liberty Leisure Limited / Chilwell Olympia,Security - Cash Collection,3609,Security Costs,Secure,16/08/2019,V004139,9.25,Kings Armoured Security Services Limited,772.92,BAC002661
Liberty Leisure Limited,http://statistics.data.gov.uk/id/local-authority/37UD,Leisure,LEIS,Leisure Centres,LCEN,Liberty Leisure Limited / Chilwell Olympia,Security - Cash Collection,3609,Security Costs,Secure,16/08/2019,V004139,9.25,Kings Armoured Security Services Limited,772.92,BAC002661
Liberty Leisure Limited,http://statistics.data.gov.uk/id/local-authority/37UD,Leisure,LEIS,Leisure Centres,LCEN,Liberty Leisure Limited / Kimberley Leisure Centre,Bank Charges,3602,Other Supplies & Services,OtherSS,16/08/2019,V004123,9.25,Kings Armoured Security Services Limited,772.92,BAC002661
Liberty Leisure Limited,http://statistics.data.gov.uk/id/local-authority/37UD,Leisure,LEIS,Leisure Centres,LCEN,Liberty Leisure Limited / Chilwell Olympia,Security - Cash Collection,3609,Security Costs,Secure,16/08/2019,V004150,2.5,Kings Armoured Security Services Limited,772.92,BAC002661
Liberty Leisure Limited,http://statistics.data.gov.uk/id/local-authority/37UD,Leisure,LEIS,Leisure Centres,LCEN,Liberty Leisure Limited / Chilwell Olympia,Security - Cash Collection,3609,Security Costs,Secure,16/08/2019,V004150,124.2,Kings Armoured Security Services Limited,772.92,BAC002661
Liberty Leisure Limited,http://statistics.data.gov.uk/id/local-authority/37UD,Leisure,LEIS,Leisure Centres,LCEN,Liberty Leisure Limited / Chilwell Olympia,Security - Cash Collection,3609,Security Costs,Secure,16/08/2019,V004139,9.25,Kings Armoured Security Services Limited,772.92,BAC002661
Liberty Leisure Limited,http://statistics.data.gov.uk/id/local-authority/37UD,Culture and Heritage,CULT,Heritage,LHER,Liberty Leisure Limited / Chilwell Olympia,Security - Cash Collection,3609,Security Costs,Secure,27/09/2019,V004371,55.2,Kings Armoured Security Services Limited,639.72,BAC002804
Liberty Leisure Limited,http://statistics.data.gov.uk/id/local-authority/37UD,Leisure,LEIS,Leisure Centres,LCEN,Liberty Leisure Limited / Chilwell Olympia,Security - Cash Collection,3609,Security Costs,Secure,27/09/2019,V004371,165.6,Kings Armoured Security Services Limited,639.72,BAC002804
Liberty Leisure Limited,http://statistics.data.gov.uk/id/local-authority/37UD,Leisure,LEIS,Leisure Centres,LCEN,Liberty Leisure Limited / Chilwell Olympia,Security - Cash Collection,3609,Security Costs,Secure,27/09/2019,V004371,2.5,Kings Armoured Security Services Limited,639.72,BAC002804
Liberty Leisure Limited,http://statistics.data.gov.uk/id/local-authority/37UD,Leisure,LEIS,Leisure Centres,LCEN,Liberty Leisure Limited / Chilwell Olympia,Security - Cash Collection,3609,Security Costs,Secure,27/09/2019,V004371,165.6,Kings Armoured Security Services Limited,639.72,BAC002804
Liberty Leisure Limited,http://statistics.data.gov.uk/id/local-authority/37UD,Leisure,LEIS,Leisure Centres,LCEN,Liberty Leisure Limited / Chilwell Olympia,Security - Cash Collection,3609,Security Costs,Secure,27/09/2019,V004371,15,Kings Armoured Security Services Limited,639.72,BAC002804
Liberty Leisure Limited,http://statistics.data.gov.uk/id/local-authority/37UD,Leisure,LEIS,Leisure Centres,LCEN,Liberty Leisure Limited / Chilwell Olympia,Security - Cash Collection,3609,Security Costs,Secure,27/09/2019,V004371,5,Kings Armoured Security Services Limited,639.72,BAC002804
Liberty Leisure Limited,http://statistics.data.gov.uk/id/local-authority/37UD,Leisure,LEIS,Leisure Centres,LCEN,Liberty Leisure Limited / Chilwell Olympia,Security - Cash Collection,3609,Security Costs,Secure,27/09/2019,V004371,124.2,Kings Armoured Security Services Limited,639.72,BAC002804
Liberty Leisure Limited,http://statistics.data.gov.uk/id/local-authority/37UD,Leisure,LEIS,Leisure Centres,LCEN,Liberty Leisure Limited / Bramcote Leisure Centre,Repairs & Maintenance,1000,Central Pot,Central,21/06/2019,V003920,3755.83,KLG Rutland,4507,BAC002492
Liberty Leisure Limited,http://statistics.data.gov.uk/id/local-authority/37UD,Culture and Heritage,CULT,Events,LEVE,Liberty Leisure Limited / Events,Promotion of The Arts,3066,Office Supplies,Offsup,22/06/2018,V002121,840,Kniftons Mobile Toilets,"1,008",BAC001349
Liberty Leisure Limited,http://statistics.data.gov.uk/id/local-authority/37UD,Culture and Heritage,CULT,Events,LEVE,Liberty Leisure Limited / Events,Promotion of The Arts,3066,Office Supplies,Offsup,31/08/2018,V002466,520,Kniftons Mobile Toilets,"3,300",BAC001559
Liberty Leisure Limited,http://statistics.data.gov.uk/id/local-authority/37UD,Culture and Heritage,CULT,Events,LEVE,Liberty Leisure Limited / Events,Promotion of The Arts,3066,Office Supplies,Offsup,31/08/2018,V002466,520,Kniftons Mobile Toilets,"3,300",BAC001559
Liberty Leisure Limited,http://statistics.data.gov.uk/id/local-authority/37UD,Culture and Heritage,CULT,Events,LEVE,Liberty Leisure Limited / Events,Promotion of The Arts,3066,Office Supplies,Offsup,31/08/2018,V002469,520,Kniftons Mobile Toilets,"3,300",BAC001559
Liberty Leisure Limited,http://statistics.data.gov.uk/id/local-authority/37UD,Culture and Heritage,CULT,Events,LEVE,Liberty Leisure Limited / Events,Promotion of The Arts,3066,Office Supplies,Offsup,31/08/2018,V002467,520,Kniftons Mobile Toilets,"3,300",BAC001559
Liberty Leisure Limited,http://statistics.data.gov.uk/id/local-authority/37UD,Culture and Heritage,CULT,Events,LEVE,Liberty Leisure Limited / Events,Promotion of The Arts,3066,Office Supplies,Offsup,31/08/2018,V002467,520,Kniftons Mobile Toilets,"3,300",BAC001559
Liberty Leisure Limited,http://statistics.data.gov.uk/id/local-authority/37UD,Culture and Heritage,CULT,Events,LEVE,Liberty Leisure Limited / Events,Promotion of The Arts,3066,Office Supplies,Offsup,05/07/2019,V003969,840,Kniftons Mobile Toilets,1008,BAC002509
Liberty Leisure Limited,http://statistics.data.gov.uk/id/local-authority/37UD,Culture and Heritage,CULT,Events,LEVE,Liberty Leisure Limited / Events,Promotion of The Arts,3066,Office Supplies,Offsup,16/08/2019,V004101,750,Kniftons Mobile Toilets,2772,BAC002639
Liberty Leisure Limited,http://statistics.data.gov.uk/id/local-authority/37UD,Culture and Heritage,CULT,Events,LEVE,Liberty Leisure Limited / Events,Promotion of The Arts,3066,Office Supplies,Offsup,16/08/2019,V004162,520,Kniftons Mobile Toilets,2772,BAC002639
Liberty Leisure Limited,http://statistics.data.gov.uk/id/local-authority/37UD,Culture and Heritage,CULT,Events,LEVE,Liberty Leisure Limited / Events,Promotion of The Arts,3066,Office Supplies,Offsup,16/08/2019,V004100,520,Kniftons Mobile Toilets,2772,BAC002639
Liberty Leisure Limited,http://statistics.data.gov.uk/id/local-authority/37UD,Culture and Heritage,CULT,Events,LEVE,Liberty Leisure Limited / Events,Promotion of The Arts,3066,Office Supplies,Offsup,16/08/2019,V004163,520,Kniftons Mobile Toilets,2772,BAC002639
Liberty Leisure Limited,http://statistics.data.gov.uk/id/local-authority/37UD,Culture and Heritage,CULT,Events,LEVE,Liberty Leisure Limited / Events,Promotion of The Arts,3066,Office Supplies,Offsup,30/08/2019,V004221,220,Kniftons Mobile Toilets,2400,BAC002690
Liberty Leisure Limited,http://statistics.data.gov.uk/id/local-authority/37UD,Culture and Heritage,CULT,Events,LEVE,Liberty Leisure Limited / Events,Promotion of The Arts,3066,Office Supplies,Offsup,30/08/2019,V004221,520,Kniftons Mobile Toilets,2400,BAC002690
Liberty Leisure Limited,http://statistics.data.gov.uk/id/local-authority/37UD,Culture and Heritage,CULT,Events,LEVE,Liberty Leisure Limited / Events,Promotion of The Arts,3066,Office Supplies,Offsup,30/08/2019,V004221,520,Kniftons Mobile Toilets,2400,BAC002690
Liberty Leisure Limited,http://statistics.data.gov.uk/id/local-authority/37UD,Culture and Heritage,CULT,Events,LEVE,Liberty Leisure Limited / Events,Promotion of The Arts,3066,Office Supplies,Offsup,30/08/2019,V004221,520,Kniftons Mobile Toilets,2400,BAC002690
Liberty Leisure Limited,http://statistics.data.gov.uk/id/local-authority/37UD,Culture and Heritage,CULT,Events,LEVE,Liberty Leisure Limited / Events,Promotion of The Arts,3066,Office Supplies,Offsup,30/08/2019,V004221,220,Kniftons Mobile Toilets,2400,BAC002690
Liberty Leisure Limited,http://statistics.data.gov.uk/id/local-authority/37UD,Leisure,LEIS,Leisure Centres,LCEN,Liberty Leisure Limited / Kimberley Leisure Centre,Service Contracts,3056,Other Supplies & Services,OtherSS,07/12/2018,V002934,2026.69,Kohler Mira Ltd,"2,432",BAC001905
Liberty Leisure Limited,http://statistics.data.gov.uk/id/local-authority/37UD,Culture and Heritage,CULT,Events,LEVE,Liberty Leisure Limited / Chilwell Olympia,Promotion of The Arts,3066,Office Supplies,Offsup,21/12/2018,V003030,1600,Komodo Fireworks Ltd,"7,680",BAC001952
Liberty Leisure Limited,http://statistics.data.gov.uk/id/local-authority/37UD,Culture and Heritage,CULT,Events,LEVE,Liberty Leisure Limited / Chilwell Olympia,Promotion of The Arts,3066,Office Supplies,Offsup,21/12/2018,V003030,1600,Komodo Fireworks Ltd,"7,680",BAC001952
Liberty Leisure Limited,http://statistics.data.gov.uk/id/local-authority/37UD,Culture and Heritage,CULT,Events,LEVE,Liberty Leisure Limited / Chilwell Olympia,Promotion of The Arts,3066,Office Supplies,Offsup,21/12/2018,V003030,1600,Komodo Fireworks Ltd,"7,680",BAC001952
Liberty Leisure Limited,http://statistics.data.gov.uk/id/local-authority/37UD,Culture and Heritage,CULT,Events,LEVE,Liberty Leisure Limited / Chilwell Olympia,Promotion of The Arts,3066,Office Supplies,Offsup,21/12/2018,V003030,1600,Komodo Fireworks Ltd,"7,680",BAC001952
Liberty Leisure Limited,http://statistics.data.gov.uk/id/local-authority/37UD,Leisure,LEIS,Leisure Centres,LCEN,Liberty Leisure Limited / Bramcote Leisure Centre,Repairs & Maintenance,1000,Central Pot,Central,03/04/2018,V001701,4672,Langley Mill Contract Floor,"5,606",BAC001091
Liberty Leisure Limited,http://statistics.data.gov.uk/id/local-authority/37UD,Leisure,LEIS,Leisure Centres,LCEN,Liberty Leisure Limited / Bramcote Leisure Centre,Repairs & Maintenance,1000,Central Pot,Central,01/03/2019,V003359,425,Langley Mill Contract Floor,510,BAC002125
Liberty Leisure Limited,http://statistics.data.gov.uk/id/local-authority/37UD,Leisure,LEIS,Leisure Centres,LCEN,Liberty Leisure Limited / Bramcote Leisure Centre,Repairs & Maintenance,1000,Central Pot,Central,29/03/2019,V003517,896,Langley Mill Contract Floor,1885.2,BAC002212
Liberty Leisure Limited,http://statistics.data.gov.uk/id/local-authority/37UD,Leisure,LEIS,Leisure Centres,LCEN,Liberty Leisure Limited / Kimberley Leisure Centre,Repairs & Maintenance,1000,Central Pot,Central,29/03/2019,V003473,675,Langley Mill Contract Floor,1885.2,BAC002212
Liberty Leisure Limited,http://statistics.data.gov.uk/id/local-authority/37UD,Leisure,LEIS,Leisure Centres,LCEN,Liberty Leisure Limited / Kimberley Leisure Centre,Repairs & Maintenance,1000,Central Pot,Central,02/08/2019,V004072,398,Langley Mill Contract Floor,477.6,BAC002589
Liberty Leisure Limited,http://statistics.data.gov.uk/id/local-authority/37UD,Leisure,LEIS,Leisure Centres,LCEN,Liberty Leisure Limited / Chilwell Olympia,Repairs & Maintenance,1000,Central Pot,Central,14/09/2018,V002555,260,Lee Jackson Air Conditioning Ltd,"93,621",BAC001632
Liberty Leisure Limited,http://statistics.data.gov.uk/id/local-authority/37UD,Leisure,LEIS,Leisure Centres,LCEN,Liberty Leisure Limited / Chilwell Olympia,Service Contracts,3056,Other Supplies & Services,OtherSS,12/04/2019,V003643,280,Lee Jackson Air Conditioning Ltd,336,BAC002293
Liberty Leisure Limited,http://statistics.data.gov.uk/id/local-authority/37UD,Leisure,LEIS,Leisure Centres,LCEN,Liberty Leisure Limited / Bramcote Leisure Centre,Repairs & Maintenance,1000,Central Pot,Central,13/09/2019,V004294,248,Lee Jackson Air Conditioning Ltd,297.6,BAC002757
Liberty Leisure Limited,http://statistics.data.gov.uk/id/local-authority/37UD,Culture and Heritage,CULT,Events,LEVE,Liberty Leisure Limited / Events,Promotion of The Arts,3066,Office Supplies,Offsup,21/12/2018,V003048,585,Leicester Event Medical LTD,585,BAC001969
Liberty Leisure Limited,http://statistics.data.gov.uk/id/local-authority/37UD,Culture and Heritage,CULT,Events,LEVE,Liberty Leisure Limited / Events,Promotion of The Arts,3066,Office Supplies,Offsup,21/06/2019,V003897,550.8,Leicester Event Medical LTD,550.8,BAC002491
Liberty Leisure Limited,http://statistics.data.gov.uk/id/local-authority/37UD,Culture and Heritage,CULT,Events,LEVE,Liberty Leisure Limited / Events,Promotion of The Arts,3066,Office Supplies,Offsup,16/08/2019,V004166,255,Leicester Event Medical LTD,510,BAC002665
Liberty Leisure Limited,http://statistics.data.gov.uk/id/local-authority/37UD,Culture and Heritage,CULT,Events,LEVE,Liberty Leisure Limited / Events,Promotion of The Arts,3066,Office Supplies,Offsup,16/08/2019,V004164,255,Leicester Event Medical LTD,510,BAC002665
Liberty Leisure Limited,http://statistics.data.gov.uk/id/local-authority/37UD,Culture and Heritage,CULT,Events,LEVE,Liberty Leisure Limited / Events,Promotion of The Arts,3066,Office Supplies,Offsup,30/08/2019,V004216,-153,Leicester Event Medical LTD,1981.3,BAC002719
Liberty Leisure Limited,http://statistics.data.gov.uk/id/local-authority/37UD,Culture and Heritage,CULT,Events,LEVE,Liberty Leisure Limited / Events,Promotion of The Arts,3066,Office Supplies,Offsup,30/08/2019,V004228,170,Leicester Event Medical LTD,1981.3,BAC002719
Liberty Leisure Limited,http://statistics.data.gov.uk/id/local-authority/37UD,Culture and Heritage,CULT,Events,LEVE,Liberty Leisure Limited / Events,Promotion of The Arts,3066,Office Supplies,Offsup,30/08/2019,V004222,170,Leicester Event Medical LTD,1981.3,BAC002719
Liberty Leisure Limited,http://statistics.data.gov.uk/id/local-authority/37UD,Culture and Heritage,CULT,Events,LEVE,Liberty Leisure Limited / Events,Promotion of The Arts,3066,Office Supplies,Offsup,30/08/2019,V004225,170,Leicester Event Medical LTD,1981.3,BAC002719
Liberty Leisure Limited,http://statistics.data.gov.uk/id/local-authority/37UD,Culture and Heritage,CULT,Events,LEVE,Liberty Leisure Limited / Events,Promotion of The Arts,3066,Office Supplies,Offsup,30/08/2019,V004227,170,Leicester Event Medical LTD,1981.3,BAC002719
Liberty Leisure Limited,http://statistics.data.gov.uk/id/local-authority/37UD,Culture and Heritage,CULT,Events,LEVE,Liberty Leisure Limited / Events,Promotion of The Arts,3066,Office Supplies,Offsup,30/08/2019,V004218,357,Leicester Event Medical LTD,1981.3,BAC002719
Liberty Leisure Limited,http://statistics.data.gov.uk/id/local-authority/37UD,Culture and Heritage,CULT,Events,LEVE,Liberty Leisure Limited / Events,Promotion of The Arts,3066,Office Supplies,Offsup,30/08/2019,V004228,102,Leicester Event Medical LTD,1981.3,BAC002719
Liberty Leisure Limited,http://statistics.data.gov.uk/id/local-authority/37UD,Culture and Heritage,CULT,Events,LEVE,Liberty Leisure Limited / Events,Promotion of The Arts,3066,Office Supplies,Offsup,30/08/2019,V004225,102,Leicester Event Medical LTD,1981.3,BAC002719
Liberty Leisure Limited,http://statistics.data.gov.uk/id/local-authority/37UD,Culture and Heritage,CULT,Events,LEVE,Liberty Leisure Limited / Events,Promotion of The Arts,3066,Office Supplies,Offsup,30/08/2019,V004220,204,Leicester Event Medical LTD,1981.3,BAC002719
Liberty Leisure Limited,http://statistics.data.gov.uk/id/local-authority/37UD,Culture and Heritage,CULT,Events,LEVE,Liberty Leisure Limited / Events,Promotion of The Arts,3066,Office Supplies,Offsup,30/08/2019,V004222,102,Leicester Event Medical LTD,1981.3,BAC002719
Liberty Leisure Limited,http://statistics.data.gov.uk/id/local-authority/37UD,Culture and Heritage,CULT,Events,LEVE,Liberty Leisure Limited / Events,Promotion of The Arts,3066,Office Supplies,Offsup,30/08/2019,V004229,272,Leicester Event Medical LTD,1981.3,BAC002719
Liberty Leisure Limited,http://statistics.data.gov.uk/id/local-authority/37UD,Culture and Heritage,CULT,Events,LEVE,Liberty Leisure Limited / Events,Promotion of The Arts,3066,Office Supplies,Offsup,30/08/2019,V004227,102,Leicester Event Medical LTD,1981.3,BAC002719
Liberty Leisure Limited,http://statistics.data.gov.uk/id/local-authority/37UD,Culture and Heritage,CULT,Events,LEVE,Liberty Leisure Limited / Events,Promotion of The Arts,3066,Office Supplies,Offsup,30/08/2019,V004218,28.8,Leicester Event Medical LTD,1981.3,BAC002719
Liberty Leisure Limited,http://statistics.data.gov.uk/id/local-authority/37UD,Culture and Heritage,CULT,Events,LEVE,Liberty Leisure Limited / Events,Promotion of The Arts,3066,Office Supplies,Offsup,30/08/2019,V004220,34.2,Leicester Event Medical LTD,1981.3,BAC002719
Liberty Leisure Limited,http://statistics.data.gov.uk/id/local-authority/37UD,Culture and Heritage,CULT,Events,LEVE,Liberty Leisure Limited / Events,Promotion of The Arts,3066,Office Supplies,Offsup,30/08/2019,V004222,27,Leicester Event Medical LTD,1981.3,BAC002719
Liberty Leisure Limited,http://statistics.data.gov.uk/id/local-authority/37UD,Culture and Heritage,CULT,Events,LEVE,Liberty Leisure Limited / Events,Promotion of The Arts,3066,Office Supplies,Offsup,30/08/2019,V004225,33.3,Leicester Event Medical LTD,1981.3,BAC002719
Liberty Leisure Limited,http://statistics.data.gov.uk/id/local-authority/37UD,Culture and Heritage,CULT,Events,LEVE,Liberty Leisure Limited / Events,Promotion of The Arts,3066,Office Supplies,Offsup,30/08/2019,V004227,31.5,Leicester Event Medical LTD,1981.3,BAC002719
Liberty Leisure Limited,http://statistics.data.gov.uk/id/local-authority/37UD,Culture and Heritage,CULT,Events,LEVE,Liberty Leisure Limited / Events,Promotion of The Arts,3066,Office Supplies,Offsup,30/08/2019,V004228,27,Leicester Event Medical LTD,1981.3,BAC002719
Liberty Leisure Limited,http://statistics.data.gov.uk/id/local-authority/37UD,Culture and Heritage,CULT,Events,LEVE,Liberty Leisure Limited / Events,Promotion of The Arts,3066,Office Supplies,Offsup,30/08/2019,V004229,31.5,Leicester Event Medical LTD,1981.3,BAC002719
Liberty Leisure Limited,http://statistics.data.gov.uk/id/local-authority/37UD,Culture and Heritage,CULT,Events,LEVE,Liberty Leisure Limited / Events,Promotion of The Arts,3066,Office Supplies,Offsup,06/07/2018,V002195,600,Leicester Medical Support,600,BAC001409
Liberty Leisure Limited,http://statistics.data.gov.uk/id/local-authority/37UD,Culture and Heritage,CULT,Events,LEVE,Liberty Leisure Limited / Events,Promotion of The Arts,3066,Office Supplies,Offsup,31/08/2018,V002472,262.5,Leicester Medical Support,"1,935",BAC001579
Liberty Leisure Limited,http://statistics.data.gov.uk/id/local-authority/37UD,Culture and Heritage,CULT,Events,LEVE,Liberty Leisure Limited / Chilwell Olympia,Promotion of The Arts,3066,Office Supplies,Offsup,21/12/2018,V003033,500,Leicester Medical Support,750,BAC001955
Liberty Leisure Limited,http://statistics.data.gov.uk/id/local-authority/37UD,Culture and Heritage,CULT,Events,LEVE,Liberty Leisure Limited / Chilwell Olympia,Promotion of The Arts,3066,Office Supplies,Offsup,21/12/2018,V003032,250,Leicester Medical Support,750,BAC001955
Liberty Leisure Limited,http://statistics.data.gov.uk/id/local-authority/37UD,Leisure,LEIS,Leisure Centres,LCEN,Liberty Leisure Limited / Bramcote Leisure Centre,Repairs & Maintenance,1000,Central Pot,Central,03/04/2018,V001692,508.82,Leisureteq,"1,217",BAC001092
Liberty Leisure Limited,http://statistics.data.gov.uk/id/local-authority/37UD,Leisure,LEIS,Leisure Centres,LCEN,Liberty Leisure Limited / Bramcote Leisure Centre,Repairs & Maintenance,1000,Central Pot,Central,03/04/2018,V001754,505.5,Leisureteq,"1,217",BAC001092
Liberty Leisure Limited,http://statistics.data.gov.uk/id/local-authority/37UD,Leisure,LEIS,Leisure Centres,LCEN,Liberty Leisure Limited / Bramcote Leisure Centre,Repairs & Maintenance,1000,Central Pot,Central,11/05/2018,V001967,861.4,Leisureteq,"1,295",BAC001223
Liberty Leisure Limited,http://statistics.data.gov.uk/id/local-authority/37UD,Leisure,LEIS,Leisure Centres,LCEN,Liberty Leisure Limited / Bramcote Leisure Centre,Repairs & Maintenance,1000,Central Pot,Central,12/04/2019,V003588,471.5,Leisureteq,951.77,BAC002276
Liberty Leisure Limited,http://statistics.data.gov.uk/id/local-authority/37UD,Leisure,LEIS,Leisure Centres,LCEN,Liberty Leisure Limited / Bramcote Leisure Centre,Repairs & Maintenance,1000,Central Pot,Central,12/04/2019,V003588,275,Leisureteq,951.77,BAC002276
Liberty Leisure Limited,http://statistics.data.gov.uk/id/local-authority/37UD,Leisure,LEIS,Leisure Centres,LCEN,Liberty Leisure Limited / Bramcote Leisure Centre,Repairs & Maintenance,1000,Central Pot,Central,21/06/2019,V003896,275,Leisureteq,330,BAC002461
Liberty Leisure Limited,http://statistics.data.gov.uk/id/local-authority/37UD,Leisure,LEIS,Leisure Centres,LCEN,Liberty Leisure Limited / Kimberley Leisure Centre,Repairs & Maintenance,1000,Central Pot,Central,12/04/2019,V003634,1600,Les Mills Smart Tech,7427.44,BAC002304
Liberty Leisure Limited,http://statistics.data.gov.uk/id/local-authority/37UD,Leisure,LEIS,Leisure Centres,LCEN,Liberty Leisure Limited / Kimberley Leisure Centre,Repairs & Maintenance,1000,Central Pot,Central,12/04/2019,V003634,1600,Les Mills Smart Tech,7427.44,BAC002304
Liberty Leisure Limited,http://statistics.data.gov.uk/id/local-authority/37UD,Leisure,LEIS,Leisure Centres,LCEN,Liberty Leisure Limited / Kimberley Leisure Centre,Sports Equipment,3002,Equipment,Equip,12/04/2019,V003634,1075.2,Les Mills Smart Tech,7427.44,BAC002304
Liberty Leisure Limited,http://statistics.data.gov.uk/id/local-authority/37UD,Leisure,LEIS,Leisure Centres,LCEN,Liberty Leisure Limited / Kimberley Leisure Centre,Repairs & Maintenance,1000,Central Pot,Central,12/04/2019,V003634,838,Les Mills Smart Tech,7427.44,BAC002304
Liberty Leisure Limited,http://statistics.data.gov.uk/id/local-authority/37UD,Leisure,LEIS,Leisure Centres,LCEN,Liberty Leisure Limited / Kimberley Leisure Centre,Repairs & Maintenance,1000,Central Pot,Central,12/04/2019,V003634,373.13,Les Mills Smart Tech,7427.44,BAC002304
Liberty Leisure Limited,http://statistics.data.gov.uk/id/local-authority/37UD,Leisure,LEIS,Leisure Centres,LCEN,Liberty Leisure Limited / Kimberley Leisure Centre,Repairs & Maintenance,1000,Central Pot,Central,12/04/2019,V003634,350,Les Mills Smart Tech,7427.44,BAC002304
Liberty Leisure Limited,http://statistics.data.gov.uk/id/local-authority/37UD,Leisure,LEIS,Leisure Centres,LCEN,Liberty Leisure Limited / Kimberley Leisure Centre,Sports Equipment,3002,Equipment,Equip,12/04/2019,V003634,277.2,Les Mills Smart Tech,7427.44,BAC002304
Liberty Leisure Limited,http://statistics.data.gov.uk/id/local-authority/37UD,Leisure,LEIS,Leisure Centres,LCEN,Liberty Leisure Limited / Kimberley Leisure Centre,Repairs & Maintenance,1000,Central Pot,Central,26/04/2019,V003660,384,Les Mills Smart Tech,460.8,BAC002329
Liberty Leisure Limited,http://statistics.data.gov.uk/id/local-authority/37UD,Leisure,LEIS,Leisure Development,LDEV,Liberty Leisure Limited / Kimberley Leisure Centre,Business Development,3088,Other Supplies & Services,OtherSS,05/07/2019,V003979,300,Les Mills Smart Tech,360,BAC002536
Liberty Leisure Limited,http://statistics.data.gov.uk/id/local-authority/37UD,Leisure,LEIS,Leisure Development,LDEV,Liberty Leisure Limited / Liberty Leisure Development,Advertising,3412,Advertising,Advert,15/03/2019,V003402,425,LFX,510,BAC002196
Liberty Leisure Limited,http://statistics.data.gov.uk/id/local-authority/37UD,Leisure,LEIS,Leisure Development,LDEV,Liberty Leisure Limited / Bramcote Leisure Centre,Course & Examination Fees,720,Indirect Employee Exp Oncosts,Oncosts,24/05/2019,V003782,500,LFX,500,BAC002411
Liberty Leisure Limited,http://statistics.data.gov.uk/id/local-authority/37UD,Leisure,LEIS,Leisure Management,LMAN,Liberty Leisure Limited / Chilwell Olympia,Professional Fees,730,Indirect Employee Exp Oncosts,Oncosts,06/07/2018,V002224,5000,Ling Phipp,"6,000",BAC001412
Liberty Leisure Limited,http://statistics.data.gov.uk/id/local-authority/37UD,Leisure,LEIS,Leisure Management,LMAN,Liberty Leisure Limited / Liberty Leisure Development,Professional Fees,730,Indirect Employee Exp Oncosts,Oncosts,05/07/2019,V003884,5500,Ling Phipp,6600,BAC002530
Liberty Leisure Limited,http://statistics.data.gov.uk/id/local-authority/37UD,Leisure,LEIS,Leisure Development,LDEV,Liberty Leisure Limited / Kimberley Leisure Centre,Course & Examination Fees,720,Indirect Employee Exp Oncosts,Oncosts,15/03/2019,V003380,275,Little Bubbles Ltd,275,BAC002198
Liberty Leisure Limited,http://statistics.data.gov.uk/id/local-authority/37UD,Leisure,LEIS,Leisure Centres,LCEN,Liberty Leisure Limited / Bramcote Leisure Centre,Service Contracts,3056,Other Supplies & Services,OtherSS,03/04/2018,V001755,342.5,Local Vending,411,BAC001103
Liberty Leisure Limited,http://statistics.data.gov.uk/id/local-authority/37UD,Leisure,LEIS,Leisure Centres,LCEN,Liberty Leisure Limited / Bramcote Leisure Centre,Vending,8429,Fees & Charges,Fees,17/08/2018,V002420,469,Local Vending,563,BAC001523
Liberty Leisure Limited,http://statistics.data.gov.uk/id/local-authority/37UD,Leisure,LEIS,Leisure Centres,LCEN,Liberty Leisure Limited / Bramcote Leisure Centre,Repairs & Maintenance,1000,Central Pot,Central,12/10/2018,V002671,342.5,Local Vending,411,BAC001711
Liberty Leisure Limited,http://statistics.data.gov.uk/id/local-authority/37UD,Leisure,LEIS,Leisure Centres,LCEN,Liberty Leisure Limited / Bramcote Leisure Centre,Service Contracts,3056,Other Supplies & Services,OtherSS,29/03/2019,V003490,411,Local Vending,493.2,BAC002226
Liberty Leisure Limited,http://statistics.data.gov.uk/id/local-authority/37UD,Leisure,LEIS,Leisure Centres,LCEN,Liberty Leisure Limited / Bramcote Leisure Centre,Repairs & Maintenance,1000,Central Pot,Central,16/08/2019,V004106,107.3,Local Vending,1231.8,BAC002636
Liberty Leisure Limited,http://statistics.data.gov.uk/id/local-authority/37UD,Leisure,LEIS,Leisure Centres,LCEN,Liberty Leisure Limited / Bramcote Leisure Centre,Sports Equipment,3002,Equipment,Equip,16/08/2019,V004144,412.2,Local Vending,1231.8,BAC002636
Liberty Leisure Limited,http://statistics.data.gov.uk/id/local-authority/37UD,Leisure,LEIS,Leisure Centres,LCEN,Liberty Leisure Limited / Bramcote Leisure Centre,Sports Equipment,3002,Equipment,Equip,16/08/2019,V004107,507,Local Vending,1231.8,BAC002636
Liberty Leisure Limited,http://statistics.data.gov.uk/id/local-authority/37UD,Leisure,LEIS,Leisure Centres,LCEN,Liberty Leisure Limited / Bramcote Leisure Centre,Repairs & Maintenance,1000,Central Pot,Central,27/09/2019,V004392,279.6,Local Vending,335.52,BAC002785
Liberty Leisure Limited,http://statistics.data.gov.uk/id/local-authority/37UD,Leisure,LEIS,Leisure Centres,LCEN,Liberty Leisure Limited / Bramcote Leisure Centre,Repairs & Maintenance,1000,Central Pot,Central,15/03/2019,V003425,1220.16,Long Eaton Glass,1464.19,BAC002159
Liberty Leisure Limited,http://statistics.data.gov.uk/id/local-authority/37UD,Leisure,LEIS,Leisure Centres,LCEN,Liberty Leisure Limited / Chilwell Olympia,Repairs & Maintenance,1000,Central Pot,Central,22/06/2018,V002107,475,Lowrys (Nottingham) Ltd,630,BAC001363
Liberty Leisure Limited,http://statistics.data.gov.uk/id/local-authority/37UD,Leisure,LEIS,Leisure Centres,LCEN,Liberty Leisure Limited / Bramcote Leisure Centre,Repairs & Maintenance,1000,Central Pot,Central,03/04/2018,V001759,870,M A Technical Services Ltd,"2,292",BAC001094
Liberty Leisure Limited,http://statistics.data.gov.uk/id/local-authority/37UD,Leisure,LEIS,Leisure Centres,LCEN,Liberty Leisure Limited / Bramcote Leisure Centre,Repairs & Maintenance,1000,Central Pot,Central,03/04/2018,V001680,460,M A Technical Services Ltd,"2,292",BAC001094
Liberty Leisure Limited,http://statistics.data.gov.uk/id/local-authority/37UD,Leisure,LEIS,Leisure Centres,LCEN,Liberty Leisure Limited / Kimberley Leisure Centre,Repairs & Maintenance,1000,Central Pot,Central,03/04/2018,V001750,300,M A Technical Services Ltd,"2,292",BAC001094
Liberty Leisure Limited,http://statistics.data.gov.uk/id/local-authority/37UD,Leisure,LEIS,Leisure Centres,LCEN,Liberty Leisure Limited / Kimberley Leisure Centre,Repairs and Maintenance - Plant and Equi,1009,Other Maintenance,Maint,03/04/2018,V001673,280,M A Technical Services Ltd,"2,292",BAC001094
Liberty Leisure Limited,http://statistics.data.gov.uk/id/local-authority/37UD,Leisure,LEIS,Leisure Centres,LCEN,Liberty Leisure Limited / Bramcote Leisure Centre,Repairs & Maintenance,1000,Central Pot,Central,06/04/2018,V001777,300,M A Technical Services Ltd,360,BAC001146
Liberty Leisure Limited,http://statistics.data.gov.uk/id/local-authority/37UD,Leisure,LEIS,Leisure Centres,LCEN,Liberty Leisure Limited / Bramcote Leisure Centre,Repairs & Maintenance,1000,Central Pot,Central,13/04/2018,V001790,611.36,M A Technical Services Ltd,952,BAC001158
Liberty Leisure Limited,http://statistics.data.gov.uk/id/local-authority/37UD,Leisure,LEIS,Leisure Centres,LCEN,Liberty Leisure Limited / Kimberley Leisure Centre,Repairs & Maintenance,1000,Central Pot,Central,25/05/2018,V002002,320,M A Technical Services Ltd,384,BAC001264
Liberty Leisure Limited,http://statistics.data.gov.uk/id/local-authority/37UD,Leisure,LEIS,Leisure Centres,LCEN,Liberty Leisure Limited / Kimberley Leisure Centre,Repairs & Maintenance,1000,Central Pot,Central,22/06/2018,V002132,539,M A Technical Services Ltd,647,BAC001342
Liberty Leisure Limited,http://statistics.data.gov.uk/id/local-authority/37UD,Leisure,LEIS,Leisure Centres,LCEN,Liberty Leisure Limited / Kimberley Leisure Centre,Repairs & Maintenance,1000,Central Pot,Central,03/08/2018,V002314,300,M A Technical Services Ltd,540,BAC001472
Liberty Leisure Limited,http://statistics.data.gov.uk/id/local-authority/37UD,Leisure,LEIS,Leisure Centres,LCEN,Liberty Leisure Limited / Kimberley Leisure Centre,Repairs & Maintenance,1000,Central Pot,Central,31/08/2018,V002495,3212,M A Technical Services Ltd,"4,994",BAC001553
Liberty Leisure Limited,http://statistics.data.gov.uk/id/local-authority/37UD,Leisure,LEIS,Leisure Centres,LCEN,Liberty Leisure Limited / Bramcote Leisure Centre,Repairs & Maintenance,1000,Central Pot,Central,31/08/2018,V002511,550,M A Technical Services Ltd,"4,994",BAC001553
Liberty Leisure Limited,http://statistics.data.gov.uk/id/local-authority/37UD,Leisure,LEIS,Leisure Centres,LCEN,Liberty Leisure Limited / Kimberley Leisure Centre,Service Contracts,3056,Other Supplies & Services,OtherSS,31/08/2018,V002450,400,M A Technical Services Ltd,"4,994",BAC001553
Liberty Leisure Limited,http://statistics.data.gov.uk/id/local-authority/37UD,Leisure,LEIS,Leisure Centres,LCEN,Liberty Leisure Limited / Kimberley Leisure Centre,Repairs & Maintenance,1000,Central Pot,Central,12/10/2018,V002688,900,M A Technical Services Ltd,"2,100",BAC001706
Liberty Leisure Limited,http://statistics.data.gov.uk/id/local-authority/37UD,Leisure,LEIS,Leisure Centres,LCEN,Liberty Leisure Limited / Kimberley Leisure Centre,Repairs & Maintenance,1000,Central Pot,Central,12/10/2018,V002657,850,M A Technical Services Ltd,"2,100",BAC001706
Liberty Leisure Limited,http://statistics.data.gov.uk/id/local-authority/37UD,Leisure,LEIS,Leisure Centres,LCEN,Liberty Leisure Limited / Bramcote Leisure Centre,Repairs & Maintenance,1000,Central Pot,Central,09/11/2018,V002807,300,M A Technical Services Ltd,594,BAC001785
Liberty Leisure Limited,http://statistics.data.gov.uk/id/local-authority/37UD,Leisure,LEIS,Leisure Centres,LCEN,Liberty Leisure Limited / Kimberley Leisure Centre,Repairs & Maintenance,1000,Central Pot,Central,07/12/2018,V002964,650,M A Technical Services Ltd,"1,618",BAC001873
Liberty Leisure Limited,http://statistics.data.gov.uk/id/local-authority/37UD,Leisure,LEIS,Leisure Centres,LCEN,Liberty Leisure Limited / Bramcote Leisure Centre,Repairs & Maintenance,1000,Central Pot,Central,07/12/2018,V002991,504.6,M A Technical Services Ltd,"1,618",BAC001873
Liberty Leisure Limited,http://statistics.data.gov.uk/id/local-authority/37UD,Leisure,LEIS,Leisure Centres,LCEN,Liberty Leisure Limited / Chilwell Olympia,Repairs & Maintenance,1000,Central Pot,Central,21/12/2018,V003043,380,M A Technical Services Ltd,648,BAC001920
Liberty Leisure Limited,http://statistics.data.gov.uk/id/local-authority/37UD,Leisure,LEIS,Leisure Centres,LCEN,Liberty Leisure Limited / Bramcote Leisure Centre,Repairs & Maintenance,1000,Central Pot,Central,11/01/2019,V003114,385,M A Technical Services Ltd,462,BAC001982
Liberty Leisure Limited,http://statistics.data.gov.uk/id/local-authority/37UD,Leisure,LEIS,Leisure Centres,LCEN,Liberty Leisure Limited / Kimberley Leisure Centre,Repairs & Maintenance,1000,Central Pot,Central,18/01/2019,V003160,850,M A Technical Services Ltd,1230,BAC002014
Liberty Leisure Limited,http://statistics.data.gov.uk/id/local-authority/37UD,Leisure,LEIS,Leisure Centres,LCEN,Liberty Leisure Limited / Kimberley Leisure Centre,Repairs & Maintenance,1000,Central Pot,Central,01/02/2019,V003187,263,M A Technical Services Ltd,495.6,BAC002039
Liberty Leisure Limited,http://statistics.data.gov.uk/id/local-authority/37UD,Leisure,LEIS,Leisure Centres,LCEN,Liberty Leisure Limited / Bramcote Leisure Centre,Repairs & Maintenance,1000,Central Pot,Central,15/02/2019,V003285,1176,M A Technical Services Ltd,1411.2,BAC002075
Liberty Leisure Limited,http://statistics.data.gov.uk/id/local-authority/37UD,Leisure,LEIS,Leisure Centres,LCEN,Liberty Leisure Limited / Bramcote Leisure Centre,Repairs & Maintenance,1000,Central Pot,Central,01/03/2019,V003348,362,M A Technical Services Ltd,434.4,BAC002126
Liberty Leisure Limited,http://statistics.data.gov.uk/id/local-authority/37UD,Leisure,LEIS,Leisure Centres,LCEN,Liberty Leisure Limited / Kimberley Leisure Centre,Repairs & Maintenance,1000,Central Pot,Central,15/03/2019,V003375,700,M A Technical Services Ltd,2052,BAC002160
Liberty Leisure Limited,http://statistics.data.gov.uk/id/local-authority/37UD,Leisure,LEIS,Leisure Centres,LCEN,Liberty Leisure Limited / Kimberley Leisure Centre,Repairs & Maintenance,1000,Central Pot,Central,15/03/2019,V003376,500,M A Technical Services Ltd,2052,BAC002160
Liberty Leisure Limited,http://statistics.data.gov.uk/id/local-authority/37UD,Leisure,LEIS,Leisure Centres,LCEN,Liberty Leisure Limited / Kimberley Leisure Centre,Repairs & Maintenance,1000,Central Pot,Central,15/03/2019,V003376,280,M A Technical Services Ltd,2052,BAC002160
Liberty Leisure Limited,http://statistics.data.gov.uk/id/local-authority/37UD,Leisure,LEIS,Leisure Centres,LCEN,Liberty Leisure Limited / Kimberley Leisure Centre,Repairs & Maintenance,1000,Central Pot,Central,29/03/2019,V003537,480,M A Technical Services Ltd,1902,BAC002215
Liberty Leisure Limited,http://statistics.data.gov.uk/id/local-authority/37UD,Leisure,LEIS,Leisure Centres,LCEN,Liberty Leisure Limited / Kimberley Leisure Centre,Repairs & Maintenance,1000,Central Pot,Central,29/03/2019,V003536,450,M A Technical Services Ltd,1902,BAC002215
Liberty Leisure Limited,http://statistics.data.gov.uk/id/local-authority/37UD,Leisure,LEIS,Leisure Centres,LCEN,Liberty Leisure Limited / Bramcote Leisure Centre,Repairs & Maintenance,1000,Central Pot,Central,29/03/2019,V003467,425,M A Technical Services Ltd,1902,BAC002215
Liberty Leisure Limited,http://statistics.data.gov.uk/id/local-authority/37UD,Leisure,LEIS,Leisure Centres,LCEN,Liberty Leisure Limited / Kimberley Leisure Centre,Repairs & Maintenance,1000,Central Pot,Central,26/04/2019,V003667,650,M A Technical Services Ltd,960,BAC002309
Liberty Leisure Limited,http://statistics.data.gov.uk/id/local-authority/37UD,Leisure,LEIS,Leisure Centres,LCEN,Liberty Leisure Limited / Kimberley Leisure Centre,Repairs & Maintenance,1000,Central Pot,Central,10/05/2019,V003720,320,M A Technical Services Ltd,1008,BAC002341
Liberty Leisure Limited,http://statistics.data.gov.uk/id/local-authority/37UD,Leisure,LEIS,Leisure Centres,LCEN,Liberty Leisure Limited / Bramcote Leisure Centre,Repairs & Maintenance,1000,Central Pot,Central,07/06/2019,V003808,650,M A Technical Services Ltd,1560,BAC002429
Liberty Leisure Limited,http://statistics.data.gov.uk/id/local-authority/37UD,Leisure,LEIS,Leisure Centres,LCEN,Liberty Leisure Limited / Kimberley Leisure Centre,Repairs & Maintenance,1000,Central Pot,Central,07/06/2019,V003817,650,M A Technical Services Ltd,1560,BAC002429
Liberty Leisure Limited,http://statistics.data.gov.uk/id/local-authority/37UD,Leisure,LEIS,Leisure Centres,LCEN,Liberty Leisure Limited / Kimberley Leisure Centre,Repairs & Maintenance,1000,Central Pot,Central,21/06/2019,V003924,280,M A Technical Services Ltd,744,BAC002462
